Workbook

Sheet Using the Model
B7: INSTRUCTIONS
B8: Step 1 | C8: Please read over the information and diagrams below
B9: Step 2 | C9: Navigate to the Interface tab (Tab number 2)
B10: Step 3 | C10: On the Interface tab, you will presented with various options to select & complete (See examples below)
B11: Step 4 | C11: Each block the requires your information/inputs must be completed to ensure the end results are accuarate
B12: Step 5 | C12: Every effort has been made to provide you with accuarte, industry specific data. The Built-in Assumptions and Production Assumptions tabs provide data that the user can ammend if necessary
B13: Step 6 | C13: The remaining tabs in the excel sheet will automatically update according to the data selected and inputs used. It is not recommended these sheets are changed.
B14: Step 7 | C14: Consult the Generic Economic Model User Manual for a detailed information & guidelines on the model
B17: THE INTERFACE - PRODUCTION INFO
B34: THE INTERFACE - APPLICANT INFO (TELL US ABOUT YOU)
B54: THE INTERFACE - QUICK FACTS (OBTAIN YOUR RESULTS)
B74: THE INTERFACE - QUICK FACTS (SPECIES REQUIREMENTS)

Sheet Interface
B1: Economic Analysis Model For the R&D aquaculture projects
E7: Marron Crayfish | F7: <Please Select a Location> | G7: <Please Select a System> | H7: <Please Select a Market> | I7: <Please select an appropriate selling price?> | J7: <Please Select Tonnage>
G8: =IF($G$7=Validation!$F$5," ",IF(G7=Validation!F2, " ","This method has not been tested, please select another system")) ->  | I8: Average Local Farmgate Price = R250/kg | J8: Tonnage per production cycle
E12: Applicant's Profile
E14: OPERATIONAL | F14: FARM | G14: SURETY | H14: FINANCING | I14: PERCENTAGE DEBT
E15: <Select Operational Status> | F15: <Do you already have a Farm?> | G15: <Do you already have a investor?> | H15: <Type of financing> | I15: <Select % to be financed through debt>
F16: =IF($E$15=Validation!H10,"If facility already exists, please change this option to YES"," ") -> 
E17: LENGTH OF PRODUCTION/ TARGET WEIGHT | F17: DO YOU HAVE ANY 1000m2 PONDS? IF YES, HOW MANY? | G17: SKILLS LEVEL
E18: 24 months/0.175kgs | F18: 0 | G18: <Please Select a Skills Level>
F19: =IF(AND($G$7="Pond Culture",CAPEX!H15<0),"WARNING: YOU HAVE SELECTED TOO MANY","") -> 
E21: Quick Facts
E23: Financial Aspects
E25: INTERNAL RATE OF RETURN | F25: PROFITABILITY INDEX/COST-BENEFIT RATIO | G25: LOAN AMOUNT FOR WORKING CAPITAL | H25: LOAN AMOUNT FOR INFRASTRUCTURE & FACILITY | I25: INTEREST RATE | J25: PAYBACK PERIOD
E26: =IF(G7="Pond culture",'IRR - Pond'!D20," Select a different system") -> Select a different system | F26: =IF(G7="Pond culture",'NPV & PI - Pond'!D20,"Please select different system") -> Please select different system | G26: =IF(G7="Pond culture",'Working Capital - Pond'!C39,"Please select a different system") -> Please select a different system | H26: =IF(G7="Pond culture",CAPEX!J39,"Please select different system") -> Please select different system | I26: =IF(H15="DEBT",RISK!C25,IF(H15="DEBT/EQUITY",RISK!C25,0)) -> 0 | J26: <Please select a payback period>
E28: Operational Aspects
E29: OPERATING PERMITS | G29: YEAR UNTIL PROFITABLE | H29: YEAR UNTIL +CASHFLOW | I29: FARM SIZE REQUIRED (ha) | J29: # OF EMPLOYEES REQUIRED IN FIRST YEAR
E30: =IF($J$7<Validation!B$22,'Production Assumptions'!$C$89,IF($J$7<Validation!$B$202,'Production Assumptions'!$C$90,'Production Assumptions'!$C$91)) -> National Permit with Risk Assessment PLUS Basic Assessment required | G30: =IF(G7="Pond culture",(INDEX('IS - Pond'!C4:N4,1,MATCH(0,'IS - Pond'!C47:N47,1)+1)),"Please select different system") -> Please select different system | H30: =IF(G7="Pond culture",(INDEX('CF - Pond'!C4:N4,1,MATCH(0,'CF - Pond'!C35:N35,1)+1)),"Please select different system") -> Please select different system | I30: =CAPEX!E12 ->  | J30: =IF(G7="Pond culture",HR!C10,"Please select a different system") -> Please select a different system
E32: Species Requirements
F34: OPTIMAL TEMPERATURE | G34: JUVENILE'S REQUIRED (MONTH 1) | H34: SURVIVAL RATE (24 MONTHS) | I34: OPTIMAL pH
F35: 21-24˚C | G35: ='Production Cycle'!B8 ->  | H35: ='Production Assumptions'!$C$18 -> 0.6 | I35: Between 6-9
F39: SALINITY | G39: OXYGEN | H39: NITRITE | I39: AMMONIA
F40: 100-200 mg/l | G40: More than 70% saturation mg/L | H40: Less than 5mg/l NO₂-N | I40: less than 2 mg/l NH₃-N
F43: *These figures and calculations are based on assumptions, please consult with a professional Aquaculture expert for more assistance and guidance before developing an aquaculture facility.

Sheet Built-In Assumptions
B1: Built-In Assumptions
D4: GENERAL ASSUMPTIONS
D5: CPI | E5: 0.051
D6: Business Tax | E6: 0.28
D7: Exchange rate $/R (20/01/2018) | E7: 12.17
D8: Water (per kl) for 2016/17 | E8: 0 | H8: *As per DAFF
D9: Facilities Electricity (per m²) | E9: 20.14
D10: System Electricity (per kWh) | E10: 1.09 | H10: *Eskom
D11: Minimum price of Security | E11: 800
D12: Minimum price of Insurance | E12: 50000
D13: Vet services (once every three months) if less than 10 tons is produced in a cycle | E13: 1500
D14: Health and safety apparel | E14: 500
D15: Stationary | E15: 100
D16: Cost of a juvenile | E16: 10 | H16: *Industry Experts
D17: Average sale price (per kg) | E17: 275 | H17: *Industry Experts
D18: Average feed price (per kg) | E18: 15 | H18: *Industry Experts
D19: Legal and Licencining Costs | E19: 250
D20: Fuel costs | E20: 13.9
D21: Fuel consumption 2 to 5 tonne bakkie (R/Km) | E21: 20
D22: Cost of Office Construction (per m²) | E22: 7350 | H22: *2017/18 Construction Industry Standards
D23: Cost of Storage Facilities (per m²) | E23: 4850 | H23: *2017/18 Construction Industry Standards
D24: Cost of Cold Storage (per m²) | E24: 14550 | H24: *2017/18 Construction Industry Standards
D25: Land price (Dry land crop) | E25: 246346 | H25: *2017/18 National Farm Sales Averages
D27: HUMAN RESOURCE ASSUMPTIONS
D28: Skills level | E28: Salary
D29: High skilled | E29: 22500 | H29: *Industry standard
D30: Medium skilled | E30: 10000 | H30: *Industry standard
D31: Low skilled | E31: 4000 | H31: *Industry standard

Sheet Validation (hidden)
B1: Tonnage | D1: Species | F1: Systems | H1: Markets
B2: <Please Select Tonnage> | D2: <Please Select a Species> | F2: <Please Select a System> | H2: <Please Select a Market>
B3: 1 | D3: Abalone | F3: Recirculation Aquaculture System (RAS) | H3: Local Markets
B4: 2 | D4: Catfish | F4: Aquaponics | H4: International Markets
B5: 3 | D5: Freshwater Ornamental | F5: Pond culture
B6: 4 | D6: Marine Ornamental | F6: Cage Culture
B7: 5 | D7: Marron | F7: Flow-Through | H7: Operational Status
B8: 6 | D8: Rainbow Trout | F8: Raceways | H8: <Select Operational Status>
B9: 7 | D9: Tilapia Mossambicus | H9: Start-Up
B10: 8 | D10: Tilapia Nile | H10: Existing
B11: 9
B12: 10 | F12: Skills level
B13: 11 | D13: Location | F13: <Please Select a Skills Level> | H13: Investor
B14: 12 | D14: <Please Select a Location> | F14: No skills in Aquaculture | H14: <Do you already have a investor?>
B15: 13 | D15: Eastern Cape | F15: Work experience (1-2 years) | H15: Yes
B16: 14 | D16: Gauteng | F16: Work experience (3-5 years) | H16: No
B17: 15 | D17: KwaZulu-Natal | F17: Work experience (over 5 years)
B18: 16 | D18: Limpopo | F18: Formal education (certificate, diploma, degrees)
B19: 17 | D19: Mpumalanga | H19: YEARS FOR LOAN
B20: 18 | D20: North West | H20: <Please select a payback period>
B21: 19 | D21: Northern Cape | F21: Existing Farm | H21: 1
B22: 20 | D22: The Free State | F22: <Do you already have a Farm?> | H22: =H21+1 -> 2
B23: 21 | D23: Western Cape | F23: Yes | H23: =H22+1 -> 3
B24: 22 | F24: No | H24: 4
B25: 23 | H25: 5
B26: 24 | D26: LOAN | H26: 6
B27: 25 | D27: <Type of financing> | F27: TUNNEL SYSTEM | H27: 7
B28: 26 | D28: Debt | F28: <Tunnel System?> | H28: 8
B29: 27 | D29: Equity | F29: Yes | H29: 9
B30: 28 | D30: Debt/Equity | F30: No | H30: 10
B31: 29 | F31: Existing Ras | H31: 11
B32: 30 | D32: NATURAL POND | F32: <Do you have an existing RAS system?> | H32: 12
B33: 31 | D33: <Will a natural pond be used?> | F33: Yes | H33: 13
B34: 32 | D34: Yes | F34: No | H34: 14
B35: 33 | D35: No | F35: PRICE INCREASE % | H35: 15
B36: 34 | F36: <Please select an appropriate selling price?> | H36: 16
B37: 35 | D37: Length of production/ target weight | F37: 100 | H37: 17
B38: 36 | D38: 24 months/0.175kgs | F38: 101 | H38: 18
B39: 37 | F39: 102 | H39: 19
B40: 38 | F40: 103 | H40: 20
B41: 39 | F41: 104 | H41: Percentage Debt
B42: 40 | F42: 105 | H42: <Select % to be financed through debt>
B43: 41 | F43: 106 | H43: 0.05
B44: 42 | F44: 107 | H44: 0.1
B45: 43 | F45: 108 | H45: 0.15
B46: 44 | F46: 109 | H46: 0.2
B47: 45 | F47: 110 | H47: 0.25
B48: 46 | F48: 111 | H48: 0.3
B49: 47 | F49: 112 | H49: 0.35
B50: 48 | F50: 113 | H50: 0.4
B51: 49 | F51: 114 | H51: 0.45
B52: 50 | F52: 115 | H52: 0.5
B53: 51 | F53: 116 | H53: 0.55
B54: 52 | D54: Existing RAS | F54: 117 | H54: 0.6
B55: 53 | D55: <Do you currently have a RAS system?> | F55: 118 | H55: 0.65
B56: 54 | D56: Yes | F56: 119 | H56: 0.7
B57: 55 | D57: No | F57: 120 | H57: 0.75
B58: 56 | D58: How many ponds? | F58: 121 | H58: 0.8
B59: 57 | D59: <Select the number of Ponds that you currently have?> | F59: 122 | H59: 0.85
B60: 58 | D60: 0 | F60: 123 | H60: 0.9
B61: 59 | D61: 1 | F61: 124 | H61: 0.95
B62: 60 | D62: 2 | F62: 125 | H62: 1
B63: 61 | D63: 3 | F63: 126
B64: 62 | D64: 4 | F64: 127
B65: 63 | D65: 5 | F65: 128
B66: 64 | D66: 6 | F66: 129
B67: 65 | D67: 7 | F67: 130
B68: 66 | D68: 8 | F68: 131
B69: 67 | D69: 9 | F69: 132
B70: 68 | D70: 10 | F70: 133
B71: 69 | D71: 11 | F71: 134
B72: 70 | D72: 12 | F72: 135
B73: 71 | D73: 13 | F73: 136
B74: 72 | D74: 14 | F74: 137
B75: 73 | D75: 15 | F75: 138
B76: 74 | D76: 16 | F76: 139
B77: 75 | D77: 17 | F77: 140
B78: 76 | D78: 18 | F78: 141
B79: 77 | D79: 19 | F79: 142
B80: 78 | D80: 20 | F80: 143
B81: 79 | D81: 21 | F81: 144
B82: 80 | D82: 22 | F82: 145
B83: 81 | D83: 23 | F83: 146
B84: 82 | D84: 24 | F84: 147
B85: 83 | D85: 25 | F85: 148
B86: 84 | D86: 26 | F86: 149
B87: 85 | D87: 27 | F87: 150
B88: 86 | D88: 28 | F88: 151
B89: 87 | D89: 29 | F89: 152
B90: 88 | D90: 30 | F90: 153
B91: 89 | D91: 31 | F91: 154
B92: 90 | D92: 32 | F92: 155
B93: 91 | D93: 33 | F93: 156
B94: 92 | D94: 34 | F94: 157
B95: 93 | D95: 35 | F95: 158
B96: 94 | D96: 36 | F96: 159
B97: 95 | D97: 37 | F97: 160
B98: 96 | D98: 38 | F98: 161
B99: 97 | D99: 39 | F99: 162
B100: 98 | D100: 40 | F100: 163
B101: 99 | D101: 41 | F101: 164
B102: 100 | D102: 42 | F102: 165
B103: 101 | D103: 43 | F103: 166
B104: 102 | D104: 44 | F104: 167
B105: 103 | D105: 45 | F105: 168
B106: 104 | D106: 46 | F106: 169
B107: 105 | D107: 47 | F107: 170
B108: 106 | D108: 48 | F108: 171
B109: 107 | D109: 49 | F109: 172
B110: 108 | D110: 50 | F110: 173
B111: 109 | D111: 51 | F111: 174
B112: 110 | D112: 52 | F112: 175
B113: 111 | D113: 53 | F113: 176
B114: 112 | D114: 54 | F114: 177
B115: 113 | D115: 55 | F115: 178
B116: 114 | D116: 56 | F116: 179
B117: 115 | D117: 57 | F117: 180
B118: 116 | D118: 58 | F118: 181
B119: 117 | D119: 59 | F119: 182
B120: 118 | D120: 60 | F120: 183
B121: 119 | F121: 184
B122: 120 | F122: 185
B123: 121 | F123: 186
B124: 122 | F124: 187
B125: 123 | F125: 188
B126: 124 | F126: 189
B127: 125 | F127: 190
B128: 126 | F128: 191
B129: 127 | F129: 192
B130: 128 | F130: 193
B131: 129 | F131: 194
B132: 130 | F132: 195
B133: 131 | F133: 196
B134: 132 | F134: 197
B135: 133 | F135: 198
B136: 134 | F136: 199
B137: 135 | F137: 200
B138: 136 | F138: 201
B139: 137 | F139: 202
B140: 138 | F140: 203
B141: 139 | F141: 204
B142: 140 | F142: 205
B143: 141 | F143: 206
B144: 142 | F144: 207
B145: 143 | F145: 208
B146: 144 | F146: 209
B147: 145 | F147: 210
B148: 146 | F148: 211
B149: 147 | F149: 212
B150: 148 | F150: 213
B151: 149 | F151: 214
B152: 150 | F152: 215
B153: 151 | F153: 216
B154: 152 | F154: 217
B155: 153 | F155: 218
B156: 154 | F156: 219
B157: 155 | F157: 220
B158: 156 | F158: 221
B159: 157 | F159: 222
B160: 158 | F160: 223
B161: 159 | F161: 224
B162: 160 | F162: 225
B163: 161 | F163: 226
B164: 162 | F164: 227
B165: 163 | F165: 228
B166: 164 | F166: 229
B167: 165 | F167: 230
B168: 166 | F168: 231
B169: 167 | F169: 232
B170: 168 | F170: 233
B171: 169 | F171: 234
B172: 170 | F172: 235
B173: 171 | F173: 236
B174: 172 | F174: 237
B175: 173 | F175: 238
B176: 174 | F176: 239
B177: 175 | F177: 240
B178: 176 | F178: 241
B179: 177 | F179: 242
B180: 178 | F180: 243
B181: 179 | F181: 244
B182: 180 | F182: 245
B183: 181 | F183: 246
B184: 182 | F184: 247
B185: 183 | F185: 248
B186: 184 | F186: 249
B187: 185 | F187: 250
B188: 186 | F188: 251
B189: 187 | F189: 252
B190: 188 | F190: 253
B191: 189 | F191: 254
B192: 190 | F192: 255
B193: 191 | F193: 256
B194: 192 | F194: 257
B195: 193 | F195: 258
B196: 194 | F196: 259
B197: 195 | F197: 260
B198: 196 | F198: 261
B199: 197 | F199: 262
B200: 198 | F200: 263
... 802 more rows

Sheet Production Assumptions
A1: Aquaculture - Marron Crayfish Production financial analysis
B3: GENERAL ASSUMPTIONS | E3: Pond Culture Assumptions
B4: CPI | C4: ='Built-In Assumptions'!E5 -> 0.051 | E4: Fertiliser (4,5Kgs) | G4: 165
B5: Number of weeks in a month | C5: 4 | E5: High quality disinfectant chemicals | G5: 100
B6: CPI in percentage | C6: =C4+1 -> 1.051 | E6: water treatment chemical 70% chlorine calcium hypochlorite | G6: =5000/12 -> 416.6666667
B7: Business Tax | C7: ='Built-In Assumptions'!E6 -> 0.28 | E7: Fertiliser used per pond (kgs/hectare) | G7: 500 | M7: 4 | N7: 5 | O7: 6 | P7: 7 | Q7: 8 | R7: 9 | S7: 10 | T7: 11 | U7: 12 | V7: 13 | W7: 14 | X7: 15 | Y7: 16 | Z7: 17 | AA7: 18 | AB7: 19 | AC7: 20 | AD7: 21 | AE7: 22 | AF7: 23 | AG7: 24
B8: Vet services (once every 3 months) | C8: =C78 -> 51000 | E8: Water requirement annually (liters) | F8: =((CAPEX!$D$16*CAPEX!$D$17*CAPEX!$D$18)*($C$27+$C$28+$C$29))+(CAPEX!$F$10) ->  | G8: =F8*C9 ->  | M8: 14.7 | N8: 16.7 | O8: 19.4 | P8: 20.1 | Q8: 22.1 | R8: 20.1 | S8: 12 | T8: 9.4 | U8: 8.2 | V8: 9.9 | W8: 8.5 | X8: 14.6 | Y8: 29.7 | Z8: 29.7 | AA8: 29.7 | AB8: 30.1 | AC8: 32 | AD8: 31.2 | AE8: 20.3 | AF8: 17.8 | AG8: 16.5
B9: Water (per kl) for 2015/16 | C9: 0 | D9: *As per DAFF | E9: POND_Water filling per month | F9: =IF(Interface!$F$7=Validation!$D$15,TEMPERATURE!$M$28,IF(Interface!$F$7=Validation!$D$16,TEMPERATURE!$M$21,IF(Interface!$F$7=Validation!$D$17,TEMPERATURE!$M$25,IF(Interface!$F$7=Validation!$D$19,TEMPERATURE!$M$24,IF(Interface!$F$7=Validation!$D$20,TEMPERATURE!$M$22,IF(Interface!$F$7=Validation!$D$21,TEMPERATURE!$M$27,IF(Interface!$F$7=Validation!$D$22,TEMPERATURE!$M$23,TEMPERATURE!$M$26))))))) ->  | X9: ='Production Assumptions'!L10 -> 0
B10: Water price increses by: (pa) | C10: 1.051 | E10: Artificial feed required for Pond | G10: 0.6
B11: Security | C11: ='Built-In Assumptions'!E11 -> 800 | E11: Pond refertilization | F11: 0
B12: Electricity (per kWh) | C12: ='Built-In Assumptions'!E10 -> 1.09 | D12: *Eskom | E12: Increase in electricity consumption | G12: 0.05
B13: Insurance | C13: ='Built-In Assumptions'!E12 -> 50000 | E13: water per cycle (m³) (2 years) | F13: =F8*2 -> 
B14: Average Sale price: R/kg | C14: ='Built-In Assumptions'!E17 -> 275 | E14: Electricity consumption (KwH) | F14: 0
B15: Cost of a juvenile | C15: ='Built-In Assumptions'!E16 -> 10 | D15: *Industry expert | E15: liters per cubic foot | F15: 28.3906
B16: Land price (Dry land crop) | C16: ='Built-In Assumptions'!E25 -> 246346 | D16: *Nationl average 2017/18 | E16: pond vol m³ | F16: =(CAPEX!D16*CAPEX!D17*CAPEX!D18) -> 1000
B17: number of days a week | C17: 7 | E17: Market size of marron (kg) | F17: 0.175
B18: Expected Survival % | C18: =1-C19 -> 0.6 | E18: Market price (kg) Live crayfish | F18: =(300+200)/2 -> 250
B19: Mortality rate (24 months) | C19: 0.4 | E19: Broodstock % | F19: 0.05
B20: Mortality rate (per month) | C20: =C19/24 -> 0.01666666667 | E20: Broodstock produced: (#of crayfish) | F20: ='Production Cycle'!Y11 -> 
E21: Broodstock ratio (male) | F21: 1
B22: Pond Stocking Densities & Requirements | E22: Broodstock ratio (female) | F22: 3
B23: Stocking number per pond (1+) | C23: =CAPEX!$D$15*'Production Assumptions'!$C$24 -> 3000 | E23: Number of females in broodstock | F23: =(F20/4)*3 -> 
B24: Density per m2 (1yr+ crayfish/m2) | C24: 3 | E24: # of viable juveniles per female | F24: 100
B25: Stocking number per pond (0+) | C25: =CAPEX!$D$15*C26 -> 4000 | E25: # of viable juveniles per broodstock (per year) | F25: =F23*F24 -> 
B26: Stocking density (0yr+ crayfish/m2) | C26: 4 | E26: Fertiliser per m2 | F26: =G7/10000 -> 0.05
B27: Number of ponds needed for 0+ | C27: =ROUNDUP('Production Cycle'!$B$8/'Production Assumptions'!$C$25,0) ->  | E27: Fertiliser per pond (kg) | F27: =F26*1000 -> 50
B28: Number of ponds needed for 1+ | C28: =ROUNDUP('Production Cycle'!$M$9/'Production Assumptions'!$C$23,0) ->  | E28: Weeks in a year | F28: 52.1775
B29: Number of ponds needed for broodstock | C29: =ROUNDUP('Production Cycle'!$Y$11/'Production Assumptions'!$C$23,0) ->  | E29: Pond_Electricity consumption (Kwh/hr) | F29: 0.11 | G29: =F29*C12 -> 0.1199
B30: Feed | C30: kg/year | E30: Pond_ Electricity consumption (Kwh/day) | G30: =G29*24 -> 2.8776
B31: Average Feed Price | C31: ='Built-In Assumptions'!E18 -> 15 | D31: *Industry standard in South Africa | E31: Pond_Electricity consumption (Kwh/month) | G31: =G30*30 -> 86.328
B32: Feed consumption per cycle (0+) | C32: =SUM('Production Cycle'!B24:M24) -> 
B33: Feed consumption per cycle (1+) | C33: =SUM('Production Cycle'!N24:Y24) -> 
B34: Feed per month (0+) | C34: =C32/12 -> 
B35: Feed per month (0+ and 1+) | C35: =(C32+C33)/12 -> 
B37: Supplemental pellet feeding is practiced in pond farming - same feed is used for all size classess & breeders. Feed is in relation to water temperature & biomass
B38: Marron Manual Feeding Chart
B39: Month | C39: 1 | D39: 2 | E39: 3
B40: Feed g/m²/week | C40: 6.8 | D40: 4.2 | E40: 6.7
B43: HUMAN RESOURCES | E43: Pond
B44: Skills level | C44: Salary | D44: No. of employees | E44: Ratio (person per ton) | F44: =Interface!$J$7 -> <Please Select Tonnage>
B45: High skilled | C45: ='Built-In Assumptions'!E29 -> 22500 | E45: 0.02 | F45: =(ROUNDDOWN(1+G45,0)) ->  | G45: =E45*$F$44 -> 
B46: Medium skilled | C46: ='Built-In Assumptions'!E30 -> 10000 | E46: 0.08 | F46: =(ROUNDDOWN(1+G46,0)) ->  | G46: =E46*$F$44 -> 
B47: Low skilled | C47: ='Built-In Assumptions'!E31 -> 4000 | E47: 0.25 | G47: =E47*$F$44 -> 
C48: =SUM(C45:C47) -> 36500 | E48: Number of people: | F48: =ROUNDDOWN(F47+F46+F45,0) -> 
B51: Assumption: Working Capital_POND
C52: Debtors Recovery Rate | D52: RateRecovery Period
C53: 12 | D53: 1
B55: Expected to 11 of the 12 months payments in present year and the llast month in the following
B56: year.
C57: YEAR 1 | D57: YEAR 2 | E57: YEAR 3 | F57: YEAR 4 | G57: YEAR 5 | H57: YEAR 6 | I57: YEAR 7 | J57: YEAR 8 | K57: YEAR 9 | L57: YEAR 10
B58: INCOME | C58: ='IS - Pond'!D7 -> 0 | D58: ='IS - Pond'!E7 ->  | E58: ='IS - Pond'!F7 ->  | F58: ='IS - Pond'!G7 ->  | G58: ='IS - Pond'!H7 ->  | H58: ='IS - Pond'!I7 ->  | I58: ='IS - Pond'!J7 ->  | J58: ='IS - Pond'!K7 ->  | K58: ='IS - Pond'!L7 ->  | L58: ='IS - Pond'!M7 -> 
B59: EFFECT ON CASH | C59: =(($C$53-$D$53)/$C$53*C58+($D$53/$C$53)*C61) -> 0
B60: DEBTORS | C60: =C58-C59 -> 0 | D60: =C60+D58-D59 ->  | E60: =D60+E58-E59 ->  | F60: =E60+F58-F59 ->  | H60: =G60+H58-H59 ->  | I60: =H60+I58-I59 ->  | J60: =I60+J58-J59 ->  | K60: =J60+K58-K59 ->  | L60: =K60+L58-L59 -> 
B64: Assumptions on costs and increases | E64: Assumptions on costs for water treatment
B65: Increase in Insurance | C65: 0.05
B66: Market size | C66: ='Production Cycle'!Y7 -> 0.175 | E66: water testing equipment - pH, temp, EC, DO combo meter | F66: =IF(Interface!$J$7<21,10000,30000) -> 30000
B67: Transport cost (local) | C67: =D96 ->  | E67: ~per year consumables | F67: 2000
B68: Telephone costs | C68: =IF(AND(Interface!$H$7=Validation!$H$4,Interface!$J$7<10),500,IF(AND(Interface!$H$7=Validation!$H$4,Interface!$J$7<100),1000,IF(AND(Interface!$H$7=Validation!$H$4,Interface!$J$7>100),2000,IF(AND(Interface!$H$7=Validation!$H$3,Interface!$J$7<10),250,IF(AND(Interface!$H$7=Validation!$H$3,Interface!$J$7<100),500,1000))))) -> 1000 | E68: Test kits for ammonia and nitrite | F68: 6000
B69: Juveniles after 3 years | C69: 0.1
B70: increase in transport cost | C70: 0.02
B71: Sumps and waste water treatment | C71: =IF(Interface!$J$7<10,500,IF(Interface!$J$7<100,1000,1500*(Interface!$J$7*0.015))) -> 
B72: increase in Sumps and waste water treatment | C72: 0.03 | E72: meter that includes ammonia and nitrogen | F72: 2957.49
B73: Legal & licencing | C73: ='Built-In Assumptions'!E19 -> 250
B74: Health and safety apparel | C74: ='Built-In Assumptions'!E14 -> 500
B75: stationary | C75: ='Built-In Assumptions'!E15 -> 100 | E75: Pond sizes
B76: Cleaning materials | C76: 1000 | E76: 2500 | F76: 15000 | G76: =E76*$C$24 -> 7500
B77: increase in cleaning materials | C77: 0.025 | E77: 5000 | F77: 25000 | G77: =E77*$C$24 -> 15000
B78: Vet Services | C78: =IF(Interface!$J$7<10,'Built-In Assumptions'!E13,IF(Interface!J7<100,5000*(1.2),50000*(1.02))) -> 51000
B79: Increase in vet services | C79: 0.01
B80: Bank Charges | C80: =1.9/100 -> 0.019 | D80: FNB | E80: Assumptions for construction costs:
B81: increase in charges | C81: 0.002 | E81: No blasting required and soft soils - (m3) | F81: =78*(1+0.1) -> 85.8
B82: Marketing | C82: =IF(Interface!$J$7<10,500,500*(1+(0.02*Interface!$J$7))) ->  | E82: Blasting per m² | F82: 19.48
B83: increase in marketing | C83: 0.01 | E83: Bentonite caly (m2) | F83: 30
B84: Percentage of variable costs kept as a reserve | C84: =IF(Interface!$J$7<4,0.01,0.02) -> 0.02 | E84: Total Construction m² | F84: =F82+F83 -> 49.48
B85: Transport cost (International) | C85: =D97 -> 
C86: 0.1
B88: Tonnages | C88: Permits | D88: Price
B89: Tons <20 | C89: National Permit with Risk Assessment required | D89: =(30000+40000)/2 -> 35000
B90: Tons <200 | C90: National Permit with Risk Assessment PLUS Basic Assessment required | D90: 200000
B91: Tons>200 | C91: National Permit with Risk Assessment PLUS Basic Assessment required | D91: =(300000+800000)/2 -> 550000
B94: 2kg Weight conversion - Fuel | C94: 1.46e-07
B95: Weight conversion - Fuel | C95: =C94/2 -> 7.3e-08
B96: Local Radius (KM) from farm (max) | C96: =IF(OR(Interface!$F$7=Validation!$D$15,Interface!$F$7=Validation!$D$16,Interface!$F$7=Validation!$D$23,Interface!$F$7=Validation!$D$17),120,IF(OR(Interface!$F$7=Validation!$D$18,Interface!$F$7=Validation!$D$19,Interface!$F$7=Validation!$D$20,Interface!$F$7=Validation!$D$22),180,200))*(Interface!$J$7/2) ->  | D96: =($C$99*$C$96)+($C$98*$C$95) -> 
B97: International Radius (KM) from farm (max) | C97: =IF(OR(Interface!$F$7=Validation!$D$15,Interface!$F$7=Validation!$D$16,Interface!$F$7=Validation!$D$23,Interface!$F$7=Validation!$D$17),240,IF(OR(Interface!$F$7=Validation!$D$18,Interface!$F$7=Validation!$D$19,Interface!$F$7=Validation!$D$20,Interface!$F$7=Validation!$D$22),350,500))*(Interface!$J$7/2) ->  | D97: =($C$99*$C$97)+($C$95*$C$98) -> 
B98: KGs of fish | C98: =Interface!$J$7*1000 -> 
B99: 2 to 5 tonne bakkie (R/Km) | C99: ='Built-In Assumptions'!E21 -> 20

Sheet TEMPERATURE (hidden)
A2: Temperature Data ( Average Max and Min Temperature per province in SA | D2: 29 | G2: Electricity
A3: Province | B3: Average Max Temperature (°C) | C3: Average Min Temperature (°C) | D3: AVG | E3: Electricity Cost Ratio | G3: Units No tunnel | H3: Cost no tunnel (R1.09/kWh) | I3: Units Tunnel | J3: Cost tunnel (R1.09/kWh)
A4: Limpopo | B4: 24.77 | C4: 15.99 | D4: =(B4+C4)/2 -> 20.38 | E4: =I4/$I$12 -> 1.115795237 | F4: =G4/$G$12 -> 1.115795237 | G4: =G5/D5*D4 -> 624.8453326 | H4: =G4*1.09 -> 681.0814125 | I4: =G4*95% -> 593.603066 | J4: =I4*1.09 -> 647.0273419
A5: Gauteng | B5: 21.44 | C5: 10.35 | D5: =(B5+C5)/2 -> 15.895 | E5: =I5/$I$12 -> 0.8702436354 | G5: =G6/D6*D5 -> 487.3364358 | H5: =G5*1.09 -> 531.196715 | I5: =G5*95% -> 462.969614 | J5: =I5*1.09 -> 504.6368793
A6: North West | B6: 23.73 | C6: 11.31 | D6: 17.52 | E6: 0.9592116069 | G6: 537.1584999 | H6: =G6*1.09 -> 585.5027649 | I6: 510.3005749 | J6: 556.2276266
A7: Free-State | B7: 23.33 | C7: 8.92 | D7: 16.125 | E7: 0.8828360252 | G7: 494.3881741 | H7: =G7*1.09 -> 538.8831098 | I7: 469.6687654 | J7: 511.9389543
A8: Mpumalanga | B8: 23.67 | C8: 14.91 | D8: 19.29 | E8: 1.056118259 | G8: 591.426225 | H8: 644.6545853 | I8: 561.8549138 | J8: 612.421856
A9: KZN | B9: 24.35 | C9: 16.91 | D9: 20.63 | E9: 1.129482617 | G9: 632.5102655 | H9: 689.4361894 | I9: 600.8847523 | J9: 654.96438
A10: Western Cape | B10: 23.05 | C10: 12.37 | D10: 17.71 | E10: 0.9696140159 | G10: 542.9838489 | H10: 591.8523953 | I10: 515.8346564 | J10: 562.2597755
A11: Northern Cape | B11: 27.66 | C11: 12.31 | D11: 19.985 | E11: =I11/$I$12 -> 1.094169176 | G11: =G12/D12*D11 -> 612.7347386 | H11: 667.880865 | I11: 582.0980016 | J11: 634.4868218
A12: Eastern Cape | B12: 22.13 | C12: 14.4 | D12: 18.265 | E12: =I12/I12 -> 1 | G12: 560 | H12: 610.4 | I12: 532 | J12: 579.88
E13: =SUM(E4:E12) -> 9.077470572 | G13: *Price - Eskom (commercial)
A14: The o optimal temperatures under which they thrive fall between 28°C and 30°C.
A15: NOTE: SA Weather Service - charge an hourly rate of R1 070
F18: Evaporation
F19: Province | G19: AVG /mm per day | H19: loss per day/litres | I19: loss per week/litres | J19: loss per month/litres | K19: loss per year/litres | L19: relative loss per annum | M19: relative loss per month
F20: Limpopo | G20: =(3+5)/2 -> 4 | H20: =(CAPEX!$D$16*CAPEX!$D$17*CAPEX!$D$18)*(TEMPERATURE!G20/1000) -> 4 | I20: =H20*'Production Assumptions'!$C$17 -> 28 | J20: =I20*'Production Assumptions'!$C$5 -> 112 | K20: =I20*'Production Assumptions'!$F$28 -> 1460.97 | L20: =K20/'Production Assumptions'!$F$8 ->  | M20: =J20/'Production Assumptions'!$F$8 -> 
F21: Gauteng | G21: =(4.5+6)/2 -> 5.25 | H21: =(CAPEX!$D$16*CAPEX!$D$17*CAPEX!$D$18)*(TEMPERATURE!G21/1000) -> 5.25 | I21: =H21*'Production Assumptions'!$C$17 -> 36.75 | J21: =I21*'Production Assumptions'!$C$5 -> 147 | K21: =I21*'Production Assumptions'!$F$28 -> 1917.523125 | L21: =K21/'Production Assumptions'!$F$8 ->  | M21: =J21/'Production Assumptions'!$F$8 -> 
F22: North West | G22: =(4+7)/2 -> 5.5 | H22: =(CAPEX!$D$16*CAPEX!$D$17*CAPEX!$D$18)*(TEMPERATURE!G22/1000) -> 5.5 | I22: =H22*'Production Assumptions'!$C$17 -> 38.5 | J22: =I22*'Production Assumptions'!$C$5 -> 154 | K22: =I22*'Production Assumptions'!$F$28 -> 2008.83375 | L22: =K22/'Production Assumptions'!$F$8 ->  | M22: =J22/'Production Assumptions'!$F$8 -> 
F23: Free-State | G23: =(4+6.5)/2 -> 5.25 | H23: =(CAPEX!$D$16*CAPEX!$D$17*CAPEX!$D$18)*(TEMPERATURE!G23/1000) -> 5.25 | I23: =H23*'Production Assumptions'!$C$17 -> 36.75 | J23: =I23*'Production Assumptions'!$C$5 -> 147 | K23: =I23*'Production Assumptions'!$F$28 -> 1917.523125 | L23: =K23/'Production Assumptions'!$F$8 ->  | M23: =J23/'Production Assumptions'!$F$8 -> 
F24: Mpumalanga | G24: =(0+5.5)/2 -> 2.75 | H24: =(CAPEX!$D$16*CAPEX!$D$17*CAPEX!$D$18)*(TEMPERATURE!G24/1000) -> 2.75 | I24: =H24*'Production Assumptions'!$C$17 -> 19.25 | J24: =I24*'Production Assumptions'!$C$5 -> 77 | K24: =I24*'Production Assumptions'!$F$28 -> 1004.416875 | L24: =K24/'Production Assumptions'!$F$8 ->  | M24: =J24/'Production Assumptions'!$F$8 -> 
F25: KZN | G25: =(3+5)/2 -> 4 | H25: =(CAPEX!$D$16*CAPEX!$D$17*CAPEX!$D$18)*(TEMPERATURE!G25/1000) -> 4 | I25: =H25*'Production Assumptions'!$C$17 -> 28 | J25: =I25*'Production Assumptions'!$C$5 -> 112 | K25: =I25*'Production Assumptions'!$F$28 -> 1460.97 | L25: =K25/'Production Assumptions'!$F$8 ->  | M25: =J25/'Production Assumptions'!$F$8 -> 
F26: Western Cape | G26: =(3+5)/2 -> 4 | H26: =(CAPEX!$D$16*CAPEX!$D$17*CAPEX!$D$18)*(TEMPERATURE!G26/1000) -> 4 | I26: =H26*'Production Assumptions'!$C$17 -> 28 | J26: =I26*'Production Assumptions'!$C$5 -> 112 | K26: =I26*'Production Assumptions'!$F$28 -> 1460.97 | L26: =K26/'Production Assumptions'!$F$8 ->  | M26: =J26/'Production Assumptions'!$F$8 -> 
F27: Northern Cape | G27: =(4.5+9)/2 -> 6.75 | H27: =(CAPEX!$D$16*CAPEX!$D$17*CAPEX!$D$18)*(TEMPERATURE!G27/1000) -> 6.75 | I27: =H27*'Production Assumptions'!$C$17 -> 47.25 | J27: =I27*'Production Assumptions'!$C$5 -> 189 | K27: =I27*'Production Assumptions'!$F$28 -> 2465.386875 | L27: =K27/'Production Assumptions'!$F$8 ->  | M27: =J27/'Production Assumptions'!$F$8 -> 
F28: Eastern Cape | G28: =(3+5.5)/2 -> 4.25 | H28: =(CAPEX!$D$16*CAPEX!$D$17*CAPEX!$D$18)*(TEMPERATURE!G28/1000) -> 4.25 | I28: =H28*'Production Assumptions'!$C$17 -> 29.75 | J28: =I28*'Production Assumptions'!$C$5 -> 119 | K28: =I28*'Production Assumptions'!$F$28 -> 1552.280625 | L28: =K28/'Production Assumptions'!$F$8 ->  | M28: =J28/'Production Assumptions'!$F$8 -> 
A46: *Department of Water Affairs, 2014

Sheet System Footprint
C2: Pond Space Requirements
C3: Infrastructure | D3: Space required m2 | E3: % added (space around/ between, for drainage, piping, roads etc as applicable) | F3: Total Space Required
C4: =CAPEX!C15 -> Grow-out containment number (m²) | D4: =((CAPEX!D16*CAPEX!D17)*2)*CAPEX!E15 ->  | E4: 1.2 | F4: =E4*D4 -> 
C5: =CAPEX!C6 -> StoreRooms (m²) | D5: =CAPEX!D6 -> 25 | E5: 1.2 | F5: =E5*D5 -> 30
C6: =CAPEX!C7 -> Offices (m²) | D6: =CAPEX!D7 ->  | E6: 1.2
C7: =CAPEX!C8 -> Cold storage (m²) | D7: =CAPEX!D8 -> 75 | E7: 1.2 | F7: 90
C8: =CAPEX!C9 -> Feed store (m²) | D8: =CAPEX!D9 -> 75 | E8: 1.2 | F8: =E8*D8 -> 90
C9: =CAPEX!C10 -> Storage Dam | D9: =CAPEX!F10 ->  | E9: 1.2 | F9: =E9*D9 -> 
C10: Total m2 | F10: =SUM(F4:F9) -> 
C11: Total Hectares Required | F11: =F10/10000 -> 

Sheet Production Cycle
A1: Aquaculture - Marron Crayfish Production financial analysis
A2: Marron Crayfish | O2: =(O8-N8)/O8 -> 
B3: 24 | C3: 23 | D3: 22 | E3: 21 | F3: 20 | G3: 19 | H3: 18 | I3: 17 | J3: 16 | K3: 15 | L3: 14 | M3: 13 | N3: 12 | O3: 11 | P3: 10 | Q3: 9 | R3: 8 | S3: 7 | T3: 6 | U3: 5 | V3: 4 | W3: 3 | X3: 2 | Y3: =Y10*Y7 -> 
B4: Growth rate up to harvest mass | Z4: Year 3
B5: Month 1 | C5: Month 2 | D5: Month 3 | E5: Month 4 | F5: Month 5 | G5: Month 6 | H5: Month 7 | I5: Month 8 | J5: Month 9 | K5: Month 10 | L5: Month 11 | M5: Month 12 | N5: Month 13 | O5: Month 14 | P5: Month 15 | Q5: Month 16 | R5: Month 17 | S5: Month 18 | T5: Month 19 | U5: Month 20 | V5: Month 21 | W5: Month 22 | X5: Month 23 | Y5: Month 24 | Z5: Month 25 | AA5: Month 26 | AB5: Month 27 | AC5: Month 28 | AD5: Month 29 | AE5: Month 30 | AF5: Month 31 | AG5: Month 32 | AH5: Month 33 | AI5: Month 34 | AJ5: Month 35 | AK5: Month 36
A6: Stocking (Batch)
A7: 1 | Y7: ='Production Assumptions'!F17 -> 0.175
A8: Numer of crayfish | B8: =B9 ->  | M8: =B8 ->  | Z8: =B8 -> 
A9: Batch 1 | B9: =C$9*(1+'Production Assumptions'!$C$20) ->  | C9: =D$9*(1+'Production Assumptions'!$C$20) ->  | D9: =E$9*(1+'Production Assumptions'!$C$20) ->  | E9: =F$9*(1+'Production Assumptions'!$C$20) ->  | F9: =G$9*(1+'Production Assumptions'!$C$20) ->  | G9: =H$9*(1+'Production Assumptions'!$C$20) ->  | H9: =I$9*(1+'Production Assumptions'!$C$20) ->  | I9: =J$9*(1+'Production Assumptions'!$C$20) ->  | J9: =K$9*(1+'Production Assumptions'!$C$20) ->  | K9: =L$9*(1+'Production Assumptions'!$C$20) ->  | L9: =M$9*(1+'Production Assumptions'!$C$20) ->  | M9: =N$9*(1+'Production Assumptions'!$C$20) ->  | N9: =O$9*(1+'Production Assumptions'!$C$20) ->  | O9: =P$9*(1+'Production Assumptions'!$C$20) ->  | P9: =Q$9*(1+'Production Assumptions'!$C$20) ->  | Q9: =R$9*(1+'Production Assumptions'!$C$20) ->  | R9: =S$9*(1+'Production Assumptions'!$C$20) ->  | S9: =T$9*(1+'Production Assumptions'!$C$20) ->  | T9: =U$9*(1+'Production Assumptions'!$C$20) ->  | U9: =V$9*(1+'Production Assumptions'!$C$20) ->  | V9: =W$9*(1+'Production Assumptions'!$C$20) ->  | W9: =X$9*(1+'Production Assumptions'!$C$20) ->  | X9: =Y$9*(1+'Production Assumptions'!$C$20) ->  | Y9: =SUM(Y10:Y11) ->  | Z9: =B9 ->  | AA9: =C9 -> 
A10: Sales Stock | Y10: =(Interface!$J$7*1000)/'Production Assumptions'!$F$17 -> 
A11: Broodstock | Y11: =Y10*'Production Assumptions'!$F$19 -> 
A12: Batch 2 | M12: =B9 ->  | N12: =C9 -> 
A13: Juveniles produced | B13: 0 | C13: 0 | D13: 0 | E13: 0 | F13: 0 | G13: 0 | H13: 0 | I13: 0 | J13: 0 | K13: 0 | L13: 0 | M13: 0 | N13: 0 | O13: 0 | P13: 0 | Q13: 0 | R13: 0 | S13: 0 | T13: 0 | U13: 0 | V13: 0 | W13: 0 | X13: 0 | Y13: 0 | Z13: 23743.57 | AA13: 23743.57 | AB13: 23743.57 | AC13: 23743.57 | AD13: 23743.57 | AE13: 23743.57 | AF13: 23743.57 | AG13: 23743.57 | AH13: 23743.57 | AI13: 23743.57 | AJ13: 23743.57 | AK13: 23743.57
A14: TOTAL | B14: =B9+B12 ->  | C14: =C9+C12 -> 
A16: Feed schedule
B17: month 1 | C17: month 2 | D17: month 3 | E17: month 4 | F17: month 5 | G17: month 6 | H17: month 7 | I17: month 8 | J17: month 9 | K17: month 10 | L17: month 11 | M17: month 12 | N17: month 13 | O17: month 14 | P17: month 15 | Q17: month 16 | R17: month 17 | S17: month 18 | T17: month 19 | U17: month 20 | V17: month 21 | W17: month 22 | X17: month 23 | Y17: month 24 | Z17: month 25 | AA17: month 26 | AB17: month 27 | AC17: month 28 | AD17: month 29 | AE17: month 30 | AF17: month 31 | AG17: month 32 | AH17: month 33 | AI17: month 34 | AJ17: month 35 | AK17: month 36
A18: kgs per pond Batch 1 | B18: ='Production Assumptions'!C40*'Production Assumptions'!$C$5*(CAPEX!$D$15)/1000 -> 27.2 | C18: ='Production Assumptions'!D40*'Production Assumptions'!$C$5*(CAPEX!$D$15)/1000 -> 16.8 | D18: ='Production Assumptions'!E40*'Production Assumptions'!$C$5*(CAPEX!$D$15)/1000 -> 26.8 | E18: ='Production Assumptions'!M8*'Production Assumptions'!$C$5*(CAPEX!$D$15)/1000 -> 58.8 | F18: ='Production Assumptions'!N8*'Production Assumptions'!$C$5*(CAPEX!$D$15)/1000 -> 66.8 | G18: ='Production Assumptions'!O8*'Production Assumptions'!$C$5*(CAPEX!$D$15)/1000 -> 77.6 | H18: ='Production Assumptions'!P8*'Production Assumptions'!$C$5*(CAPEX!$D$15)/1000 -> 80.4 | I18: ='Production Assumptions'!Q8*'Production Assumptions'!$C$5*(CAPEX!$D$15)/1000 -> 88.4 | J18: ='Production Assumptions'!R8*'Production Assumptions'!$C$5*(CAPEX!$D$15)/1000 -> 80.4 | K18: ='Production Assumptions'!S8*'Production Assumptions'!$C$5*(CAPEX!$D$15)/1000 -> 48 | L18: ='Production Assumptions'!T8*'Production Assumptions'!$C$5*(CAPEX!$D$15)/1000 -> 37.6 | M18: ='Production Assumptions'!U8*'Production Assumptions'!$C$5*(CAPEX!$D$15)/1000 -> 32.8 | N18: ='Production Assumptions'!V8*'Production Assumptions'!$C$5*(CAPEX!$D$15)/1000 -> 39.6 | O18: ='Production Assumptions'!W8*'Production Assumptions'!$C$5*(CAPEX!$D$15)/1000 -> 34 | P18: ='Production Assumptions'!X8*'Production Assumptions'!$C$5*(CAPEX!$D$15)/1000 -> 58.4 | Q18: ='Production Assumptions'!Y8*'Production Assumptions'!$C$5*(CAPEX!$D$15)/1000 -> 118.8 | R18: ='Production Assumptions'!Z8*'Production Assumptions'!$C$5*(CAPEX!$D$15)/1000 -> 118.8 | S18: ='Production Assumptions'!AA8*'Production Assumptions'!$C$5*(CAPEX!$D$15)/1000 -> 118.8 | T18: ='Production Assumptions'!AB8*'Production Assumptions'!$C$5*(CAPEX!$D$15)/1000 -> 120.4 | U18: ='Production Assumptions'!AC8*'Production Assumptions'!$C$5*(CAPEX!$D$15)/1000 -> 128 | V18: ='Production Assumptions'!AD8*'Production Assumptions'!$C$5*(CAPEX!$D$15)/1000 -> 124.8 | W18: ='Production Assumptions'!AE8*'Production Assumptions'!$C$5*(CAPEX!$D$15)/1000 -> 81.2 | X18: ='Production Assumptions'!AF8*'Production Assumptions'!$C$5*(CAPEX!$D$15)/1000 -> 71.2 | Y18: ='Production Assumptions'!AG8*'Production Assumptions'!$C$5*(CAPEX!$D$15)/1000 -> 66 | Z18: =B18 -> 27.2 | AA18: =C18 -> 16.8 | AB18: 26.8 | AC18: 58.8 | AD18: 66.8 | AE18: 77.6 | AF18: 80.4 | AG18: 88.4 | AH18: 80.4 | AI18: 48 | AJ18: 37.6 | AK18: 32.8
A19: kgs per pond Batch 2 | M19: ='Production Assumptions'!C40*'Production Assumptions'!$C$5*(CAPEX!$D$15)/1000 -> 27.2 | N19: ='Production Assumptions'!D40*'Production Assumptions'!$C$5*(CAPEX!$D$15)/1000 -> 16.8 | O19: ='Production Assumptions'!E40*'Production Assumptions'!$C$5*(CAPEX!$D$15)/1000 -> 26.8 | P19: ='Production Assumptions'!M8*'Production Assumptions'!$C$5*(CAPEX!$D$15)/1000 -> 58.8 | Q19: ='Production Assumptions'!N8*'Production Assumptions'!$C$5*(CAPEX!$D$15)/1000 -> 66.8 | R19: ='Production Assumptions'!O8*'Production Assumptions'!$C$5*(CAPEX!$D$15)/1000 -> 77.6 | S19: ='Production Assumptions'!P8*'Production Assumptions'!$C$5*(CAPEX!$D$15)/1000 -> 80.4 | T19: ='Production Assumptions'!Q8*'Production Assumptions'!$C$5*(CAPEX!$D$15)/1000 -> 88.4 | U19: ='Production Assumptions'!R8*'Production Assumptions'!$C$5*(CAPEX!$D$15)/1000 -> 80.4 | V19: ='Production Assumptions'!S8*'Production Assumptions'!$C$5*(CAPEX!$D$15)/1000 -> 48 | W19: ='Production Assumptions'!T8*'Production Assumptions'!$C$5*(CAPEX!$D$15)/1000 -> 37.6 | X19: ='Production Assumptions'!U8*'Production Assumptions'!$C$5*(CAPEX!$D$15)/1000 -> 32.8 | Y19: ='Production Assumptions'!V8*'Production Assumptions'!$C$5*(CAPEX!$D$15)/1000 -> 39.6 | Z19: ='Production Assumptions'!W8*'Production Assumptions'!$C$5*(CAPEX!$D$15)/1000 -> 34 | AA19: ='Production Assumptions'!X8*'Production Assumptions'!$C$5*(CAPEX!$D$15)/1000 -> 58.4 | AB19: ='Production Assumptions'!Y8*'Production Assumptions'!$C$5*(CAPEX!$D$15)/1000 -> 118.8 | AC19: ='Production Assumptions'!Z8*'Production Assumptions'!$C$5*(CAPEX!$D$15)/1000 -> 118.8 | AD19: ='Production Assumptions'!AA8*'Production Assumptions'!$C$5*(CAPEX!$D$15)/1000 -> 118.8 | AE19: ='Production Assumptions'!AB8*'Production Assumptions'!$C$5*(CAPEX!$D$15)/1000 -> 120.4 | AF19: ='Production Assumptions'!AC8*'Production Assumptions'!$C$5*(CAPEX!$D$15)/1000 -> 128 | AG19: ='Production Assumptions'!AD8*'Production Assumptions'!$C$5*(CAPEX!$D$15)/1000 -> 124.8 | AH19: ='Production Assumptions'!AE8*'Production Assumptions'!$C$5*(CAPEX!$D$15)/1000 -> 81.2 | AI19: ='Production Assumptions'!AF8*'Production Assumptions'!$C$5*(CAPEX!$D$15)/1000 -> 71.2 | AJ19: ='Production Assumptions'!AG8*'Production Assumptions'!$C$5*(CAPEX!$D$15)/1000 -> 66 | AK19: ='Production Assumptions'!AH8*'Production Assumptions'!$C$5*(CAPEX!$D$15)/1000 -> 0
A20: kgs per pond Brooding stock
A21: total feed batch 1 (kgs) | B21: =(B18*'Production Assumptions'!$C$27) ->  | C21: =(C18*'Production Assumptions'!$C$27) ->  | D21: =(D18*'Production Assumptions'!$C$27) ->  | E21: =(E18*'Production Assumptions'!$C$27) ->  | F21: =(F18*'Production Assumptions'!$C$27) ->  | G21: =(G18*'Production Assumptions'!$C$27) ->  | H21: =(H18*'Production Assumptions'!$C$27) ->  | I21: =(I18*'Production Assumptions'!$C$27) ->  | J21: =(J18*'Production Assumptions'!$C$27) ->  | K21: =(K18*'Production Assumptions'!$C$27) ->  | L21: =(L18*'Production Assumptions'!$C$27) ->  | M21: =(M18*'Production Assumptions'!$C$27) ->  | N21: =(N18*'Production Assumptions'!$C$28) ->  | O21: =(O18*'Production Assumptions'!$C$28) ->  | P21: =(P18*'Production Assumptions'!$C$28) ->  | Q21: =(Q18*'Production Assumptions'!$C$28) ->  | R21: =(R18*'Production Assumptions'!$C$28) ->  | S21: =(S18*'Production Assumptions'!$C$28) ->  | T21: =(T18*'Production Assumptions'!$C$28) ->  | U21: =(U18*'Production Assumptions'!$C$28) ->  | V21: =(V18*'Production Assumptions'!$C$28) ->  | W21: =(W18*'Production Assumptions'!$C$28) ->  | X21: =(X18*'Production Assumptions'!$C$28) ->  | Y21: =(Y18*'Production Assumptions'!$C$28) ->  | Z21: =(Z18*'Production Assumptions'!$C$28) ->  | AA21: =(AA18*'Production Assumptions'!$C$28) ->  | AB21: =(AB18*'Production Assumptions'!$C$28) ->  | AC21: =(AC18*'Production Assumptions'!$C$28) ->  | AD21: =(AD18*'Production Assumptions'!$C$28) ->  | AE21: =(AE18*'Production Assumptions'!$C$28) ->  | AF21: =(AF18*'Production Assumptions'!$C$28) ->  | AG21: =(AG18*'Production Assumptions'!$C$28) ->  | AH21: =(AH18*'Production Assumptions'!$C$28) ->  | AI21: =(AI18*'Production Assumptions'!$C$28) ->  | AJ21: =(AJ18*'Production Assumptions'!$C$28) ->  | AK21: =(AK18*'Production Assumptions'!$C$28) -> 
A22: total feed batch 2 (kgs) | M22: =M19*'Production Assumptions'!$C$27 ->  | N22: =N19*'Production Assumptions'!$C$27 ->  | O22: =O19*'Production Assumptions'!$C$27 ->  | P22: =P19*'Production Assumptions'!$C$27 ->  | Q22: =Q19*'Production Assumptions'!$C$27 ->  | R22: =R19*'Production Assumptions'!$C$27 ->  | S22: =S19*'Production Assumptions'!$C$27 ->  | T22: =T19*'Production Assumptions'!$C$27 ->  | U22: =U19*'Production Assumptions'!$C$27 ->  | V22: =V19*'Production Assumptions'!$C$27 ->  | W22: =W19*'Production Assumptions'!$C$27 ->  | X22: =X19*'Production Assumptions'!$C$27 ->  | Y22: =Y19*'Production Assumptions'!$C$27 ->  | Z22: =Z19*'Production Assumptions'!$C$27 ->  | AA22: =AA19*'Production Assumptions'!$C$27 ->  | AB22: =AB19*'Production Assumptions'!$C$27 ->  | AC22: =AC19*'Production Assumptions'!$C$27 ->  | AD22: =AD19*'Production Assumptions'!$C$27 ->  | AE22: =AE19*'Production Assumptions'!$C$27 ->  | AF22: =AF19*'Production Assumptions'!$C$27 ->  | AG22: =AG19*'Production Assumptions'!$C$27 ->  | AH22: =AH19*'Production Assumptions'!$C$27 ->  | AI22: =AI19*'Production Assumptions'!$C$27 ->  | AJ22: =AJ19*'Production Assumptions'!$C$27 ->  | AK22: =AK19*'Production Assumptions'!$C$27 -> 
A23: total feed broodstock (kgs) | Y23: =Y21*'Production Assumptions'!$F$19 ->  | Z23: =Y23 ->  | AA23: =Z23 -> 
A24: total feed (kgs) farm | B24: =SUM(B21:B23) ->  | C24: =SUM(C21:C23) ->  | N24: =SUM(N21:N23) -> 
A29: (2 stockings over 24months)
A30: Yield: individual mass/cray fish (g)
A32: Key: | C32: Harvest
C33: Tank maintenance and final harvest
C34: Re-stocking with next batch

Sheet HR (hidden)
A1: Aquaculture - Marron Crayfish Production financial analysis
B3: Pond
B4: LABOUR:
E5: YEAR 1 | Q5: 1 | R5: YEAR 2 | AE5: 2 | AG5: 3 | AI5: 4 | AK5: 5 | AM5: 6 | AO5: 7 | AQ5: 8 | AS5: 9
B6: Employees: | C6: Year 1 | D6: Annual Cost: Year 1 | E6: Month 1 | F6: Month 2 | G6: Month 3 | H6: Month 4 | I6: Month 5 | J6: Month 6 | K6: Month 7 | L6: Month 8 | M6: Month 9 | N6: Month 10 | O6: Month 11 | P6: Month 12 | Q6: Year 2: | R6: Month 1 | S6: Month 2 | T6: Month 3 | U6: Month 4 | V6: Month 5 | W6: Month 6 | X6: Month 7 | Y6: Month 8 | Z6: Month 9 | AA6: Month 10 | AB6: Month 11 | AC6: Month 12 | AD6: Annual Cost: Year 2 | AE6: Year 3: | AF6: Annual Cost: Year 3 | AG6: Year 4: | AH6: Annual Cost: Year 4 | AI6: Year 5 | AJ6: Annual Cost: Year 5 | AK6: Year 6 | AL6: Annual Cost: Year 6 | AM6: Year 7 | AN6: Annual Cost: Year 7 | AO6: Year 8 | AP6: Annual Cost: Year 8 | AQ6: Year 9 | AR6: Annual Cost: Year 9 | AS6: Year 10 | AT6: Annual Cost: Year 10
B7: Skilled Workers | C7: =P14 ->  | D7: =SUM(E7:P7) ->  | E7: ='Production Assumptions'!$C$45*D14 ->  | F7: ='Production Assumptions'!$C$45*E14 ->  | G7: ='Production Assumptions'!$C$45*F14 ->  | H7: ='Production Assumptions'!$C$45*G14 ->  | I7: ='Production Assumptions'!$C$45*H14 ->  | J7: ='Production Assumptions'!$C$45*I14 ->  | K7: ='Production Assumptions'!$C$45*J14 ->  | L7: ='Production Assumptions'!$C$45*K14 ->  | M7: ='Production Assumptions'!$C$45*L14 ->  | N7: ='Production Assumptions'!$C$45*M14 ->  | O7: ='Production Assumptions'!$C$45*N14 ->  | P7: ='Production Assumptions'!$C$45*O14 ->  | Q7: =Q14 ->  | R7: ='Production Assumptions'!$C$45*(1+0.058)*R14 ->  | S7: ='Production Assumptions'!$C$45*(1+0.058)*S14 ->  | T7: ='Production Assumptions'!$C$45*(1+0.058)*T14 ->  | U7: ='Production Assumptions'!$C$45*(1+0.058)*U14 ->  | V7: ='Production Assumptions'!$C$45*(1+0.058)*V14 ->  | W7: ='Production Assumptions'!$C$45*(1+0.058)*W14 ->  | X7: ='Production Assumptions'!$C$45*(1+0.058)*X14 ->  | Y7: ='Production Assumptions'!$C$45*(1+0.058)*Y14 ->  | Z7: ='Production Assumptions'!$C$45*(1+0.058)*Z14 ->  | AA7: ='Production Assumptions'!$C$45*(1+0.058)*AA14 ->  | AB7: ='Production Assumptions'!$C$45*(1+0.058)*AB14 ->  | AC7: ='Production Assumptions'!$C$45*(1+0.058)*AC14 ->  | AD7: =SUM(R7:AC7) ->  | AE7: =AD14 ->  | AF7: =$AD7*(1+0.058) ->  | AG7: =AE14 ->  | AH7: =$AD7*(1+0.058)^2 ->  | AI7: =AF14 ->  | AJ7: =$AD7*(1+0.058)^3 ->  | AK7: =AG14 ->  | AL7: =$AD7*(1+0.058)^4 ->  | AM7: =AH14 ->  | AN7: =$AD7*(1+0.058)^5 ->  | AO7: =AI14 ->  | AP7: =$AD7*(1+0.058)^6 ->  | AQ7: =AJ14 ->  | AR7: =$AD7*(1+0.058)^7 ->  | AS7: =AK14 ->  | AT7: =$AD7*(1+0.058)^8 -> 
B8: Medium Skilled | C8: =P15 ->  | D8: =SUM(E8:P8) ->  | E8: ='Production Assumptions'!$C$46*D15 ->  | F8: ='Production Assumptions'!$C$46*E15 ->  | G8: ='Production Assumptions'!$C$46*F15 ->  | H8: ='Production Assumptions'!$C$46*G15 ->  | I8: ='Production Assumptions'!$C$46*H15 ->  | J8: ='Production Assumptions'!$C$46*I15 ->  | K8: ='Production Assumptions'!$C$46*J15 ->  | L8: ='Production Assumptions'!$C$46*K15 ->  | M8: ='Production Assumptions'!$C$46*L15 ->  | N8: ='Production Assumptions'!$C$46*M15 ->  | O8: ='Production Assumptions'!$C$46*N15 ->  | P8: ='Production Assumptions'!$C$46*O15 ->  | Q8: =Q15 ->  | R8: ='Production Assumptions'!$C$46*(1+0.058)*R15 ->  | S8: ='Production Assumptions'!$C$46*(1+0.058)*S15 ->  | T8: ='Production Assumptions'!$C$46*(1+0.058)*T15 ->  | U8: ='Production Assumptions'!$C$46*(1+0.058)*U15 ->  | V8: ='Production Assumptions'!$C$46*(1+0.058)*V15 ->  | W8: ='Production Assumptions'!$C$46*(1+0.058)*W15 ->  | X8: ='Production Assumptions'!$C$46*(1+0.058)*X15 ->  | Y8: ='Production Assumptions'!$C$46*(1+0.058)*Y15 ->  | Z8: ='Production Assumptions'!$C$46*(1+0.058)*Z15 ->  | AA8: ='Production Assumptions'!$C$46*(1+0.058)*AA15 ->  | AB8: ='Production Assumptions'!$C$46*(1+0.058)*AB15 ->  | AC8: ='Production Assumptions'!$C$46*(1+0.058)*AC15 ->  | AD8: =SUM(R8:AC8) ->  | AE8: =AD15 ->  | AF8: =$AD8*(1+0.058) ->  | AG8: =AE15 ->  | AH8: =$AD8*(1+0.058)^2 ->  | AI8: =AF15 ->  | AJ8: =$AD8*(1+0.058)^3 ->  | AK8: =AG15 ->  | AL8: =$AD8*(1+0.058)^4 ->  | AM8: =AH15 ->  | AN8: =$AD8*(1+0.058)^5 ->  | AO8: =AI15 ->  | AP8: =$AD8*(1+0.058)^6 ->  | AQ8: =AJ15 ->  | AR8: =$AD8*(1+0.058)^7 ->  | AS8: =AK15 ->  | AT8: =$AD8*(1+0.058)^8 -> 
B9: Low Skilled | D9: =SUM(E9:P9) ->  | E9: ='Production Assumptions'!$C$47*D16 ->  | F9: ='Production Assumptions'!$C$47*E16 ->  | G9: ='Production Assumptions'!$C$47*F16 ->  | H9: ='Production Assumptions'!$C$47*G16 ->  | I9: ='Production Assumptions'!$C$47*H16 ->  | J9: ='Production Assumptions'!$C$47*I16 ->  | K9: ='Production Assumptions'!$C$47*J16 ->  | L9: ='Production Assumptions'!$C$47*K16 ->  | M9: ='Production Assumptions'!$C$47*L16 ->  | N9: ='Production Assumptions'!$C$47*M16 ->  | O9: ='Production Assumptions'!$C$47*N16 ->  | P9: ='Production Assumptions'!$C$47*O16 ->  | Q9: =Q16 ->  | R9: ='Production Assumptions'!$C$47*(1+0.058)*R16 ->  | S9: ='Production Assumptions'!$C$47*(1+0.058)*S16 ->  | T9: ='Production Assumptions'!$C$47*(1+0.058)*T16 ->  | U9: ='Production Assumptions'!$C$47*(1+0.058)*U16 ->  | V9: ='Production Assumptions'!$C$47*(1+0.058)*V16 ->  | W9: ='Production Assumptions'!$C$47*(1+0.058)*W16 ->  | X9: ='Production Assumptions'!$C$47*(1+0.058)*X16 ->  | Y9: ='Production Assumptions'!$C$47*(1+0.058)*Y16 ->  | Z9: ='Production Assumptions'!$C$47*(1+0.058)*Z16 ->  | AA9: ='Production Assumptions'!$C$47*(1+0.058)*AA16 ->  | AB9: ='Production Assumptions'!$C$47*(1+0.058)*AB16 ->  | AC9: ='Production Assumptions'!$C$47*(1+0.058)*AC16 ->  | AE9: =AD16 ->  | AG9: =AE16 ->  | AI9: =AF16 ->  | AM9: =AH16 ->  | AQ9: =AJ16 ->  | AS9: =AK16 -> 
C10: =P17 ->  | D10: =SUM(D7:D9) ->  | Q10: =SUM(Q7:Q9) ->  | AE10: =SUM(AE7:AE9) ->  | AG10: =SUM(AG7:AG9) ->  | AI10: =SUM(AI7:AI9) ->  | AK10: =AI10 ->  | AL10: =SUM(AL7:AL9) -> 
B12: HR | D12: =E5 -> YEAR 1 | P12: Year 1 | Q12: Year 2: | R12: =R5 -> YEAR 2
B13: No. of Employees: | D13: =E6 -> Month 1 | E13: =F6 -> Month 2 | F13: Month 3 | G13: Month 4 | H13: Month 5 | I13: Month 6 | J13: Month 7 | K13: Month 8 | L13: Month 9 | M13: Month 10 | N13: Month 11 | O13: Month 12 | R13: =R6 -> Month 1 | S13: =S6 -> Month 2 | T13: Month 3 | U13: Month 4 | V13: Month 5 | W13: Month 6 | X13: Month 7 | Y13: Month 8 | Z13: Month 9 | AA13: Month 10 | AB13: Month 11 | AC13: Month 12 | AD13: Year 3: | AE13: Year 4: | AF13: Year 5 | AG13: Year 6 | AH13: Year 7 | AI13: Year 8 | AJ13: Year 9 | AK13: Year 10
B14: Managers: | C14: =B7 -> Skilled Workers | D14: ='Production Assumptions'!$F$45 ->  | E14: ='Production Assumptions'!$F$45 ->  | F14: ='Production Assumptions'!$F$45 ->  | G14: ='Production Assumptions'!$F$45 ->  | H14: ='Production Assumptions'!$F$45 ->  | I14: ='Production Assumptions'!$F$45 ->  | J14: ='Production Assumptions'!$F$45 ->  | K14: ='Production Assumptions'!$F$45 ->  | L14: ='Production Assumptions'!$F$45 ->  | M14: ='Production Assumptions'!$F$45 ->  | N14: ='Production Assumptions'!$F$45 ->  | O14: ='Production Assumptions'!$F$45 ->  | P14: =$O$14 ->  | Q14: =$AC$14 ->  | R14: ='Production Assumptions'!$F$45 ->  | S14: ='Production Assumptions'!$F$45 ->  | T14: ='Production Assumptions'!$F$45 ->  | U14: ='Production Assumptions'!$F$45 ->  | V14: ='Production Assumptions'!$F$45 ->  | W14: ='Production Assumptions'!$F$45 ->  | X14: ='Production Assumptions'!$F$45 ->  | Y14: ='Production Assumptions'!$F$45 ->  | Z14: ='Production Assumptions'!$F$45 ->  | AA14: ='Production Assumptions'!$F$45 ->  | AB14: ='Production Assumptions'!$F$45 ->  | AC14: ='Production Assumptions'!$F$45 ->  | AD14: =AC14 ->  | AE14: =AD14 -> 
B15: Staff: | C15: =B8 -> Medium Skilled | D15: ='Production Assumptions'!$F$46 ->  | E15: ='Production Assumptions'!$F$46 ->  | F15: ='Production Assumptions'!$F$46 ->  | G15: ='Production Assumptions'!$F$46 ->  | H15: ='Production Assumptions'!$F$46 ->  | I15: ='Production Assumptions'!$F$46 ->  | J15: ='Production Assumptions'!$F$46 ->  | K15: ='Production Assumptions'!$F$46 ->  | L15: ='Production Assumptions'!$F$46 ->  | M15: ='Production Assumptions'!$F$46 ->  | N15: ='Production Assumptions'!$F$46 ->  | O15: ='Production Assumptions'!$F$46 ->  | P15: =O15 ->  | Q15: =AC15 ->  | R15: ='Production Assumptions'!$F$46 ->  | S15: ='Production Assumptions'!$F$46 ->  | T15: ='Production Assumptions'!$F$46 ->  | U15: ='Production Assumptions'!$F$46 ->  | V15: ='Production Assumptions'!$F$46 ->  | W15: ='Production Assumptions'!$F$46 ->  | X15: ='Production Assumptions'!$F$46 ->  | Y15: ='Production Assumptions'!$F$46 ->  | Z15: ='Production Assumptions'!$F$46 ->  | AA15: ='Production Assumptions'!$F$46 ->  | AB15: ='Production Assumptions'!$F$46 ->  | AC15: ='Production Assumptions'!$F$46 ->  | AD15: =AC15 ->  | AE15: =AD15 -> 
B16: Staff: | C16: =B9 -> Low Skilled | D16: ='Production Assumptions'!$F$47 ->  | E16: ='Production Assumptions'!$F$47 ->  | F16: ='Production Assumptions'!$F$47 ->  | G16: ='Production Assumptions'!$F$47 ->  | H16: ='Production Assumptions'!$F$47 ->  | I16: ='Production Assumptions'!$F$47 ->  | J16: ='Production Assumptions'!$F$47 ->  | K16: ='Production Assumptions'!$F$47 ->  | L16: ='Production Assumptions'!$F$47 ->  | M16: ='Production Assumptions'!$F$47 ->  | N16: ='Production Assumptions'!$F$47 ->  | O16: ='Production Assumptions'!$F$47 ->  | P16: =O16 ->  | Q16: =AC16 ->  | R16: ='Production Assumptions'!$F$47 ->  | S16: ='Production Assumptions'!$F$47 ->  | T16: ='Production Assumptions'!$F$47 ->  | U16: ='Production Assumptions'!$F$47 ->  | V16: ='Production Assumptions'!$F$47 ->  | W16: ='Production Assumptions'!$F$47 ->  | X16: ='Production Assumptions'!$F$47 ->  | Y16: ='Production Assumptions'!$F$47 ->  | Z16: ='Production Assumptions'!$F$47 ->  | AA16: ='Production Assumptions'!$F$47 ->  | AB16: ='Production Assumptions'!$F$47 ->  | AC16: ='Production Assumptions'!$F$47 ->  | AD16: =AC16 ->  | AE16: =AD16 -> 
B17: Total: | D17: ='Production Assumptions'!F48 ->  | E17: =SUM(E14:E16) ->  | P17: =SUM(P14:P16) ->  | Q17: =SUM(Q14:Q16) ->  | AD17: =SUM(AD14:AD16) -> 

Sheet CAPEX
A1: Aquaculture - Marron Crayfish Production financial analysis
C3: Pond
C4: Item | D4: Units | E4: Number of units | F4: RATIOS or capacity per month | G4: Price per Unit (R) | H4: TONS | I4: TOTAL | J4: TOTAL: WITH Increases in tonnage
C5: 1. Infrastructure | J5: =SUM(J6:J10) -> 
C6: StoreRooms (m²) | D6: =IF(Interface!$J$7<10,(3*5),(5*5)) -> 25 | E6: 1 | F6: =IF(Interface!$J$7<10,1,1.01) -> 1.01 | G6: ='Built-In Assumptions'!E23 -> 4850 | H6: =Interface!$J$7 -> <Please Select Tonnage> | I6: =G6*D6*F6 -> 122462.5 | J6: =IF(Interface!$E$15="EXISTING",0,I6) -> 122462.5
C7: Offices (m²) | D7: =IF(HR!C7<=4,(HR!C7*25),(HR!C7/2)*25) ->  | E7: 1 | F7: 1 | G7: ='Built-In Assumptions'!E22 -> 7350 | H7: =Interface!$J$7 -> <Please Select Tonnage> | I7: =G7*D7*F7 ->  | J7: =IF(Interface!$E$15="EXISTING",0,I7) -> 
C8: Cold storage (m²) | D8: =IF(Interface!$J$7<5,0,IF(Interface!$J$7<50,(4*5),IF(Interface!$J$7<101,(6*5),IF(Interface!$J$7<201,(8*5),IF(Interface!$J$7<401,(10*5),IF(Interface!$J$7<601,(12*5),IF(Interface!$J$7<801,(14*5),(15*5)))))))) -> 75 | E8: 1 | F8: =IF(Interface!$J$7<11,0,IF(Interface!$J$7<15,1,(1))) -> 1 | G8: ='Built-In Assumptions'!E24 -> 14550 | H8: =Interface!$J$7 -> <Please Select Tonnage> | I8: =G8*D8*F8 -> 1091250 | J8: =IF(Interface!$E$15="EXISTING",0,I8) -> 1091250
C9: Feed store (m²) | D9: =IF(Interface!$J$7<5,0,IF(Interface!$J$7<50,(4*5),IF(Interface!$J$7<101,(6*5),IF(Interface!$J$7<201,(8*5),IF(Interface!$J$7<401,(10*5),IF(Interface!$J$7<601,(12*5),IF(Interface!$J$7<801,(14*5),(15*5)))))))) -> 75 | E9: 1 | F9: =IF(Interface!$J$7<11,0,IF(Interface!$J$7<15,1,(1))) -> 1 | G9: ='Built-In Assumptions'!E23 -> 4850 | H9: =Interface!$J$7 -> <Please Select Tonnage> | I9: =G9*D9*F9 -> 363750 | J9: =IF(Interface!$E$15="EXISTING",0,I9) -> 363750
C10: Storage Dam | D10: =IF(Interface!J7<20,0.3,0.1) -> 0.1 | E10: =((D16*D17*D18)*E15)*10% ->  | F10: =E10*D10 ->  | G10: =86 -> 86 | I10: =F10*G10 ->  | J10: =IF(Interface!$E$15="EXISTING",0,I10) -> 
C11: 2. Land | J11: =SUM(J12:J13) -> 
C12: Land (ha) | D12: 1 | E12: =IF(Interface!$J$7<=5,1.5,1+'System Footprint'!F11) ->  | G12: 246346 | H12: =Interface!$J$7 -> <Please Select Tonnage> | I12: =G12*E12*D12 ->  | J12: =IF(Interface!F15="YES",0,I12) -> 
C13: Basic site clearing/levelling | D13: 1 | E13: =D6+D7+D8+D9 ->  | G13: 1000 | H13: =Interface!$J$7 -> <Please Select Tonnage> | I13: =G13*E13*D13 ->  | J13: =IF(Interface!F16="YES",0,I13) -> 
C14: 3. Equipment | J14: =IF(J15<0,J19+J20+J21+J25+J26,J15+J19+J21+J20+J25+J26+J27+J28) -> 
C15: Grow-out containment number (m²) | D15: 1000 | E15: =IF(Interface!F18=0,'Production Assumptions'!C27+'Production Assumptions'!$C$28+'Production Assumptions'!$C$29,'Production Assumptions'!C27+'Production Assumptions'!$C$28+'Production Assumptions'!$C$29-Interface!F18) ->  | F15: 1 | G15: =('Production Assumptions'!$F$84*CAPEX!$D$15) -> 49480 | H15: =Interface!$J$7 -> <Please Select Tonnage> | I15: =E15*G15 ->  | J15: =IF(Interface!F18>Validation!D60,(-Interface!F18+CAPEX!$E$15)*CAPEX!$G$15,I15) -> 
C16: ~ Pond width (m) | D16: 25
C17: ~ Pond length (m) | D17: 32
C18: ~ Pond depth (ave) (m) | D18: 1.25
C19: Water quality testing equipment | D19: 1 | E19: 1 | F19: 1 | G19: =IF(Interface!$J$7<Validation!$B$22,'Production Assumptions'!$F$66,'Production Assumptions'!$F$66+'Production Assumptions'!$F$72) -> 32957.49 | H19: 1 | I19: =G19*E19*F19 -> 32957.49 | J19: =IF(Interface!$E$15="EXISTING",0,I19) -> 32957.49
C20: Electrial infrastructure (m) | D20: =(D6+D7+D8) ->  | E20: 1 | F20: 1 | G20: 500 | H20: =Interface!$J$7 -> <Please Select Tonnage> | I20: =G20*D20 ->  | J20: =IF(Interface!$E$15="EXISTING",0,I20) -> 
C21: Remote pumping & piping | D21: 1 | E21: 0 | H21: =Interface!$J$7 -> <Please Select Tonnage> | I21: =SUM(I22:I24) ->  | J21: =IF(Interface!$E$15="EXISTING",0,I21) -> 
C22: Pond inlet (90mm high pressure PVC) | D22: =($E$15*$D$16)+(($E$15*3)+100)+($E$15*$D$16)+(($E$15*3)+100)*0.05 ->  | G22: 40 | I22: =D22*G22 -> 
C23: Pond drain/outlet (110mm 90mm high pressure PVC) | D23: =($E$15*$D$16)+(($E$15*3)+100)+($E$15*$D$16)+(($E$15*3)+100)*0.05 ->  | G23: 60 | I23: =D23*G23 -> 
C24: Air piping (30mm irigation piping) | D24: =D18*3*E15*0.8 ->  | G24: 15
C25: Collection/settlement sump | D25: =$E$15*($D$16*$D$17*$D$18)*0.02 ->  | E25: 1 | F25: 1 | G25: 120 | H25: =Interface!$J$7 -> <Please Select Tonnage> | I25: =G25*D25 ->  | J25: =IF(Interface!$E$15="EXISTING",0,I25) -> 
C26: Constructive reed bed | D26: =$E$15*($D$16*$D$17*$D$18)*0.02 ->  | G26: =G25/2 -> 60 | I26: =G26*D26 ->  | J26: =IF(Interface!$E$15="EXISTING",0,I26) -> 
C27: Airlift pipe (m) | D27: =($D$17*3)*$E$15*0.8 ->  | E27: 1 | F27: 1 | G27: 60 | H27: =Interface!$J$7 -> <Please Select Tonnage> | I27: =G27*D27 ->  | J27: =IF(Interface!$E$15="EXISTING",0,I27) -> 
C28: Hides/shelters | D28: 150 | E28: =D28*E15*2.5 ->  | F28: 1 | G28: =36/3 -> 12 | H28: =Interface!$J$7 -> <Please Select Tonnage> | I28: =G28*E28*F28 ->  | J28: =IF(Interface!$E$15="EXISTING",0,I28) -> 
C29: 4. Other equipment | J29: =SUM(J30:J38) -> 
C30: Bird netting (R/m²) | D30: =E15*((D16)*(D17)) ->  | E30: =E15 ->  | F30: 1 | G30: 18 | H30: =Interface!$J$7 -> <Please Select Tonnage> | I30: =D30*G30 ->  | J30: =IF(Interface!$E$15="EXISTING",0,I30) -> 
C31: Baffle Fence (R/m²) | D31: =(2*D16)+(D17) -> 82 | E31: =E15 ->  | G31: 75 | H31: =Interface!$J$7 -> <Please Select Tonnage> | I31: =G31*D31*E31 ->  | J31: =IF(Interface!$E$15="EXISTING",0,I31) -> 
C32: Purging Tank (300 vol.) | D32: 300 | E32: =(('Production Cycle'!$Y$10*'Production Cycle'!$Y$7)/$E$15) ->  | F32: =ROUNDUP(E32/100,0) ->  | G32: 1000 | I32: =G32*F32 ->  | J32: =IF(Interface!$E$15="EXISTING",0,I32) -> 
C33: Freezer | D33: =IF(Interface!$J$7<11,1,0) -> 0 | E33: 0 | F33: 0 | G33: 4600 | H33: =Interface!$J$7 -> <Please Select Tonnage> | I33: =G33*D33 -> 0 | J33: =IF(Interface!$E$15="EXISTING",0,I33) -> 0
C34: Harvesting net | D34: 1 | E34: 1 | F34: 1 | G34: 39.9555 | H34: =ROUNDUP(Interface!$J$7/5,0) ->  | I34: =((E34*F34)*(H34))*G34 ->  | J34: =IF(Interface!$E$15="EXISTING",0,I34) -> 
C35: Office equipment | D35: =ROUNDUP(($D$7/9),0) ->  | G35: 6000 | I35: =G35*D35 ->  | J35: =IF(Interface!$E$15="EXISTING",0,I35) -> 
C36: Short/long handle Hand net | D36: 1 | E36: 1 | F36: 1 | G36: 216 | H36: =ROUNDUP(Interface!$J$7/5,0) ->  | I36: =((E36*F36)*(H36))*G36 ->  | J36: =IF(Interface!$E$15="EXISTING",0,I36) -> 
C37: Air blower (4,1kw) (1 per 10 ponds, 1 spare) | D37: =(ROUNDUP((E15/10),0))+1 ->  | E37: 1 | F37: 1 | G37: 20000 | H37: =Interface!$J$7 -> <Please Select Tonnage> | I37: =G37*D37 ->  | J37: =IF(Interface!$E$15="EXISTING",0,I37) -> 
C38: Vehicle | D38: =IF(Interface!$J$7<11,0,IF(Interface!$J$7<101,1,IF(Interface!$J$7<201,2,IF(Interface!$J$7<301,3,4)))) -> 4 | E38: 0 | G38: 200000 | H38: =Interface!$J$7 -> <Please Select Tonnage> | I38: =G38*D38 -> 800000 | J38: =IF(Interface!$E$15="EXISTING",0,I38) -> 800000
C39: TOTAL EXCLUDING Working Capital | J39: =J29+J5+J11+J14 -> 

Sheet OPEX - Pond
A1: Aquaculture - Marron Crayfish Production financial analysis
P2: 1 | AB2: 1 | AC2: 2 | AO2: 2 | AP2: 3 | AQ2: 4 | AR2: 5 | AS2: 6 | AT2: 7 | AU2: 8 | AV2: 9
C3: YEAR 1 | D3: =C3 -> YEAR 1 | P3: YEAR 2 | Q3: Year 2 | AC3: YEAR 3 | AD3: Year 3 | AP3: YEAR 4 | AQ3: YEAR 5 | AR3: YEAR 6 | AS3: YEAR 7 | AT3: YEAR 8 | AU3: YEAR 9 | AV3: YEAR 10
D4: Month 1 | E4: Month 2 | F4: Month 3 | G4: Month 4 | H4: Month 5 | I4: Month 6 | J4: Month 7 | K4: Month 8 | L4: Month 9 | M4: Month 10 | N4: Month 11 | O4: Month 12 | Q4: Month 1 | R4: Month 2 | S4: Month 3 | T4: Month 4 | U4: Month 5 | V4: Month 6 | W4: Month 7 | X4: Month 8 | Y4: Month 9 | Z4: Month 10 | AA4: Month 11 | AB4: Month 12 | AD4: Month 1 | AE4: Month 2 | AF4: Month 3 | AG4: Month 4 | AH4: Month 5 | AI4: Month 6 | AJ4: Month 7 | AK4: Month 8 | AL4: Month 9 | AM4: Month 10 | AN4: Month 11 | AO4: Month 12
B5: Income from Sales:
B6: Marron (Live, Fresh, frozen) | C6: =SUM(D6:O6) -> 0 | D6: 0 | E6: 0 | F6: 0 | G6: 0 | H6: 0 | I6: 0 | J6: 0 | K6: 0 | L6: 0 | M6: 0 | N6: 0 | O6: 0 | P6: =SUM(Q6:AB6) ->  | Q6: 0 | R6: 0 | S6: 0 | T6: 0 | U6: 0 | V6: 0 | W6: 0 | X6: 0 | Y6: 0 | Z6: =AB6 ->  | AA6: =AB6 ->  | AB6: =(('Production Cycle'!$Y$10*('Production Cycle'!$Y$7*'Production Assumptions'!$C$6))*Interface!$I$7)/3 ->  | AC6: =SUM(AD6:AO6) ->  | AD6: =Q6 -> 0 | AE6: =R6 -> 0 | AF6: 0 | AG6: 0 | AH6: 0 | AI6: 0 | AJ6: 0 | AK6: 0 | AL6: 0 | AM6: =Z6*'Production Assumptions'!$C$6 ->  | AN6: =AA6*'Production Assumptions'!$C$6 ->  | AO6: =$AB$6*'Production Assumptions'!$C$6 ->  | AP6: =($AC$6)*('Production Assumptions'!$C$6) ->  | AQ6: =($AC$6)*('Production Assumptions'!$C$6)^AQ2 ->  | AR6: =($AC$6)*('Production Assumptions'!$C$6)^AR2 ->  | AS6: =($AC$6)*('Production Assumptions'!$C$6)^AS2 ->  | AT6: =($AC$6)*('Production Assumptions'!$C$6)^AT2 ->  | AU6: =($AC$6)*('Production Assumptions'!$C$6)^AU2 ->  | AV6: =($AC$6)*('Production Assumptions'!$C$6)^AV2 ->  | AW6: =AV6/AU6 -> 
B7: TOTAL INCOME: | C7: =SUM(D7:O7) -> 0 | D7: =SUM(D6:D6) -> 0 | E7: 0 | F7: 0 | G7: 0 | H7: 0 | I7: 0 | J7: 0 | K7: 0 | L7: 0 | M7: 0 | N7: 0 | O7: 0 | Q7: 0 | R7: 0 | S7: 0 | T7: 0 | U7: 0 | V7: 0 | W7: 0 | X7: 0 | Y7: 0 | Z7: =SUM(Z6:Z6) ->  | AC7: =SUM(AC6:AC6) ->  | AD7: =SUM(AD6) -> 0 | AE7: =SUM(AE6) -> 0 | AF7: 0 | AG7: 0 | AH7: 0 | AI7: 0 | AJ7: 0 | AK7: 0 | AL7: 0 | AW7: =AV7/AU7 -> 
B9: VARIABLE COSTS:
B10: Fingerling | C10: =SUM(D10:O10) ->  | D10: =(('Production Cycle'!$B$8)*'Production Assumptions'!$C$15) ->  | E10: 0 | F10: 0 | G10: 0 | H10: 0 | I10: 0 | J10: 0 | K10: 0 | L10: 0 | M10: 0 | N10: 0 | O10: 0 | P10: =SUM(Q10:AB10) ->  | Q10: =('Production Cycle'!M8*'Production Assumptions'!C15)*'Production Assumptions'!$C$6 ->  | R10: =$O$10*('Production Assumptions'!$C$6) -> 0 | S10: =$O$10*('Production Assumptions'!$C$6) -> 0 | T10: =$O$10*('Production Assumptions'!$C$6) -> 0 | U10: =$O$10*('Production Assumptions'!$C$6) -> 0 | V10: =$O$10*('Production Assumptions'!$C$6) -> 0 | W10: =$O$10*('Production Assumptions'!$C$6) -> 0 | X10: =$O$10*('Production Assumptions'!$C$6) -> 0 | Y10: =$O$10*('Production Assumptions'!$C$6) -> 0 | Z10: =$O$10*('Production Assumptions'!$C$6) -> 0 | AA10: =$O$10*('Production Assumptions'!$C$6) -> 0 | AB10: =$O$10*('Production Assumptions'!$C$6) -> 0 | AC10: =SUM(AD10:AO10) ->  | AD10: =('Production Cycle'!$B$8*'Production Assumptions'!$C$69)*('Production Assumptions'!C15*('Production Assumptions'!$C$6^'OPEX - Pond'!$AC$2)) ->  | AE10: 0 | AF10: 0 | AG10: 0 | AH10: 0 | AI10: 0 | AJ10: 0 | AK10: 0 | AL10: 0 | AM10: 0 | AN10: 0 | AO10: 0 | AP10: =$AD$10*'Production Assumptions'!$C$6 ->  | AQ10: =$AD$10*'Production Assumptions'!$C$6^$AC$2 ->  | AR10: =$AD$10*'Production Assumptions'!$C$6^AP2 ->  | AS10: =$AD$10*'Production Assumptions'!$C$6^AQ2 ->  | AT10: =$AD$10*'Production Assumptions'!$C$6^AR2 ->  | AU10: =$AD$10*'Production Assumptions'!$C$6^AS2 ->  | AV10: =$AD$10*'Production Assumptions'!$C$6^AT2 -> 
B11: Fertiliser | C11: =SUM(D11:O11) ->  | D11: =('Production Assumptions'!$G$4/4.5)*(CAPEX!$E$15*CAPEX!$D$15/'Production Assumptions'!$G$7) ->  | E11: ='Production Assumptions'!$G$4*'Production Assumptions'!$F$11 -> 0 | F11: ='Production Assumptions'!$G$4*'Production Assumptions'!$F$11 -> 0 | G11: ='Production Assumptions'!$G$4*'Production Assumptions'!$F$11 -> 0 | H11: ='Production Assumptions'!$G$4*'Production Assumptions'!$F$11 -> 0 | I11: ='Production Assumptions'!$G$4*'Production Assumptions'!$F$11 -> 0 | J11: ='Production Assumptions'!$G$4*'Production Assumptions'!$F$11 -> 0 | K11: ='Production Assumptions'!$G$4*'Production Assumptions'!$F$11 -> 0 | L11: ='Production Assumptions'!$G$4*'Production Assumptions'!$F$11 -> 0 | M11: ='Production Assumptions'!$G$4*'Production Assumptions'!$F$11 -> 0 | N11: ='Production Assumptions'!$G$4*'Production Assumptions'!$F$11 -> 0 | O11: ='Production Assumptions'!$G$4*'Production Assumptions'!$F$11 -> 0 | P11: =SUM(Q11:AB11) ->  | Q11: =$D$11*'Production Assumptions'!$C$6 ->  | R11: =$O$11*('Production Assumptions'!$C$6) -> 0 | S11: =$O$11*('Production Assumptions'!$C$6) -> 0 | T11: =$O$11*('Production Assumptions'!$C$6) -> 0 | U11: =$O$11*('Production Assumptions'!$C$6) -> 0 | V11: =$O$11*('Production Assumptions'!$C$6) -> 0 | W11: =$O$11*('Production Assumptions'!$C$6) -> 0 | X11: =$O$11*('Production Assumptions'!$C$6) -> 0 | Y11: =$O$11*('Production Assumptions'!$C$6) -> 0 | Z11: =$O$11*('Production Assumptions'!$C$6) -> 0 | AA11: =$O$11*('Production Assumptions'!$C$6) -> 0 | AB11: =$O$11*('Production Assumptions'!$C$6) -> 0 | AC11: =SUM(AD11:AO11) ->  | AD11: =$Q$11*'Production Assumptions'!$C$6 ->  | AE11: =$AB$11*'Production Assumptions'!$C$6 -> 0 | AF11: =$AB$11*'Production Assumptions'!$C$6 -> 0 | AG11: =$AB$11*'Production Assumptions'!$C$6 -> 0 | AH11: =$AB$11*'Production Assumptions'!$C$6 -> 0 | AI11: =$AB$11*'Production Assumptions'!$C$6 -> 0 | AJ11: =$AB$11*'Production Assumptions'!$C$6 -> 0 | AK11: =$AB$11*'Production Assumptions'!$C$6 -> 0 | AL11: =$AB$11*'Production Assumptions'!$C$6 -> 0 | AM11: =$AB$11*'Production Assumptions'!$C$6 -> 0 | AN11: =$AB$11*'Production Assumptions'!$C$6 -> 0 | AO11: =$AB$11*'Production Assumptions'!$C$6 -> 0 | AP11: =$P$11*('Production Assumptions'!$C$6)^AC2 ->  | AQ11: =$P$11*('Production Assumptions'!$C$6)^AP2 ->  | AR11: =$P$11*('Production Assumptions'!$C$6)^AQ2 ->  | AS11: =$P$11*('Production Assumptions'!$C$6)^AR2 ->  | AT11: =$P$11*('Production Assumptions'!$C$6)^AS2 ->  | AU11: =$P$11*('Production Assumptions'!$C$6)^AT2 ->  | AV11: =$P$11*('Production Assumptions'!$C$6)^AU2 -> 
B12: Feed | C12: =SUM(D12:O12) ->  | D12: ='Production Cycle'!B24*'Production Assumptions'!$C$31 ->  | E12: ='Production Cycle'!C24*'Production Assumptions'!$C$31 ->  | F12: ='Production Cycle'!D24*'Production Assumptions'!$C$31 ->  | G12: ='Production Cycle'!E24*'Production Assumptions'!$C$31 ->  | H12: ='Production Cycle'!F24*'Production Assumptions'!$C$31 ->  | I12: ='Production Cycle'!G24*'Production Assumptions'!$C$31 ->  | J12: ='Production Cycle'!H24*'Production Assumptions'!$C$31 ->  | K12: ='Production Cycle'!I24*'Production Assumptions'!$C$31 ->  | L12: ='Production Cycle'!J24*'Production Assumptions'!$C$31 ->  | M12: ='Production Cycle'!K24*'Production Assumptions'!$C$31 ->  | N12: ='Production Cycle'!L24*'Production Assumptions'!$C$31 ->  | O12: ='Production Cycle'!M24*'Production Assumptions'!$C$31 ->  | P12: =SUM(Q12:AB12) ->  | Q12: ='Production Cycle'!N24*('Production Assumptions'!$C$31*'Production Assumptions'!$C$6) ->  | R12: ='Production Cycle'!O24*('Production Assumptions'!$C$31*'Production Assumptions'!$C$6) ->  | S12: ='Production Cycle'!P24*('Production Assumptions'!$C$31*'Production Assumptions'!$C$6) ->  | T12: ='Production Cycle'!Q24*('Production Assumptions'!$C$31*'Production Assumptions'!$C$6) ->  | U12: ='Production Cycle'!R24*('Production Assumptions'!$C$31*'Production Assumptions'!$C$6) ->  | V12: ='Production Cycle'!S24*('Production Assumptions'!$C$31*'Production Assumptions'!$C$6) ->  | W12: ='Production Cycle'!T24*('Production Assumptions'!$C$31*'Production Assumptions'!$C$6) ->  | X12: ='Production Cycle'!U24*('Production Assumptions'!$C$31*'Production Assumptions'!$C$6) ->  | Y12: ='Production Cycle'!V24*('Production Assumptions'!$C$31*'Production Assumptions'!$C$6) ->  | Z12: ='Production Cycle'!W24*('Production Assumptions'!$C$31*'Production Assumptions'!$C$6) ->  | AA12: ='Production Cycle'!X24*('Production Assumptions'!$C$31*'Production Assumptions'!$C$6) ->  | AB12: ='Production Cycle'!Y24*('Production Assumptions'!$C$31*'Production Assumptions'!$C$6) ->  | AD12: =$AB12*'Production Assumptions'!$C$6 ->  | AE12: =$AB12*'Production Assumptions'!$C$6 ->  | AF12: =$AB12*'Production Assumptions'!$C$6 ->  | AG12: =$AB12*'Production Assumptions'!$C$6 ->  | AH12: =$AB12*'Production Assumptions'!$C$6 ->  | AI12: =$AB12*'Production Assumptions'!$C$6 ->  | AJ12: =$AB12*'Production Assumptions'!$C$6 ->  | AK12: =$AB12*'Production Assumptions'!$C$6 ->  | AL12: =$AB12*'Production Assumptions'!$C$6 ->  | AM12: =$AB12*'Production Assumptions'!$C$6 ->  | AN12: =$AB12*'Production Assumptions'!$C$6 ->  | AO12: =$AB12*'Production Assumptions'!$C$6 ->  | AP12: =($AB$12*12)*('Production Assumptions'!$C$6)^AC2 ->  | AQ12: =($AB$12*12)*('Production Assumptions'!$C$6)^AP2 ->  | AR12: =($AB$12*12)*('Production Assumptions'!$C$6)^AQ2 ->  | AS12: =($AB$12*12)*('Production Assumptions'!$C$6)^AR2 ->  | AT12: =($AB$12*12)*('Production Assumptions'!$C$6)^AS2 ->  | AU12: =($AB$12*12)*('Production Assumptions'!$C$6)^AT2 ->  | AV12: =($AB$12*12)*('Production Assumptions'!$C$6)^AU2 -> 
B13: Consumables - Water Quality | C13: =SUM(D13:O13) -> 8000 | D13: =IF(Interface!$J$7>21,'Production Assumptions'!$F$67+'Production Assumptions'!$F$68,'Production Assumptions'!$F$67) -> 8000 | P13: =SUM(Q13:AB13) -> 8408 | Q13: =$D$13*'Production Assumptions'!$C$6 -> 8408 | R13: =$O$13*'Production Assumptions'!$C$6 -> 0 | S13: =$O$13*'Production Assumptions'!$C$6 -> 0 | T13: =$O$13*'Production Assumptions'!$C$6 -> 0 | U13: =$O$13*'Production Assumptions'!$C$6 -> 0 | V13: =$O$13*'Production Assumptions'!$C$6 -> 0 | W13: =$O$13*'Production Assumptions'!$C$6 -> 0 | X13: =$O$13*'Production Assumptions'!$C$6 -> 0 | Y13: =$O$13*'Production Assumptions'!$C$6 -> 0 | Z13: =$O$13*'Production Assumptions'!$C$6 -> 0 | AA13: =$O$13*'Production Assumptions'!$C$6 -> 0 | AB13: =$O$13*'Production Assumptions'!$C$6 -> 0 | AC13: 0 | AD13: =$AB13*'Production Assumptions'!$C$6 -> 0 | AE13: =$AB13*'Production Assumptions'!$C$6 -> 0 | AF13: =$AB13*'Production Assumptions'!$C$6 -> 0 | AG13: =$AB13*'Production Assumptions'!$C$6 -> 0 | AH13: =$AB13*'Production Assumptions'!$C$6 -> 0 | AI13: =$AB13*'Production Assumptions'!$C$6 -> 0 | AJ13: =$AB13*'Production Assumptions'!$C$6 -> 0 | AK13: =$AB13*'Production Assumptions'!$C$6 -> 0 | AL13: =$AB13*'Production Assumptions'!$C$6 -> 0 | AM13: =$AB13*'Production Assumptions'!$C$6 -> 0 | AN13: =$AB13*'Production Assumptions'!$C$6 -> 0 | AO13: =$AB13*'Production Assumptions'!$C$6 -> 0 | AP13: =($Q$13*'Production Assumptions'!$C$6^AC2) -> 9287.485208 | AQ13: =($Q$13*'Production Assumptions'!$C$6^AP2) -> 9761.146954 | AR13: =($Q$13*'Production Assumptions'!$C$6^AQ2) -> 10258.96545 | AS13: =($Q$13*'Production Assumptions'!$C$6^AR2) -> 10782.17269 | AT13: =($Q$13*'Production Assumptions'!$C$6^AS2) -> 11332.06349 | AU13: =($Q$13*'Production Assumptions'!$C$6^AT2) -> 11909.99873 | AV13: =($Q$13*'Production Assumptions'!$C$6^AU2) -> 12517.40867 | AW13: 1.051
B14: Transport Costs | C14: 3600 | D14: =IF(Interface!$H$7="International Markets", 800,300) -> 300 | E14: =IF(Interface!$H$7="International Markets", 800,300) -> 300 | F14: =IF(Interface!$H$7="International Markets", 800,300) -> 300 | G14: =IF(Interface!$H$7="International Markets", 800,300) -> 300 | H14: =IF(Interface!$H$7="International Markets", 800,300) -> 300 | I14: =IF(Interface!$H$7="International Markets", 800,300) -> 300 | J14: =IF(Interface!$H$7="International Markets", 800,300) -> 300 | K14: =IF(Interface!$H$7="International Markets", 800,300) -> 300 | L14: =IF(Interface!$H$7="International Markets", 800,300) -> 300 | M14: =IF(Interface!$H$7="International Markets", 800,300) -> 300 | N14: =IF(Interface!$H$7="International Markets", 800,300) -> 300 | O14: =IF(Interface!$H$7="International Markets", 800,300) -> 300 | P14: =SUM(Q14:AB14) ->  | Q14: =$O$14*'Production Assumptions'!$C$6 -> 315.3 | R14: =$O$14*'Production Assumptions'!$C$6 -> 315.3 | S14: =$O$14*'Production Assumptions'!$C$6 -> 315.3 | T14: =$O$14*'Production Assumptions'!$C$6 -> 315.3 | U14: =$O$14*'Production Assumptions'!$C$6 -> 315.3 | V14: =$O$14*'Production Assumptions'!$C$6 -> 315.3 | W14: =$O$14*'Production Assumptions'!$C$6 -> 315.3 | X14: =$O$14*'Production Assumptions'!$C$6 -> 315.3 | Y14: =$O$14*'Production Assumptions'!$C$6 -> 315.3 | Z14: =IF(Interface!$H$7="International Markets",'Production Assumptions'!$D$97,'Production Assumptions'!$D$96)*'Production Assumptions'!$C$6 ->  | AA14: =IF(Interface!$H$7="International Markets",'Production Assumptions'!$D$97,'Production Assumptions'!$D$96)*'Production Assumptions'!$C$6 ->  | AB14: =IF(Interface!$H$7="International Markets",'Production Assumptions'!$D$97,'Production Assumptions'!$D$96)*'Production Assumptions'!$C$6 ->  | AD14: =$Y14*'Production Assumptions'!$C$6 -> 331.3803 | AE14: =$Y14*'Production Assumptions'!$C$6 -> 331.3803 | AF14: =$Y14*'Production Assumptions'!$C$6 -> 331.3803 | AG14: =$Y14*'Production Assumptions'!$C$6 -> 331.3803 | AH14: =$Y14*'Production Assumptions'!$C$6 -> 331.3803 | AI14: =$Y14*'Production Assumptions'!$C$6 -> 331.3803 | AJ14: =$Y14*'Production Assumptions'!$C$6 -> 331.3803 | AK14: =$Y14*'Production Assumptions'!$C$6 -> 331.3803 | AL14: =$Y14*'Production Assumptions'!$C$6 -> 331.3803 | AM14: =$AB14*'Production Assumptions'!$C$6 ->  | AN14: =$AB14*'Production Assumptions'!$C$6 ->  | AO14: =$AB14*'Production Assumptions'!$C$6 ->  | AP14: =(($AB$14*3)+($Y$14*9))*('Production Assumptions'!$C$6)^AC2 ->  | AQ14: =(($AB$14*3)+($Y$14*9))*('Production Assumptions'!$C$6)^AP2 ->  | AR14: =(($AB$14*3)+($Y$14*9))*('Production Assumptions'!$C$6)^AQ2 ->  | AS14: =(($AB$14*3)+($Y$14*9))*('Production Assumptions'!$C$6)^AR2 ->  | AT14: =(($AB$14*3)+($Y$14*9))*('Production Assumptions'!$C$6)^AS2 ->  | AU14: =(($AB$14*3)+($Y$14*9))*('Production Assumptions'!$C$6)^AT2 ->  | AV14: =(($AB$14*3)+($Y$14*9))*('Production Assumptions'!$C$6)^AU2 -> 
B15: Water | D15: =(((CAPEX!$D$16*CAPEX!$D$17*CAPEX!$D$18)*'Production Assumptions'!$C$27)*'Production Assumptions'!$C$9)+CAPEX!$F$10*'Production Assumptions'!$C$9+(CAPEX!$D$32*CAPEX!$F$32*'Production Assumptions'!$C$9) ->  | E15: =$D$15*'Production Assumptions'!$F$9 ->  | F15: =$D$15*'Production Assumptions'!$F$9 ->  | G15: =$D$15*'Production Assumptions'!$F$9 ->  | H15: =$D$15*'Production Assumptions'!$F$9 ->  | I15: =$D$15*'Production Assumptions'!$F$9 ->  | J15: =$D$15*'Production Assumptions'!$F$9 ->  | K15: =$D$15*'Production Assumptions'!$F$9 ->  | L15: =$D$15*'Production Assumptions'!$F$9 ->  | M15: =$D$15*'Production Assumptions'!$F$9 ->  | N15: =$D$15*'Production Assumptions'!$F$9 ->  | O15: =$D$15*'Production Assumptions'!$F$9 ->  | Q15: =(('Production Assumptions'!F16*('Production Assumptions'!C27+'Production Assumptions'!C28)*'Production Assumptions'!$C$9*('Production Assumptions'!$C$6))) ->  | R15: =$Q$15*'Production Assumptions'!$F$9*('Production Assumptions'!$C$6) ->  | S15: =$Q$15*'Production Assumptions'!$F$9*('Production Assumptions'!$C$6) ->  | T15: =$Q$15*'Production Assumptions'!$F$9*('Production Assumptions'!$C$6) ->  | U15: =$Q$15*'Production Assumptions'!$F$9*('Production Assumptions'!$C$6) ->  | V15: =$Q$15*'Production Assumptions'!$F$9*('Production Assumptions'!$C$6) ->  | W15: =$Q$15*'Production Assumptions'!$F$9*('Production Assumptions'!$C$6) ->  | X15: =$Q$15*'Production Assumptions'!$F$9*('Production Assumptions'!$C$6) ->  | Y15: =$Q$15*'Production Assumptions'!$F$9*('Production Assumptions'!$C$6) ->  | Z15: =$Q$15*'Production Assumptions'!$F$9*('Production Assumptions'!$C$6) ->  | AA15: =$Q$15*'Production Assumptions'!$F$9*('Production Assumptions'!$C$6) ->  | AB15: =$Q$15*'Production Assumptions'!$F$9*('Production Assumptions'!$C$6) ->  | AD15: =('Production Assumptions'!$F$16*('Production Assumptions'!C27+'Production Assumptions'!C28+'Production Assumptions'!C29)*'Production Assumptions'!C9*'Production Assumptions'!$C$6^'OPEX - Pond'!$AC$2) ->  | AE15: =$AD15*'Production Assumptions'!$F$9 ->  | AF15: =$AB15*'Production Assumptions'!$C$6 ->  | AG15: =$AB15*'Production Assumptions'!$C$6 ->  | AH15: =$AB15*'Production Assumptions'!$C$6 ->  | AI15: =$AB15*'Production Assumptions'!$C$6 ->  | AJ15: =$AB15*'Production Assumptions'!$C$6 ->  | AK15: =$AB15*'Production Assumptions'!$C$6 ->  | AL15: =$AB15*'Production Assumptions'!$C$6 ->  | AM15: =$AB15*'Production Assumptions'!$C$6 ->  | AN15: =$AB15*'Production Assumptions'!$C$6 ->  | AO15: =$AB15*'Production Assumptions'!$C$6 ->  | AP15: =($AC$15*('Production Assumptions'!$C$6)^P2) ->  | AQ15: =($AC$15*('Production Assumptions'!$C$6)^AC2) ->  | AR15: =($AC$15*('Production Assumptions'!$C$6)^AP2) ->  | AS15: =($AC$15*('Production Assumptions'!$C$6)^AQ2) ->  | AT15: =($AC$15*('Production Assumptions'!$C$6)^AR2) ->  | AU15: =($AC$15*('Production Assumptions'!$C$6)^AS2) ->  | AV15: =($AC$15*('Production Assumptions'!$C$6)^AT2) -> 
B16: TOTAL VARIABLE COST: | C16: =SUM(C10:C15) ->  | D16: =SUM(D10:D15) ->  | E16: =SUM(E10:E15) -> 
B18: FIXED COSTS:
B19: Salaries - Staff | C19: =SUM(D19:O19) ->  | D19: =HR!E10 ->  | E19: =HR!F10 ->  | F19: =HR!G10 ->  | G19: =HR!H10 ->  | H19: =HR!I10 ->  | I19: =HR!J10 ->  | J19: =HR!K10 ->  | K19: =HR!L10 ->  | L19: =HR!M10 ->  | M19: =HR!N10 ->  | N19: =HR!O10 ->  | O19: =HR!P10 ->  | P19: =SUM(Q19:AB19) ->  | Q19: =HR!R10 ->  | R19: =HR!S10 ->  | S19: =HR!T10 ->  | T19: =HR!U10 ->  | U19: =HR!V10 ->  | V19: =HR!W10 ->  | W19: =HR!X10 ->  | X19: =HR!Y10 ->  | Y19: =HR!Z10 ->  | Z19: =HR!AA10 ->  | AA19: =HR!AB10 ->  | AB19: =HR!AC10 ->  | AC19: =SUM(AD19:AO19) ->  | AD19: =$AB19*'Production Assumptions'!$C$6 ->  | AE19: =$AB19*'Production Assumptions'!$C$6 ->  | AF19: =$AB19*'Production Assumptions'!$C$6 ->  | AG19: =$AB19*'Production Assumptions'!$C$6 ->  | AH19: =$AB19*'Production Assumptions'!$C$6 ->  | AI19: =$AB19*'Production Assumptions'!$C$6 ->  | AJ19: =$AB19*'Production Assumptions'!$C$6 ->  | AK19: =$AB19*'Production Assumptions'!$C$6 ->  | AL19: =$AB19*'Production Assumptions'!$C$6 ->  | AM19: =$AB19*'Production Assumptions'!$C$6 ->  | AN19: =$AB19*'Production Assumptions'!$C$6 ->  | AO19: =$AB19*'Production Assumptions'!$C$6 ->  | AP19: =($AB$19*('Production Assumptions'!$C$6)^AC2)*12 ->  | AQ19: =($AB$19*('Production Assumptions'!$C$6)^AP2)*12 ->  | AR19: =($AB$19*('Production Assumptions'!$C$6)^AQ2)*12 ->  | AS19: =($AB$19*('Production Assumptions'!$C$6)^AR2)*12 ->  | AT19: =($AB$19*('Production Assumptions'!$C$6)^AS2)*12 ->  | AU19: =($AB$19*('Production Assumptions'!$C$6)^AT2)*12 ->  | AV19: =($AB$19*('Production Assumptions'!$C$6)^AU2)*12 -> 
B20: Insurance | C20: =SUM(D20:O20) ->  | D20: =IF(Interface!$J$7<9,0,'Production Assumptions'!$C$13*(1+Interface!$J$7*'Production Assumptions'!$C$65)) ->  | E20: =IF(Interface!$J$7<9,0,'Production Assumptions'!$C$13*(1+Interface!$J$7*'Production Assumptions'!$C$65)) ->  | F20: =IF(Interface!$J$7<9,0,'Production Assumptions'!$C$13*(1+Interface!$J$7*'Production Assumptions'!$C$65)) ->  | G20: =IF(Interface!$J$7<9,0,'Production Assumptions'!$C$13*(1+Interface!$J$7*'Production Assumptions'!$C$65)) ->  | H20: =IF(Interface!$J$7<9,0,'Production Assumptions'!$C$13*(1+Interface!$J$7*'Production Assumptions'!$C$65)) ->  | I20: =IF(Interface!$J$7<9,0,'Production Assumptions'!$C$13*(1+Interface!$J$7*'Production Assumptions'!$C$65)) ->  | J20: =IF(Interface!$J$7<9,0,'Production Assumptions'!$C$13*(1+Interface!$J$7*'Production Assumptions'!$C$65)) ->  | K20: =IF(Interface!$J$7<9,0,'Production Assumptions'!$C$13*(1+Interface!$J$7*'Production Assumptions'!$C$65)) ->  | L20: =IF(Interface!$J$7<9,0,'Production Assumptions'!$C$13*(1+Interface!$J$7*'Production Assumptions'!$C$65)) ->  | M20: =IF(Interface!$J$7<9,0,'Production Assumptions'!$C$13*(1+Interface!$J$7*'Production Assumptions'!$C$65)) ->  | N20: =IF(Interface!$J$7<9,0,'Production Assumptions'!$C$13*(1+Interface!$J$7*'Production Assumptions'!$C$65)) ->  | O20: =IF(Interface!$J$7<9,0,'Production Assumptions'!$C$13*(1+Interface!$J$7*'Production Assumptions'!$C$65)) ->  | P20: =SUM(Q20:AB20) ->  | Q20: =IF(Interface!$J$7<9,0,('Production Assumptions'!$C$13*(1+Interface!$J$7*'Production Assumptions'!$C$65))*('Production Assumptions'!$C$6)) ->  | R20: =IF(Interface!$J$7<9,0,('Production Assumptions'!$C$13*(1+Interface!$J$7*'Production Assumptions'!$C$65))*('Production Assumptions'!$C$6)) ->  | S20: =IF(Interface!$J$7<9,0,('Production Assumptions'!$C$13*(1+Interface!$J$7*'Production Assumptions'!$C$65))*('Production Assumptions'!$C$6)) ->  | T20: =IF(Interface!$J$7<9,0,('Production Assumptions'!$C$13*(1+Interface!$J$7*'Production Assumptions'!$C$65))*('Production Assumptions'!$C$6)) ->  | U20: =IF(Interface!$J$7<9,0,('Production Assumptions'!$C$13*(1+Interface!$J$7*'Production Assumptions'!$C$65))*('Production Assumptions'!$C$6)) ->  | V20: =IF(Interface!$J$7<9,0,('Production Assumptions'!$C$13*(1+Interface!$J$7*'Production Assumptions'!$C$65))*('Production Assumptions'!$C$6)) ->  | W20: =IF(Interface!$J$7<9,0,('Production Assumptions'!$C$13*(1+Interface!$J$7*'Production Assumptions'!$C$65))*('Production Assumptions'!$C$6)) ->  | X20: =IF(Interface!$J$7<9,0,('Production Assumptions'!$C$13*(1+Interface!$J$7*'Production Assumptions'!$C$65))*('Production Assumptions'!$C$6)) ->  | Y20: =IF(Interface!$J$7<9,0,('Production Assumptions'!$C$13*(1+Interface!$J$7*'Production Assumptions'!$C$65))*('Production Assumptions'!$C$6)) ->  | Z20: =IF(Interface!$J$7<9,0,('Production Assumptions'!$C$13*(1+Interface!$J$7*'Production Assumptions'!$C$65))*('Production Assumptions'!$C$6)) ->  | AA20: =IF(Interface!$J$7<9,0,('Production Assumptions'!$C$13*(1+Interface!$J$7*'Production Assumptions'!$C$65))*('Production Assumptions'!$C$6)) ->  | AB20: =IF(Interface!$J$7<9,0,('Production Assumptions'!$C$13*(1+Interface!$J$7*'Production Assumptions'!$C$65))*('Production Assumptions'!$C$6)) ->  | AC20: =SUM(AD20:AO20) ->  | AD20: =$AB20*'Production Assumptions'!$C$6 ->  | AE20: =$AB20*'Production Assumptions'!$C$6 ->  | AF20: =$AB20*'Production Assumptions'!$C$6 ->  | AG20: =$AB20*'Production Assumptions'!$C$6 ->  | AH20: =$AB20*'Production Assumptions'!$C$6 ->  | AI20: =$AB20*'Production Assumptions'!$C$6 ->  | AJ20: =$AB20*'Production Assumptions'!$C$6 ->  | AK20: =$AB20*'Production Assumptions'!$C$6 ->  | AL20: =$AB20*'Production Assumptions'!$C$6 ->  | AM20: =$AB20*'Production Assumptions'!$C$6 ->  | AN20: =$AB20*'Production Assumptions'!$C$6 ->  | AO20: =$AB20*'Production Assumptions'!$C$6 ->  | AP20: =($O$20*('Production Assumptions'!$C$6)^AC2)*12 ->  | AQ20: =($O$20*('Production Assumptions'!$C$6)^AP2)*12 ->  | AR20: =($O$20*('Production Assumptions'!$C$6)^AQ2)*12 ->  | AS20: =($O$20*('Production Assumptions'!$C$6)^AR2)*12 ->  | AT20: =($O$20*('Production Assumptions'!$C$6)^AS2)*12 ->  | AU20: =($O$20*('Production Assumptions'!$C$6)^AT2)*12 ->  | AV20: =($O$20*('Production Assumptions'!$C$6)^AU2)*12 -> 
B21: Telephone Expenses | C21: =SUM(D21:O21) -> 12000 | D21: ='Production Assumptions'!$C$68 -> 1000 | E21: ='Production Assumptions'!$C$68 -> 1000 | F21: ='Production Assumptions'!$C$68 -> 1000 | G21: ='Production Assumptions'!$C$68 -> 1000 | H21: ='Production Assumptions'!$C$68 -> 1000 | I21: ='Production Assumptions'!$C$68 -> 1000 | J21: ='Production Assumptions'!$C$68 -> 1000 | K21: ='Production Assumptions'!$C$68 -> 1000 | L21: ='Production Assumptions'!$C$68 -> 1000 | M21: ='Production Assumptions'!$C$68 -> 1000 | N21: ='Production Assumptions'!$C$68 -> 1000 | O21: ='Production Assumptions'!$C$68 -> 1000 | P21: =SUM(Q21:AB21) -> 12612 | Q21: =$O$21*('Production Assumptions'!$C$6) -> 1051 | R21: =$O$21*('Production Assumptions'!$C$6) -> 1051 | S21: =$O$21*('Production Assumptions'!$C$6) -> 1051 | T21: =$O$21*('Production Assumptions'!$C$6) -> 1051 | U21: =$O$21*('Production Assumptions'!$C$6) -> 1051 | V21: =$O$21*('Production Assumptions'!$C$6) -> 1051 | W21: =$O$21*('Production Assumptions'!$C$6) -> 1051 | X21: =$O$21*('Production Assumptions'!$C$6) -> 1051 | Y21: =$O$21*('Production Assumptions'!$C$6) -> 1051 | Z21: =$O$21*('Production Assumptions'!$C$6) -> 1051 | AA21: =$O$21*('Production Assumptions'!$C$6) -> 1051 | AB21: =$O$21*('Production Assumptions'!$C$6) -> 1051 | AC21: 13255.212 | AD21: =$AB21*'Production Assumptions'!$C$6 -> 1104.601 | AE21: =$AB21*'Production Assumptions'!$C$6 -> 1104.601 | AF21: =$AB21*'Production Assumptions'!$C$6 -> 1104.601 | AG21: =$AB21*'Production Assumptions'!$C$6 -> 1104.601 | AH21: =$AB21*'Production Assumptions'!$C$6 -> 1104.601 | AI21: =$AB21*'Production Assumptions'!$C$6 -> 1104.601 | AJ21: =$AB21*'Production Assumptions'!$C$6 -> 1104.601 | AK21: =$AB21*'Production Assumptions'!$C$6 -> 1104.601 | AL21: =$AB21*'Production Assumptions'!$C$6 -> 1104.601 | AM21: =$AB21*'Production Assumptions'!$C$6 -> 1104.601 | AN21: =$AB21*'Production Assumptions'!$C$6 -> 1104.601 | AO21: =$AB21*'Production Assumptions'!$C$6 -> 1104.601 | AP21: =($AB$21*('Production Assumptions'!$C$6)^AC2)*12 -> 13931.22781 | AQ21: =($AB$21*('Production Assumptions'!$C$6)^AP2)*12 -> 14641.72043 | AR21: =($AB$21*('Production Assumptions'!$C$6)^AQ2)*12 -> 15388.44817 | AS21: =($AB$21*('Production Assumptions'!$C$6)^AR2)*12 -> 16173.25903 | AT21: =($AB$21*('Production Assumptions'!$C$6)^AS2)*12 -> 16998.09524 | AU21: =($AB$21*('Production Assumptions'!$C$6)^AT2)*12 -> 17864.9981 | AV21: =($AB$21*('Production Assumptions'!$C$6)^AU2)*12 -> 18776.113 | AW21: 1.051
B22: Security (specific to facility) | C22: =SUM(D22:O22) ->  | D22: =IF(Interface!$J$7<9,0,'Production Assumptions'!$C$11*(1+Interface!$J$7*'Production Assumptions'!$C$69)) ->  | E22: =IF(Interface!$J$7<9,0,'Production Assumptions'!$C$11*(1+Interface!$J$7*'Production Assumptions'!$C$69)) ->  | F22: =IF(Interface!$J$7<9,0,'Production Assumptions'!$C$11*(1+Interface!$J$7*'Production Assumptions'!$C$69)) ->  | G22: =IF(Interface!$J$7<9,0,'Production Assumptions'!$C$11*(1+Interface!$J$7*'Production Assumptions'!$C$69)) ->  | H22: =IF(Interface!$J$7<9,0,'Production Assumptions'!$C$11*(1+Interface!$J$7*'Production Assumptions'!$C$69)) ->  | I22: =IF(Interface!$J$7<9,0,'Production Assumptions'!$C$11*(1+Interface!$J$7*'Production Assumptions'!$C$69)) ->  | J22: =IF(Interface!$J$7<9,0,'Production Assumptions'!$C$11*(1+Interface!$J$7*'Production Assumptions'!$C$69)) ->  | K22: =IF(Interface!$J$7<9,0,'Production Assumptions'!$C$11*(1+Interface!$J$7*'Production Assumptions'!$C$69)) ->  | L22: =IF(Interface!$J$7<9,0,'Production Assumptions'!$C$11*(1+Interface!$J$7*'Production Assumptions'!$C$69)) ->  | M22: =IF(Interface!$J$7<9,0,'Production Assumptions'!$C$11*(1+Interface!$J$7*'Production Assumptions'!$C$69)) ->  | N22: =IF(Interface!$J$7<9,0,'Production Assumptions'!$C$11*(1+Interface!$J$7*'Production Assumptions'!$C$69)) ->  | O22: =IF(Interface!$J$7<9,0,'Production Assumptions'!$C$11*(1+Interface!$J$7*'Production Assumptions'!$C$69)) ->  | P22: 10089.6 | Q22: =IF(Interface!$J$7<9,0,'Production Assumptions'!$C$11*'Production Assumptions'!$C$6) -> 840.8 | R22: =IF(Interface!$J$7<9,0,'Production Assumptions'!$C$11*'Production Assumptions'!$C$6) -> 840.8 | S22: =IF(Interface!$J$7<9,0,'Production Assumptions'!$C$11*'Production Assumptions'!$C$6) -> 840.8 | T22: =IF(Interface!$J$7<9,0,'Production Assumptions'!$C$11*'Production Assumptions'!$C$6) -> 840.8 | U22: =IF(Interface!$J$7<9,0,'Production Assumptions'!$C$11*'Production Assumptions'!$C$6) -> 840.8 | V22: =IF(Interface!$J$7<9,0,'Production Assumptions'!$C$11*'Production Assumptions'!$C$6) -> 840.8 | W22: =IF(Interface!$J$7<9,0,'Production Assumptions'!$C$11*'Production Assumptions'!$C$6) -> 840.8 | X22: =IF(Interface!$J$7<9,0,'Production Assumptions'!$C$11*'Production Assumptions'!$C$6) -> 840.8 | Y22: =IF(Interface!$J$7<9,0,'Production Assumptions'!$C$11*'Production Assumptions'!$C$6) -> 840.8 | Z22: =IF(Interface!$J$7<9,0,'Production Assumptions'!$C$11*'Production Assumptions'!$C$6) -> 840.8 | AA22: =IF(Interface!$J$7<9,0,'Production Assumptions'!$C$11*'Production Assumptions'!$C$6) -> 840.8 | AB22: =IF(Interface!$J$7<9,0,'Production Assumptions'!$C$11*'Production Assumptions'!$C$6) -> 840.8 | AC22: 10604.1696 | AD22: =$AB22*'Production Assumptions'!$C$6 -> 883.6808 | AE22: =$AB22*'Production Assumptions'!$C$6 -> 883.6808 | AF22: =$AB22*'Production Assumptions'!$C$6 -> 883.6808 | AG22: =$AB22*'Production Assumptions'!$C$6 -> 883.6808 | AH22: =$AB22*'Production Assumptions'!$C$6 -> 883.6808 | AI22: =$AB22*'Production Assumptions'!$C$6 -> 883.6808 | AJ22: =$AB22*'Production Assumptions'!$C$6 -> 883.6808 | AK22: =$AB22*'Production Assumptions'!$C$6 -> 883.6808 | AL22: =$AB22*'Production Assumptions'!$C$6 -> 883.6808 | AM22: =$AB22*'Production Assumptions'!$C$6 -> 883.6808 | AN22: =$AB22*'Production Assumptions'!$C$6 -> 883.6808 | AO22: =$AB22*'Production Assumptions'!$C$6 -> 883.6808 | AP22: =($AB$22*'Production Assumptions'!$C$6^AC2)*12 -> 11144.98225 | AQ22: =($AB$22*'Production Assumptions'!$C$6^AP2)*12 -> 11713.37634 | AR22: =($AB$22*'Production Assumptions'!$C$6^AQ2)*12 -> 12310.75854 | AS22: =($AB$22*'Production Assumptions'!$C$6^AR2)*12 -> 12938.60722 | AT22: =($AB$22*'Production Assumptions'!$C$6^AS2)*12 -> 13598.47619 | AU22: =($AB$22*'Production Assumptions'!$C$6^AT2)*12 -> 14291.99848 | AV22: =($AB$22*'Production Assumptions'!$C$6^AU2)*12 -> 15020.8904 | AW22: 1.051
B23: Facilities Electricity | D23: =(CAPEX!D6+CAPEX!D7+CAPEX!D8+CAPEX!D9)*'Built-In Assumptions'!E9 ->  | E23: =D23 ->  | F23: =E23 ->  | P23: =SUM(Q23:AB23) ->  | Q23: =O23*'Production Assumptions'!C6 ->  | R23: =Q23 ->  | S23: =R23 ->  | AC23: =SUM(AD23:AO23) ->  | AD23: =AB23*'Production Assumptions'!C6 ->  | AE23: =AD23 ->  | AF23: =AE23 ->  | AP23: =AC23*'Production Assumptions'!C6 ->  | AQ23: =AP23*'Production Assumptions'!C6 ->  | AR23: =AQ23*'Production Assumptions'!$C$6 ->  | AS23: =AR23*'Production Assumptions'!$C$6 ->  | AT23: =AS23*'Production Assumptions'!$C$6 ->  | AU23: =AT23*'Production Assumptions'!$C$6 ->  | AV23: =AU23*'Production Assumptions'!$C$6 -> 
B24: System Electricity | C24: =SUM(D24:O24) ->  | D24: =('Production Assumptions'!$G$31*CAPEX!$E$15/2)+(CAPEX!$D$20*'Production Assumptions'!$C$12) ->  | E24: =('Production Assumptions'!$G$31*CAPEX!$E$15/2)+(CAPEX!$D$20*'Production Assumptions'!$C$12) ->  | F24: =('Production Assumptions'!$G$31*CAPEX!$E$15/2)+(CAPEX!$D$20*'Production Assumptions'!$C$12) ->  | G24: =('Production Assumptions'!$G$31*CAPEX!$E$15/2)+(CAPEX!$D$20*'Production Assumptions'!$C$12) ->  | H24: =('Production Assumptions'!$G$31*CAPEX!$E$15/2)+(CAPEX!$D$20*'Production Assumptions'!$C$12) ->  | I24: =('Production Assumptions'!$G$31*CAPEX!$E$15/2)+(CAPEX!$D$20*'Production Assumptions'!$C$12) ->  | J24: =('Production Assumptions'!$G$31*CAPEX!$E$15/2)+(CAPEX!$D$20*'Production Assumptions'!$C$12) ->  | K24: =('Production Assumptions'!$G$31*CAPEX!$E$15/2)+(CAPEX!$D$20*'Production Assumptions'!$C$12) ->  | L24: =('Production Assumptions'!$G$31*CAPEX!$E$15/2)+(CAPEX!$D$20*'Production Assumptions'!$C$12) ->  | M24: =('Production Assumptions'!$G$31*CAPEX!$E$15/2)+(CAPEX!$D$20*'Production Assumptions'!$C$12) ->  | N24: =('Production Assumptions'!$G$31*CAPEX!$E$15/2)+(CAPEX!$D$20*'Production Assumptions'!$C$12) ->  | O24: =('Production Assumptions'!$G$31*CAPEX!$E$15/2)+(CAPEX!$D$20*'Production Assumptions'!$C$12) ->  | Q24: =$O$24*('Production Assumptions'!$C$6) ->  | R24: =$O$24*('Production Assumptions'!$C$6) ->  | S24: =$O$24*('Production Assumptions'!$C$6) ->  | T24: =$O$24*('Production Assumptions'!$C$6) ->  | U24: =$O$24*('Production Assumptions'!$C$6) ->  | V24: =$O$24*('Production Assumptions'!$C$6) ->  | W24: =$O$24*('Production Assumptions'!$C$6) ->  | X24: =$O$24*('Production Assumptions'!$C$6) ->  | Y24: =$O$24*('Production Assumptions'!$C$6) ->  | Z24: =$O$24*('Production Assumptions'!$C$6) ->  | AA24: =$O$24*('Production Assumptions'!$C$6) ->  | AB24: =$O$24*('Production Assumptions'!$C$6) ->  | AD24: =$AB24*'Production Assumptions'!$C$6 ->  | AE24: =$AB24*'Production Assumptions'!$C$6 ->  | AF24: =$AB24*'Production Assumptions'!$C$6 ->  | AG24: =$AB24*'Production Assumptions'!$C$6 ->  | AH24: =$AB24*'Production Assumptions'!$C$6 ->  | AI24: =$AB24*'Production Assumptions'!$C$6 ->  | AJ24: =$AB24*'Production Assumptions'!$C$6 ->  | AK24: =$AB24*'Production Assumptions'!$C$6 ->  | AL24: =$AB24*'Production Assumptions'!$C$6 ->  | AM24: =$AB24*'Production Assumptions'!$C$6 ->  | AN24: =$AB24*'Production Assumptions'!$C$6 ->  | AO24: =$AB24*'Production Assumptions'!$C$6 ->  | AP24: =($AB$24*('Production Assumptions'!$C$6)^AC2)*12 ->  | AQ24: =($AB$24*('Production Assumptions'!$C$6)^AP2)*12 ->  | AR24: =($AB$24*('Production Assumptions'!$C$6)^AQ2)*12 ->  | AS24: =($AB$24*('Production Assumptions'!$C$6)^AR2)*12 ->  | AT24: =($AB$24*('Production Assumptions'!$C$6)^AS2)*12 ->  | AU24: =($AB$24*('Production Assumptions'!$C$6)^AT2)*12 ->  | AV24: =($AB$24*('Production Assumptions'!$C$6)^AU2)*12 -> 
B25: Sumps and waste water treatment | D25: ='Production Assumptions'!$C$71 ->  | E25: ='Production Assumptions'!$C$71 ->  | F25: ='Production Assumptions'!$C$71 ->  | G25: ='Production Assumptions'!$C$71 ->  | H25: ='Production Assumptions'!$C$71 ->  | I25: ='Production Assumptions'!$C$71 ->  | J25: ='Production Assumptions'!$C$71 ->  | K25: ='Production Assumptions'!$C$71 ->  | L25: ='Production Assumptions'!$C$71 ->  | M25: ='Production Assumptions'!$C$71 ->  | N25: ='Production Assumptions'!$C$71 ->  | O25: ='Production Assumptions'!$C$71 ->  | Q25: =D25*('Production Assumptions'!$C$6) ->  | R25: =E25*('Production Assumptions'!$C$6) ->  | S25: =F25*('Production Assumptions'!$C$6) ->  | T25: =G25*('Production Assumptions'!$C$6) ->  | U25: =H25*('Production Assumptions'!$C$6) ->  | V25: =I25*('Production Assumptions'!$C$6) ->  | W25: =J25*('Production Assumptions'!$C$6) ->  | X25: =K25*('Production Assumptions'!$C$6) ->  | Y25: =L25*('Production Assumptions'!$C$6) ->  | Z25: =M25*('Production Assumptions'!$C$6) ->  | AA25: =N25*('Production Assumptions'!$C$6) ->  | AB25: =O25*('Production Assumptions'!$C$6) ->  | AD25: =$AB25*'Production Assumptions'!$C$6 ->  | AE25: =$AB25*'Production Assumptions'!$C$6 ->  | AF25: =$AB25*'Production Assumptions'!$C$6 ->  | AG25: =$AB25*'Production Assumptions'!$C$6 ->  | AH25: =$AB25*'Production Assumptions'!$C$6 ->  | AI25: =$AB25*'Production Assumptions'!$C$6 ->  | AJ25: =$AB25*'Production Assumptions'!$C$6 ->  | AK25: =$AB25*'Production Assumptions'!$C$6 ->  | AL25: =$AB25*'Production Assumptions'!$C$6 ->  | AM25: =$AB25*'Production Assumptions'!$C$6 ->  | AN25: =$AB25*'Production Assumptions'!$C$6 ->  | AO25: =$AB25*'Production Assumptions'!$C$6 ->  | AP25: =($AB$25*('Production Assumptions'!$C$6)^AC2)*12 ->  | AQ25: =($AB$25*('Production Assumptions'!$C$6)^AP2)*12 ->  | AR25: =($AB$25*('Production Assumptions'!$C$6)^AQ2)*12 ->  | AS25: =($AB$25*('Production Assumptions'!$C$6)^AR2)*12 ->  | AT25: =($AB$25*('Production Assumptions'!$C$6)^AS2)*12 ->  | AU25: =($AB$25*('Production Assumptions'!$C$6)^AT2)*12 ->  | AV25: =($AB$25*('Production Assumptions'!$C$6)^AU2)*12 -> 
B26: Legal & licencing | C26: 550000 | D26: =IF(Interface!$J$7<Validation!$B$22,'Production Assumptions'!$D$89,IF(Interface!$J$7<Validation!$B$202,'Production Assumptions'!$D$90,'Production Assumptions'!$D$91)) -> 550000 | E26: 0 | F26: 0 | G26: 0 | H26: 0 | I26: 0 | J26: 0 | K26: 0 | L26: 0 | M26: 0 | N26: 0 | O26: 0 | P26: 0 | Q26: 0 | R26: =E26*('Production Assumptions'!$C$6) -> 0 | S26: =F26*('Production Assumptions'!$C$6) -> 0 | T26: =G26*('Production Assumptions'!$C$6) -> 0 | U26: =H26*('Production Assumptions'!$C$6) -> 0 | V26: =I26*('Production Assumptions'!$C$6) -> 0 | W26: =J26*('Production Assumptions'!$C$6) -> 0 | X26: =K26*('Production Assumptions'!$C$6) -> 0 | Y26: =L26*('Production Assumptions'!$C$6) -> 0 | Z26: =M26*('Production Assumptions'!$C$6) -> 0 | AA26: =N26*('Production Assumptions'!$C$6) -> 0 | AB26: =O26*('Production Assumptions'!$C$6) -> 0 | AC26: 0 | AD26: =$AB26*'Production Assumptions'!$C$6 -> 0 | AE26: =$AB26*'Production Assumptions'!$C$6 -> 0 | AF26: =$AB26*'Production Assumptions'!$C$6 -> 0 | AG26: =$AB26*'Production Assumptions'!$C$6 -> 0 | AH26: =$AB26*'Production Assumptions'!$C$6 -> 0 | AI26: =$AB26*'Production Assumptions'!$C$6 -> 0 | AJ26: =$AB26*'Production Assumptions'!$C$6 -> 0 | AK26: =$AB26*'Production Assumptions'!$C$6 -> 0 | AL26: =$AB26*'Production Assumptions'!$C$6 -> 0 | AM26: =$AB26*'Production Assumptions'!$C$6 -> 0 | AN26: =$AB26*'Production Assumptions'!$C$6 -> 0 | AO26: =$AB26*'Production Assumptions'!$C$6 -> 0 | AP26: =$Q$26*('Production Assumptions'!$C$6)^AC2 -> 0 | AQ26: =$D$26*('Production Assumptions'!$C$6)^AQ2 -> 671078.8531 | AR26: =$Q$26*('Production Assumptions'!$C$6)^AQ2 -> 0 | AS26: =$Q$26*('Production Assumptions'!$C$6)^AR2 -> 0 | AT26: =$Q$26*('Production Assumptions'!$C$6)^AS2 -> 0 | AU26: =$Q$26*('Production Assumptions'!$C$6)^AT2 -> 0 | AV26: =$Q$26*('Production Assumptions'!$C$6)^AU2 -> 0
B27: Health and safety apparel | C27: 0 | D27: ='Production Assumptions'!$C$74*HR!$D$27 -> 0 | E27: 0 | F27: 0 | G27: 0 | H27: 0 | I27: 0 | J27: 0 | K27: 0 | L27: 0 | M27: 0 | N27: 0 | O27: 0 | P27: 0 | Q27: =D27*('Production Assumptions'!$C$6) -> 0 | R27: =E27*('Production Assumptions'!$C$6) -> 0 | S27: =F27*('Production Assumptions'!$C$6) -> 0 | T27: =G27*('Production Assumptions'!$C$6) -> 0 | U27: =H27*('Production Assumptions'!$C$6) -> 0 | V27: =I27*('Production Assumptions'!$C$6) -> 0 | W27: =J27*('Production Assumptions'!$C$6) -> 0 | X27: =K27*('Production Assumptions'!$C$6) -> 0 | Y27: =L27*('Production Assumptions'!$C$6) -> 0 | Z27: =M27*('Production Assumptions'!$C$6) -> 0 | AA27: =N27*('Production Assumptions'!$C$6) -> 0 | AB27: =O27*('Production Assumptions'!$C$6) -> 0 | AC27: 0 | AD27: =$Q27*'Production Assumptions'!$C$6 -> 0 | AE27: =$AB27*'Production Assumptions'!$C$6 -> 0 | AF27: =$AB27*'Production Assumptions'!$C$6 -> 0 | AG27: =$AB27*'Production Assumptions'!$C$6 -> 0 | AH27: =$AB27*'Production Assumptions'!$C$6 -> 0 | AI27: =$AB27*'Production Assumptions'!$C$6 -> 0 | AJ27: =$AB27*'Production Assumptions'!$C$6 -> 0 | AK27: =$AB27*'Production Assumptions'!$C$6 -> 0 | AL27: =$AB27*'Production Assumptions'!$C$6 -> 0 | AM27: =$AB27*'Production Assumptions'!$C$6 -> 0 | AN27: =$AB27*'Production Assumptions'!$C$6 -> 0 | AO27: =$AB27*'Production Assumptions'!$C$6 -> 0 | AP27: =$Q$27*('Production Assumptions'!$C$6)^AC2 -> 0 | AQ27: =$Q$27*('Production Assumptions'!$C$6)^AP2 -> 0 | AR27: =$Q$27*('Production Assumptions'!$C$6)^AQ2 -> 0 | AS27: =$Q$27*('Production Assumptions'!$C$6)^AR2 -> 0 | AT27: =$Q$27*('Production Assumptions'!$C$6)^AS2 -> 0 | AU27: =$Q$27*('Production Assumptions'!$C$6)^AT2 -> 0 | AV27: =$Q$27*('Production Assumptions'!$C$6)^AU2 -> 0
B28: stationary | C28: =SUM(D28:O28) -> 1200 | D28: =IF(Interface!$J$7<9,0,'Production Assumptions'!$C$75) -> 100 | E28: =IF(Interface!$J$7<9,0,'Production Assumptions'!$C$75) -> 100 | F28: =IF(Interface!$J$7<9,0,'Production Assumptions'!$C$75) -> 100 | G28: =IF(Interface!$J$7<9,0,'Production Assumptions'!$C$75) -> 100 | H28: =IF(Interface!$J$7<9,0,'Production Assumptions'!$C$75) -> 100 | I28: =IF(Interface!$J$7<9,0,'Production Assumptions'!$C$75) -> 100 | J28: =IF(Interface!$J$7<9,0,'Production Assumptions'!$C$75) -> 100 | K28: =IF(Interface!$J$7<9,0,'Production Assumptions'!$C$75) -> 100 | L28: =IF(Interface!$J$7<9,0,'Production Assumptions'!$C$75) -> 100 | M28: =IF(Interface!$J$7<9,0,'Production Assumptions'!$C$75) -> 100 | N28: =IF(Interface!$J$7<9,0,'Production Assumptions'!$C$75) -> 100 | O28: =IF(Interface!$J$7<9,0,'Production Assumptions'!$C$75) -> 100 | P28: =SUM(Q28:AB28) -> 1261.2 | Q28: =$O$28*('Production Assumptions'!$C$6) -> 105.1 | R28: =$O$28*('Production Assumptions'!$C$6) -> 105.1 | S28: =$O$28*('Production Assumptions'!$C$6) -> 105.1 | T28: =$O$28*('Production Assumptions'!$C$6) -> 105.1 | U28: =$O$28*('Production Assumptions'!$C$6) -> 105.1 | V28: =$O$28*('Production Assumptions'!$C$6) -> 105.1 | W28: =$O$28*('Production Assumptions'!$C$6) -> 105.1 | X28: =$O$28*('Production Assumptions'!$C$6) -> 105.1 | Y28: =$O$28*('Production Assumptions'!$C$6) -> 105.1 | Z28: =$O$28*('Production Assumptions'!$C$6) -> 105.1 | AA28: =$O$28*('Production Assumptions'!$C$6) -> 105.1 | AB28: =$O$28*('Production Assumptions'!$C$6) -> 105.1 | AC28: 1325.5212 | AD28: =$AB28*'Production Assumptions'!$C$6 -> 110.4601 | AE28: =$AB28*'Production Assumptions'!$C$6 -> 110.4601 | AF28: =$AB28*'Production Assumptions'!$C$6 -> 110.4601 | AG28: =$AB28*'Production Assumptions'!$C$6 -> 110.4601 | AH28: =$AB28*'Production Assumptions'!$C$6 -> 110.4601 | AI28: =$AB28*'Production Assumptions'!$C$6 -> 110.4601 | AJ28: =$AB28*'Production Assumptions'!$C$6 -> 110.4601 | AK28: =$AB28*'Production Assumptions'!$C$6 -> 110.4601 | AL28: =$AB28*'Production Assumptions'!$C$6 -> 110.4601 | AM28: =$AB28*'Production Assumptions'!$C$6 -> 110.4601 | AN28: =$AB28*'Production Assumptions'!$C$6 -> 110.4601 | AO28: =$AB28*'Production Assumptions'!$C$6 -> 110.4601 | AP28: =($AB$28*('Production Assumptions'!$C$6)^AC2)*12 -> 1393.122781 | AQ28: =($AB$28*('Production Assumptions'!$C$6)^AP2)*12 -> 1464.172043 | AR28: =($AB$28*('Production Assumptions'!$C$6)^AQ2)*12 -> 1538.844817 | AS28: =($AB$28*('Production Assumptions'!$C$6)^AR2)*12 -> 1617.325903 | AT28: =($AB$28*('Production Assumptions'!$C$6)^AS2)*12 -> 1699.809524 | AU28: =($AB$28*('Production Assumptions'!$C$6)^AT2)*12 -> 1786.49981 | AV28: =($AB$28*('Production Assumptions'!$C$6)^AU2)*12 -> 1877.6113 | AW28: 1.051
B29: Cleaning materials | C29: 12000 | D29: ='Production Assumptions'!$C$76 -> 1000 | E29: ='Production Assumptions'!$C$76 -> 1000 | F29: ='Production Assumptions'!$C$76 -> 1000 | G29: ='Production Assumptions'!$C$76 -> 1000 | H29: ='Production Assumptions'!$C$76 -> 1000 | I29: ='Production Assumptions'!$C$76 -> 1000 | J29: ='Production Assumptions'!$C$76 -> 1000 | K29: ='Production Assumptions'!$C$76 -> 1000 | L29: ='Production Assumptions'!$C$76 -> 1000 | M29: ='Production Assumptions'!$C$76 -> 1000 | N29: ='Production Assumptions'!$C$76 -> 1000 | O29: ='Production Assumptions'!$C$76 -> 1000 | P29: 12612 | Q29: =$O$29*('Production Assumptions'!$C$6) -> 1051 | R29: =$O$29*('Production Assumptions'!$C$6) -> 1051 | S29: =$O$29*('Production Assumptions'!$C$6) -> 1051 | T29: =$O$29*('Production Assumptions'!$C$6) -> 1051 | U29: =$O$29*('Production Assumptions'!$C$6) -> 1051 | V29: =$O$29*('Production Assumptions'!$C$6) -> 1051 | W29: =$O$29*('Production Assumptions'!$C$6) -> 1051 | X29: =$O$29*('Production Assumptions'!$C$6) -> 1051 | Y29: =$O$29*('Production Assumptions'!$C$6) -> 1051 | Z29: =$O$29*('Production Assumptions'!$C$6) -> 1051 | AA29: =$O$29*('Production Assumptions'!$C$6) -> 1051 | AB29: =$O$29*('Production Assumptions'!$C$6) -> 1051 | AC29: 13255.212 | AD29: =$AB29*'Production Assumptions'!$C$6 -> 1104.601 | AE29: =$AB29*'Production Assumptions'!$C$6 -> 1104.601 | AF29: =$AB29*'Production Assumptions'!$C$6 -> 1104.601 | AG29: =$AB29*'Production Assumptions'!$C$6 -> 1104.601 | AH29: =$AB29*'Production Assumptions'!$C$6 -> 1104.601 | AI29: =$AB29*'Production Assumptions'!$C$6 -> 1104.601 | AJ29: =$AB29*'Production Assumptions'!$C$6 -> 1104.601 | AK29: =$AB29*'Production Assumptions'!$C$6 -> 1104.601 | AL29: =$AB29*'Production Assumptions'!$C$6 -> 1104.601 | AM29: =$AB29*'Production Assumptions'!$C$6 -> 1104.601 | AN29: =$AB29*'Production Assumptions'!$C$6 -> 1104.601 | AO29: =$AB29*'Production Assumptions'!$C$6 -> 1104.601 | AP29: =($AB$29*('Production Assumptions'!$C$6)^AC2)*12 -> 13931.22781 | AQ29: =($AB$29*('Production Assumptions'!$C$6)^AP2)*12 -> 14641.72043 | AR29: =($AB$29*('Production Assumptions'!$C$6)^AQ2)*12 -> 15388.44817 | AS29: =($AB$29*('Production Assumptions'!$C$6)^AR2)*12 -> 16173.25903 | AT29: =($AB$29*('Production Assumptions'!$C$6)^AS2)*12 -> 16998.09524 | AU29: =($AB$29*('Production Assumptions'!$C$6)^AT2)*12 -> 17864.9981 | AV29: =($AB$29*('Production Assumptions'!$C$6)^AU2)*12 -> 18776.113 | AW29: 1.051
B30: Vet Services | C30: =SUM(D30:O30) -> 204000 | D30: ='Production Assumptions'!$C$78 -> 51000 | E30: 0 | F30: 0 | G30: =D30 -> 51000 | H30: 0 | I30: 0 | J30: =D30 -> 51000 | M30: =D30 -> 51000 | P30: =SUM(Q30:AB30) -> 214404 | Q30: =$D$30*'Production Assumptions'!$C$6 -> 53601 | R30: 0 | S30: 0 | T30: =Q30 -> 53601 | U30: 0 | V30: 0 | W30: =Q30 -> 53601 | X30: 0 | Y30: 0 | Z30: =Q30 -> 53601 | AA30: 0 | AB30: 0 | AC30: 225338.604 | AD30: =$Q$30*'Production Assumptions'!$C$6 -> 56334.651 | AE30: =$AB30*'Production Assumptions'!$C$6 -> 0 | AF30: =$AB30*'Production Assumptions'!$C$6 -> 0 | AG30: =AD30 -> 56334.651 | AH30: =$AB30*'Production Assumptions'!$C$6 -> 0 | AI30: =$AB30*'Production Assumptions'!$C$6 -> 0 | AJ30: =AD30 -> 56334.651 | AK30: =$AB30*'Production Assumptions'!$C$6 -> 0 | AL30: =$AB30*'Production Assumptions'!$C$6 -> 0 | AM30: =AD30 -> 56334.651 | AN30: =$AB30*'Production Assumptions'!$C$6 -> 0 | AO30: =$AB30*'Production Assumptions'!$C$6 -> 0 | AP30: =($AC$30*('Production Assumptions'!$C$6)) -> 236830.8728 | AQ30: =(AP30*('Production Assumptions'!$C$6)) -> 248909.2473 | AR30: =(AQ30*('Production Assumptions'!$C$6)) -> 261603.6189 | AS30: =(AR30*('Production Assumptions'!$C$6)) -> 274945.4035 | AT30: =(AS30*('Production Assumptions'!$C$6)) -> 288967.6191 | AU30: =(AT30*('Production Assumptions'!$C$6)) -> 303704.9676 | AV30: =(AU30*('Production Assumptions'!$C$6)) -> 319193.921 | AW30: 1.051
B31: Bank Charges | C31: 720 | D31: =IF(D$6=0,60,D$6/100*(1+'Production Assumptions'!$C$80)+60) -> 60 | E31: =IF(E$6=0,60,E$6/100*(1+'Production Assumptions'!$C$80)+60) -> 60 | F31: =IF(F$6=0,60,F$6/100*(1+'Production Assumptions'!$C$80)+60) -> 60 | G31: =IF(G$6=0,60,G$6/100*(1+'Production Assumptions'!$C$80)+60) -> 60 | H31: =IF(H$6=0,60,H$6/100*(1+'Production Assumptions'!$C$80)+60) -> 60 | I31: =IF(I$6=0,60,I$6/100*(1+'Production Assumptions'!$C$80)+60) -> 60 | J31: =IF(J$6=0,60,J$6/100*(1+'Production Assumptions'!$C$80)+60) -> 60 | K31: =IF(K$6=0,60,K$6/100*(1+'Production Assumptions'!$C$80)+60) -> 60 | L31: =IF(L$6=0,60,L$6/100*(1+'Production Assumptions'!$C$80)+60) -> 60 | M31: =IF(M$6=0,60,M$6/100*(1+'Production Assumptions'!$C$80)+60) -> 60 | N31: =IF(N$6=0,60,N$6/100*(1+'Production Assumptions'!$C$80)+60) -> 60 | O31: =IF(O$6=0,60,O$6/100*(1+'Production Assumptions'!$C$80)+60) -> 60 | Q31: =IF(Q$6=0,60,Q$6/100*(1+'Production Assumptions'!$C$80)+60)*('Production Assumptions'!$C$6) -> 63.06 | R31: =IF(R$6=0,60,R$6/100*(1+'Production Assumptions'!$C$80)+60)*('Production Assumptions'!$C$6) -> 63.06 | S31: =IF(S$6=0,60,S$6/100*(1+'Production Assumptions'!$C$80)+60)*('Production Assumptions'!$C$6) -> 63.06 | T31: =IF(T$6=0,60,T$6/100*(1+'Production Assumptions'!$C$80)+60)*('Production Assumptions'!$C$6) -> 63.06 | U31: =IF(U$6=0,60,U$6/100*(1+'Production Assumptions'!$C$80)+60)*('Production Assumptions'!$C$6) -> 63.06 | V31: =IF(V$6=0,60,V$6/100*(1+'Production Assumptions'!$C$80)+60)*('Production Assumptions'!$C$6) -> 63.06 | W31: =IF(W$6=0,60,W$6/100*(1+'Production Assumptions'!$C$80)+60)*('Production Assumptions'!$C$6) -> 63.06 | X31: =IF(X$6=0,60,X$6/100*(1+'Production Assumptions'!$C$80)+60)*('Production Assumptions'!$C$6) -> 63.06 | Y31: =IF(Y$6=0,60,Y$6/100*(1+'Production Assumptions'!$C$80)+60)*('Production Assumptions'!$C$6) -> 63.06 | Z31: =IF(Z$6=0,60,Z$6/100*(1+'Production Assumptions'!$C$80)+60)*('Production Assumptions'!$C$6) ->  | AA31: =IF(AA$6=0,60,AA$6/100*(1+'Production Assumptions'!$C$80)+60)*('Production Assumptions'!$C$6) ->  | AB31: =IF(AB$6=0,60,AB$6/100*(1+'Production Assumptions'!$C$80)+60)*('Production Assumptions'!$C$6) ->  | AD31: =IF(AD$6=0,60,AD$6/100*(1+'Production Assumptions'!$C$80)+60)*(('Production Assumptions'!$C$6)^$AC$2) -> 66.27606 | AE31: =IF(AE$6=0,60,AE$6/100*(1+'Production Assumptions'!$C$80)+60)*(('Production Assumptions'!$C$6)^$AC$2) -> 66.27606 | AF31: =IF(AF$6=0,60,AF$6/100*(1+'Production Assumptions'!$C$80)+60)*(('Production Assumptions'!$C$6)^$AC$2) -> 66.27606 | AG31: =IF(AG$6=0,60,AG$6/100*(1+'Production Assumptions'!$C$80)+60)*(('Production Assumptions'!$C$6)^$AC$2) -> 66.27606 | AH31: =IF(AH$6=0,60,AH$6/100*(1+'Production Assumptions'!$C$80)+60)*(('Production Assumptions'!$C$6)^$AC$2) -> 66.27606 | AI31: =IF(AI$6=0,60,AI$6/100*(1+'Production Assumptions'!$C$80)+60)*(('Production Assumptions'!$C$6)^$AC$2) -> 66.27606 | AJ31: =IF(AJ$6=0,60,AJ$6/100*(1+'Production Assumptions'!$C$80)+60)*(('Production Assumptions'!$C$6)^$AC$2) -> 66.27606 | AK31: =IF(AK$6=0,60,AK$6/100*(1+'Production Assumptions'!$C$80)+60)*(('Production Assumptions'!$C$6)^$AC$2) -> 66.27606 | AL31: =IF(AL$6=0,60,AL$6/100*(1+'Production Assumptions'!$C$80)+60)*(('Production Assumptions'!$C$6)^$AC$2) -> 66.27606 | AM31: =IF(AM$6=0,60,AM$6/100*(1+'Production Assumptions'!$C$80)+60)*(('Production Assumptions'!$C$6)^$AC$2) ->  | AN31: =IF(AN$6=0,60,AN$6/100*(1+'Production Assumptions'!$C$80)+60)*(('Production Assumptions'!$C$6)^$AC$2) ->  | AO31: =IF(AO$6=0,60,AO$6/100*(1+'Production Assumptions'!$C$80)+60)*(('Production Assumptions'!$C$6)^$AC$2) ->  | AP31: =($AC$31*('Production Assumptions'!$C$6)) ->  | AQ31: =($AC$31*('Production Assumptions'!$C$6^AO2)) ->  | AR31: =($AC$31*('Production Assumptions'!$C$6^AP2)) ->  | AS31: =($AC$31*('Production Assumptions'!$C$6^AQ2)) ->  | AT31: =($AC$31*('Production Assumptions'!$C$6^AR2)) ->  | AU31: =($AC$31*('Production Assumptions'!$C$6^AS2)) ->  | AV31: =($AC$31*('Production Assumptions'!$C$6^AT2)) -> 
B32: Marketing | D32: =IF(Interface!$J$7<Validation!$B$17,0,'Production Assumptions'!$C$82) ->  | E32: =IF(Interface!$J$7<Validation!$B$17,0,'Production Assumptions'!$C$82) ->  | F32: =IF(Interface!$J$7<Validation!$B$17,0,'Production Assumptions'!$C$82) ->  | G32: =IF(Interface!$J$7<Validation!$B$17,0,'Production Assumptions'!$C$82) ->  | H32: =IF(Interface!$J$7<Validation!$B$17,0,'Production Assumptions'!$C$82) ->  | I32: =IF(Interface!$J$7<Validation!$B$17,0,'Production Assumptions'!$C$82) ->  | J32: =IF(Interface!$J$7<Validation!$B$17,0,'Production Assumptions'!$C$82) ->  | K32: =IF(Interface!$J$7<Validation!$B$17,0,'Production Assumptions'!$C$82) ->  | L32: =IF(Interface!$J$7<Validation!$B$17,0,'Production Assumptions'!$C$82) ->  | M32: =IF(Interface!$J$7<Validation!$B$17,0,'Production Assumptions'!$C$82) ->  | N32: =IF(Interface!$J$7<Validation!$B$17,0,'Production Assumptions'!$C$82) ->  | O32: =IF(Interface!$J$7<Validation!$B$17,0,'Production Assumptions'!$C$82) ->  | Q32: =$O$32*'Production Assumptions'!$C$6 ->  | R32: =$O$32*'Production Assumptions'!$C$6 ->  | S32: =$O$32*'Production Assumptions'!$C$6 ->  | T32: =$O$32*'Production Assumptions'!$C$6 ->  | U32: =$O$32*'Production Assumptions'!$C$6 ->  | V32: =$O$32*'Production Assumptions'!$C$6 ->  | W32: =$O$32*'Production Assumptions'!$C$6 ->  | X32: =$O$32*'Production Assumptions'!$C$6 ->  | Y32: =$O$32*'Production Assumptions'!$C$6 ->  | Z32: =$O$32*'Production Assumptions'!$C$6 ->  | AA32: =$O$32*'Production Assumptions'!$C$6 ->  | AB32: =$O$32*'Production Assumptions'!$C$6 ->  | AD32: =$AB32*'Production Assumptions'!$C$6 ->  | AE32: =$AB32*'Production Assumptions'!$C$6 ->  | AF32: =$AB32*'Production Assumptions'!$C$6 ->  | AG32: =$AB32*'Production Assumptions'!$C$6 ->  | AH32: =$AB32*'Production Assumptions'!$C$6 ->  | AI32: =$AB32*'Production Assumptions'!$C$6 ->  | AJ32: =$AB32*'Production Assumptions'!$C$6 ->  | AK32: =$AB32*'Production Assumptions'!$C$6 ->  | AL32: =$AB32*'Production Assumptions'!$C$6 ->  | AM32: =$AB32*'Production Assumptions'!$C$6 ->  | AN32: =$AB32*'Production Assumptions'!$C$6 ->  | AO32: =$AB32*'Production Assumptions'!$C$6 ->  | AP32: =($AB32*('Production Assumptions'!$C$6)^AC2)*12 ->  | AQ32: =($AB32*('Production Assumptions'!$C$6)^AP2)*12 ->  | AR32: =($AB32*('Production Assumptions'!$C$6)^AQ2)*12 ->  | AS32: =($AB32*('Production Assumptions'!$C$6)^AR2)*12 ->  | AT32: =($AB32*('Production Assumptions'!$C$6)^AS2)*12 ->  | AU32: =($AB32*('Production Assumptions'!$C$6)^AT2)*12 ->  | AV32: =($AB32*('Production Assumptions'!$C$6)^AU2)*12 -> 
B33: Reserve & Unforeseen Cost | C33: =SUM(D33:O33) ->  | D33: =$C$16*'Production Assumptions'!$C$84 ->  | E33: =$C$16*'Production Assumptions'!$C$84 ->  | F33: =$C$16*'Production Assumptions'!$C$84 ->  | G33: =$C$16*'Production Assumptions'!$C$84 ->  | H33: =$C$16*'Production Assumptions'!$C$84 ->  | I33: =$C$16*'Production Assumptions'!$C$84 ->  | J33: =$C$16*'Production Assumptions'!$C$84 ->  | K33: =$C$16*'Production Assumptions'!$C$84 ->  | L33: =$C$16*'Production Assumptions'!$C$84 ->  | M33: =$C$16*'Production Assumptions'!$C$84 ->  | N33: =$C$16*'Production Assumptions'!$C$84 ->  | O33: =$C$16*'Production Assumptions'!$C$84 ->  | Q33: =$O$33*('Production Assumptions'!$C$6) ->  | R33: =$O$33*('Production Assumptions'!$C$6) ->  | S33: =$O$33*('Production Assumptions'!$C$6) ->  | T33: =$O$33*('Production Assumptions'!$C$6) ->  | U33: =$O$33*('Production Assumptions'!$C$6) ->  | V33: =$O$33*('Production Assumptions'!$C$6) ->  | W33: =$O$33*('Production Assumptions'!$C$6) ->  | X33: =$O$33*('Production Assumptions'!$C$6) ->  | Y33: =$O$33*('Production Assumptions'!$C$6) ->  | Z33: =$O$33*('Production Assumptions'!$C$6) ->  | AA33: =$O$33*('Production Assumptions'!$C$6) ->  | AB33: =$O$33*('Production Assumptions'!$C$6) ->  | AD33: =$AB33*'Production Assumptions'!$C$6 ->  | AE33: =$AB33*'Production Assumptions'!$C$6 ->  | AF33: =$AB33*'Production Assumptions'!$C$6 ->  | AG33: =$AB33*'Production Assumptions'!$C$6 ->  | AH33: =$AB33*'Production Assumptions'!$C$6 ->  | AI33: =$AB33*'Production Assumptions'!$C$6 ->  | AJ33: =$AB33*'Production Assumptions'!$C$6 ->  | AK33: =$AB33*'Production Assumptions'!$C$6 ->  | AL33: =$AB33*'Production Assumptions'!$C$6 ->  | AM33: =$AB33*'Production Assumptions'!$C$6 ->  | AN33: =$AB33*'Production Assumptions'!$C$6 ->  | AO33: =$AB33*'Production Assumptions'!$C$6 ->  | AP33: =($AB$33*('Production Assumptions'!$C$6)^AC2)*12 ->  | AQ33: =($AB$33*('Production Assumptions'!$C$6)^AP2)*12 ->  | AR33: =($AB$33*('Production Assumptions'!$C$6)^AQ2)*12 ->  | AS33: =($AB$33*('Production Assumptions'!$C$6)^AR2)*12 ->  | AT33: =($AB$33*('Production Assumptions'!$C$6)^AS2)*12 ->  | AU33: =($AB$33*('Production Assumptions'!$C$6)^AT2)*12 ->  | AV33: =($AB$33*('Production Assumptions'!$C$6)^AU2)*12 -> 
B34: ='Production Assumptions'!E68 -> Test kits for ammonia and nitrite | C34: 6000 | D34: =IF(Interface!$J$7<Validation!$B$22,'Production Assumptions'!$F$68,'Production Assumptions'!$F$68) -> 6000 | P34: =SUM(Q34:AB34) -> 6306 | Q34: =$D$34*'Production Assumptions'!$C$6 -> 6306 | AC34: 6627.606 | AD34: =$Q$34*'Production Assumptions'!$C$6 -> 6627.606 | AE34: =$AB34*'Production Assumptions'!$C$6 -> 0 | AF34: =$AB34*'Production Assumptions'!$C$6 -> 0 | AG34: =$AB34*'Production Assumptions'!$C$6 -> 0 | AH34: =$AB34*'Production Assumptions'!$C$6 -> 0 | AI34: =$AB34*'Production Assumptions'!$C$6 -> 0 | AJ34: =$AB34*'Production Assumptions'!$C$6 -> 0 | AK34: =$AB34*'Production Assumptions'!$C$6 -> 0 | AL34: =$AB34*'Production Assumptions'!$C$6 -> 0 | AM34: =$AB34*'Production Assumptions'!$C$6 -> 0 | AN34: =$AB34*'Production Assumptions'!$C$6 -> 0 | AO34: =$AB34*'Production Assumptions'!$C$6 -> 0 | AP34: =$Q$34*('Production Assumptions'!$C$6)^AC2 -> 6965.613906 | AQ34: =$Q$34*('Production Assumptions'!$C$6)^AP2 -> 7320.860215 | AR34: =$Q$34*('Production Assumptions'!$C$6)^AQ2 -> 7694.224086 | AS34: =$Q$34*('Production Assumptions'!$C$6)^AR2 -> 8086.629515 | AT34: =$Q$34*('Production Assumptions'!$C$6)^AS2 -> 8499.04762 | AU34: =$Q$34*('Production Assumptions'!$C$6)^AT2 -> 8932.499048 | AV34: =$Q$34*('Production Assumptions'!$C$6)^AU2 -> 9388.0565 | AW34: 1.051
B35: TOTAL FIXED COST: | C35: =SUM(C19:C34) ->  | D35: =SUM(D19:D34) ->  | E35: =SUM(E19:E34) -> 
B37: TOTAL EXPENSES: | C37: =C16+C35 ->  | D37: =D16+D35 ->  | E37: =E16+E35 ->  | AC37: =AC16+AC35 ->  | AD37: =AD16+AD35 -> 
B39: PROFIT OR LOSS: | C39: =C7-C37 -> 
AC41: =AC37/AC7 -> 

Sheet Working Capital - Pond
A1: Aquaculture - Marron Crayfish Production financial analysis
B3: WORKING CAPITAL | C3: Year 1 | O3: Year 2
C4: ='OPEX - Pond'!D4 -> Month 1 | D4: ='OPEX - Pond'!E4 -> Month 2 | E4: ='OPEX - Pond'!F4 -> Month 3 | F4: ='OPEX - Pond'!G4 -> Month 4 | G4: ='OPEX - Pond'!H4 -> Month 5 | H4: ='OPEX - Pond'!I4 -> Month 6 | I4: ='OPEX - Pond'!J4 -> Month 7 | J4: ='OPEX - Pond'!K4 -> Month 8 | K4: ='OPEX - Pond'!L4 -> Month 9 | L4: ='OPEX - Pond'!M4 -> Month 10 | M4: ='OPEX - Pond'!N4 -> Month 11 | N4: ='OPEX - Pond'!O4 -> Month 12 | O4: Month 13 | P4: Month 14 | Q4: Month 15 | R4: Month 16 | S4: Month 17 | T4: Month 18 | U4: Month 19 | V4: Month 20 | W4: Month 21 | X4: Month 22 | Y4: Month 23 | Z4: Month 24 | AA4: Total
B5: VARIABLE COSTS:
B6: ='OPEX - Pond'!B10 -> Fingerling | C6: ='OPEX - Pond'!D10 ->  | D6: ='OPEX - Pond'!E10 -> 0 | E6: ='OPEX - Pond'!F10 -> 0 | F6: ='OPEX - Pond'!G10 -> 0 | G6: ='OPEX - Pond'!H10 -> 0 | H6: ='OPEX - Pond'!I10 -> 0 | I6: ='OPEX - Pond'!J10 -> 0 | J6: ='OPEX - Pond'!K10 -> 0 | K6: ='OPEX - Pond'!L10 -> 0 | L6: ='OPEX - Pond'!M10 -> 0 | M6: ='OPEX - Pond'!N10 -> 0 | N6: ='OPEX - Pond'!O10 -> 0 | O6: ='OPEX - Pond'!Q10 ->  | P6: ='OPEX - Pond'!R10 -> 0 | Q6: ='OPEX - Pond'!S10 -> 0 | R6: ='OPEX - Pond'!T10 -> 0 | S6: ='OPEX - Pond'!U10 -> 0 | T6: ='OPEX - Pond'!V10 -> 0 | U6: ='OPEX - Pond'!W10 -> 0 | V6: ='OPEX - Pond'!X10 -> 0 | W6: ='OPEX - Pond'!Y10 -> 0 | X6: ='OPEX - Pond'!Z10 -> 0 | Y6: ='OPEX - Pond'!AA10 -> 0 | Z6: ='OPEX - Pond'!AB10 -> 0 | AA6: =SUM(C6:Z6) -> 
B7: ='OPEX - Pond'!B11 -> Fertiliser | C7: ='OPEX - Pond'!D11 ->  | D7: ='OPEX - Pond'!E11 -> 0 | E7: ='OPEX - Pond'!F11 -> 0 | F7: ='OPEX - Pond'!G11 -> 0 | G7: ='OPEX - Pond'!H11 -> 0 | H7: ='OPEX - Pond'!I11 -> 0 | I7: ='OPEX - Pond'!J11 -> 0 | J7: ='OPEX - Pond'!K11 -> 0 | K7: ='OPEX - Pond'!L11 -> 0 | L7: ='OPEX - Pond'!M11 -> 0 | M7: ='OPEX - Pond'!N11 -> 0 | N7: ='OPEX - Pond'!O11 -> 0 | O7: ='OPEX - Pond'!Q11 ->  | P7: ='OPEX - Pond'!R11 -> 0 | Q7: ='OPEX - Pond'!S11 -> 0 | R7: ='OPEX - Pond'!T11 -> 0 | S7: ='OPEX - Pond'!U11 -> 0 | T7: ='OPEX - Pond'!V11 -> 0 | U7: ='OPEX - Pond'!W11 -> 0 | V7: ='OPEX - Pond'!X11 -> 0 | W7: ='OPEX - Pond'!Y11 -> 0 | X7: ='OPEX - Pond'!Z11 -> 0 | Y7: ='OPEX - Pond'!AA11 -> 0 | Z7: ='OPEX - Pond'!AB11 -> 0
B8: ='OPEX - Pond'!B12 -> Feed | C8: ='OPEX - Pond'!D12 ->  | D8: ='OPEX - Pond'!E12 ->  | E8: ='OPEX - Pond'!F12 ->  | F8: ='OPEX - Pond'!G12 ->  | G8: ='OPEX - Pond'!H12 ->  | H8: ='OPEX - Pond'!I12 ->  | I8: ='OPEX - Pond'!J12 ->  | J8: ='OPEX - Pond'!K12 ->  | K8: ='OPEX - Pond'!L12 ->  | L8: ='OPEX - Pond'!M12 ->  | M8: ='OPEX - Pond'!N12 ->  | N8: ='OPEX - Pond'!O12 ->  | O8: ='OPEX - Pond'!Q12 ->  | P8: ='OPEX - Pond'!R12 ->  | Q8: ='OPEX - Pond'!S12 ->  | R8: ='OPEX - Pond'!T12 ->  | S8: ='OPEX - Pond'!U12 ->  | T8: ='OPEX - Pond'!V12 ->  | U8: ='OPEX - Pond'!W12 ->  | V8: ='OPEX - Pond'!X12 ->  | W8: ='OPEX - Pond'!Y12 ->  | X8: ='OPEX - Pond'!Z12 ->  | Y8: ='OPEX - Pond'!AA12 ->  | Z8: ='OPEX - Pond'!AB12 -> 
B9: ='OPEX - Pond'!B13 -> Consumables - Water Quality | C9: ='OPEX - Pond'!D13 -> 8000 | D9: ='OPEX - Pond'!E13 -> 0 | E9: ='OPEX - Pond'!F13 -> 0 | F9: ='OPEX - Pond'!G13 -> 0 | G9: ='OPEX - Pond'!H13 -> 0 | H9: ='OPEX - Pond'!I13 -> 0 | I9: ='OPEX - Pond'!J13 -> 0 | J9: ='OPEX - Pond'!K13 -> 0 | K9: ='OPEX - Pond'!L13 -> 0 | L9: ='OPEX - Pond'!M13 -> 0 | M9: ='OPEX - Pond'!N13 -> 0 | N9: ='OPEX - Pond'!O13 -> 0 | O9: ='OPEX - Pond'!Q13 -> 8408 | P9: ='OPEX - Pond'!R13 -> 0 | Q9: ='OPEX - Pond'!S13 -> 0 | R9: ='OPEX - Pond'!T13 -> 0 | S9: ='OPEX - Pond'!U13 -> 0 | T9: ='OPEX - Pond'!V13 -> 0 | U9: ='OPEX - Pond'!W13 -> 0 | V9: ='OPEX - Pond'!X13 -> 0 | W9: ='OPEX - Pond'!Y13 -> 0 | X9: ='OPEX - Pond'!Z13 -> 0 | Y9: ='OPEX - Pond'!AA13 -> 0 | Z9: ='OPEX - Pond'!AB13 -> 0 | AA9: 16408
B10: ='OPEX - Pond'!B14 -> Transport Costs | C10: ='OPEX - Pond'!D14 -> 300 | D10: ='OPEX - Pond'!E14 -> 300 | E10: ='OPEX - Pond'!F14 -> 300 | F10: ='OPEX - Pond'!G14 -> 300 | G10: ='OPEX - Pond'!H14 -> 300 | H10: ='OPEX - Pond'!I14 -> 300 | I10: ='OPEX - Pond'!J14 -> 300 | J10: ='OPEX - Pond'!K14 -> 300 | K10: ='OPEX - Pond'!L14 -> 300 | L10: ='OPEX - Pond'!M14 -> 300 | M10: ='OPEX - Pond'!N14 -> 300 | N10: ='OPEX - Pond'!O14 -> 300 | O10: ='OPEX - Pond'!Q14 -> 315.3 | P10: ='OPEX - Pond'!R14 -> 315.3 | Q10: ='OPEX - Pond'!S14 -> 315.3 | R10: ='OPEX - Pond'!T14 -> 315.3 | S10: ='OPEX - Pond'!U14 -> 315.3 | T10: ='OPEX - Pond'!V14 -> 315.3 | U10: ='OPEX - Pond'!W14 -> 315.3 | V10: ='OPEX - Pond'!X14 -> 315.3 | W10: ='OPEX - Pond'!Y14 -> 315.3 | X10: ='OPEX - Pond'!Z14 ->  | Y10: ='OPEX - Pond'!AA14 ->  | Z10: ='OPEX - Pond'!AB14 -> 
B11: ='OPEX - Pond'!B15 -> Water | C11: ='OPEX - Pond'!D15 ->  | D11: ='OPEX - Pond'!E15 ->  | E11: ='OPEX - Pond'!F15 ->  | F11: ='OPEX - Pond'!G15 ->  | G11: ='OPEX - Pond'!H15 ->  | H11: ='OPEX - Pond'!I15 ->  | I11: ='OPEX - Pond'!J15 ->  | J11: ='OPEX - Pond'!K15 ->  | K11: ='OPEX - Pond'!L15 ->  | L11: ='OPEX - Pond'!M15 ->  | M11: ='OPEX - Pond'!N15 ->  | N11: ='OPEX - Pond'!O15 ->  | O11: ='OPEX - Pond'!Q15 ->  | P11: ='OPEX - Pond'!R15 ->  | Q11: ='OPEX - Pond'!S15 ->  | R11: ='OPEX - Pond'!T15 ->  | S11: ='OPEX - Pond'!U15 ->  | T11: ='OPEX - Pond'!V15 ->  | U11: ='OPEX - Pond'!W15 ->  | V11: ='OPEX - Pond'!X15 ->  | W11: ='OPEX - Pond'!Y15 ->  | X11: ='OPEX - Pond'!Z15 ->  | Y11: ='OPEX - Pond'!AA15 ->  | Z11: ='OPEX - Pond'!AB15 -> 
B12: TOTAL VARIABLE COST: | C12: =SUM(C6:C11) ->  | D12: =SUM(D6:D11) ->  | J12: =SUM(J6:J11) ->  | L12: =SUM(L6:L11) ->  | N12: =SUM(N6:N11) ->  | O12: =SUM(O6:O11) ->  | P12: =SUM(P6:P11) ->  | Q12: =SUM(Q6:Q11) ->  | AA12: =SUM(C12:Z12) -> 
B14: FIXED COSTS:
B15: ='OPEX - Pond'!B19 -> Salaries - Staff | C15: ='OPEX - Pond'!D19 ->  | D15: ='OPEX - Pond'!E19 ->  | E15: ='OPEX - Pond'!F19 ->  | F15: ='OPEX - Pond'!G19 ->  | G15: ='OPEX - Pond'!H19 ->  | H15: ='OPEX - Pond'!I19 ->  | I15: ='OPEX - Pond'!J19 ->  | J15: ='OPEX - Pond'!K19 ->  | K15: ='OPEX - Pond'!L19 ->  | L15: ='OPEX - Pond'!M19 ->  | M15: ='OPEX - Pond'!N19 ->  | N15: ='OPEX - Pond'!O19 ->  | O15: ='OPEX - Pond'!Q19 ->  | P15: ='OPEX - Pond'!R19 ->  | Q15: ='OPEX - Pond'!S19 ->  | R15: ='OPEX - Pond'!T19 ->  | S15: ='OPEX - Pond'!U19 ->  | T15: ='OPEX - Pond'!V19 ->  | U15: ='OPEX - Pond'!W19 ->  | V15: ='OPEX - Pond'!X19 ->  | W15: ='OPEX - Pond'!Y19 ->  | X15: ='OPEX - Pond'!Z19 ->  | Y15: ='OPEX - Pond'!AA19 ->  | Z15: ='OPEX - Pond'!AB19 ->  | AA15: =SUM(C15:Z15) -> 
B16: ='OPEX - Pond'!B20 -> Insurance | C16: ='OPEX - Pond'!D20 ->  | D16: ='OPEX - Pond'!E20 ->  | E16: ='OPEX - Pond'!F20 ->  | F16: ='OPEX - Pond'!G20 ->  | G16: ='OPEX - Pond'!H20 ->  | H16: ='OPEX - Pond'!I20 ->  | I16: ='OPEX - Pond'!J20 ->  | J16: ='OPEX - Pond'!K20 ->  | K16: ='OPEX - Pond'!L20 ->  | L16: ='OPEX - Pond'!M20 ->  | M16: ='OPEX - Pond'!N20 ->  | N16: ='OPEX - Pond'!O20 ->  | O16: ='OPEX - Pond'!Q20 ->  | P16: ='OPEX - Pond'!R20 ->  | Q16: ='OPEX - Pond'!S20 ->  | R16: ='OPEX - Pond'!T20 ->  | S16: ='OPEX - Pond'!U20 ->  | T16: ='OPEX - Pond'!V20 ->  | U16: ='OPEX - Pond'!W20 ->  | V16: ='OPEX - Pond'!X20 ->  | W16: ='OPEX - Pond'!Y20 ->  | X16: ='OPEX - Pond'!Z20 ->  | Y16: ='OPEX - Pond'!AA20 ->  | Z16: ='OPEX - Pond'!AB20 ->  | AA16: =SUM(C16:Z16) -> 
B17: ='OPEX - Pond'!B21 -> Telephone Expenses | C17: ='OPEX - Pond'!D21 -> 1000 | D17: ='OPEX - Pond'!E21 -> 1000 | E17: ='OPEX - Pond'!F21 -> 1000 | F17: ='OPEX - Pond'!G21 -> 1000 | G17: ='OPEX - Pond'!H21 -> 1000 | H17: ='OPEX - Pond'!I21 -> 1000 | I17: ='OPEX - Pond'!J21 -> 1000 | J17: ='OPEX - Pond'!K21 -> 1000 | K17: ='OPEX - Pond'!L21 -> 1000 | L17: ='OPEX - Pond'!M21 -> 1000 | M17: ='OPEX - Pond'!N21 -> 1000 | N17: ='OPEX - Pond'!O21 -> 1000 | O17: ='OPEX - Pond'!Q21 -> 1051 | P17: ='OPEX - Pond'!R21 -> 1051 | Q17: ='OPEX - Pond'!S21 -> 1051 | R17: ='OPEX - Pond'!T21 -> 1051 | S17: ='OPEX - Pond'!U21 -> 1051 | T17: ='OPEX - Pond'!V21 -> 1051 | U17: ='OPEX - Pond'!W21 -> 1051 | V17: ='OPEX - Pond'!X21 -> 1051 | W17: ='OPEX - Pond'!Y21 -> 1051 | X17: ='OPEX - Pond'!Z21 -> 1051 | Y17: ='OPEX - Pond'!AA21 -> 1051 | Z17: ='OPEX - Pond'!AB21 -> 1051 | AA17: =SUM(C17:Z17) -> 24612
B18: ='OPEX - Pond'!B22 -> Security (specific to facility) | C18: ='OPEX - Pond'!D22 ->  | D18: ='OPEX - Pond'!E22 ->  | E18: ='OPEX - Pond'!F22 ->  | F18: ='OPEX - Pond'!G22 ->  | G18: ='OPEX - Pond'!H22 ->  | H18: ='OPEX - Pond'!I22 ->  | I18: ='OPEX - Pond'!J22 ->  | J18: ='OPEX - Pond'!K22 ->  | K18: ='OPEX - Pond'!L22 ->  | L18: ='OPEX - Pond'!M22 ->  | M18: ='OPEX - Pond'!N22 ->  | N18: ='OPEX - Pond'!O22 ->  | O18: ='OPEX - Pond'!Q22 -> 840.8 | P18: ='OPEX - Pond'!R22 -> 840.8 | Q18: ='OPEX - Pond'!S22 -> 840.8 | R18: ='OPEX - Pond'!T22 -> 840.8 | S18: ='OPEX - Pond'!U22 -> 840.8 | T18: ='OPEX - Pond'!V22 -> 840.8 | U18: ='OPEX - Pond'!W22 -> 840.8 | V18: ='OPEX - Pond'!X22 -> 840.8 | W18: ='OPEX - Pond'!Y22 -> 840.8 | X18: ='OPEX - Pond'!Z22 -> 840.8 | Y18: ='OPEX - Pond'!AA22 -> 840.8 | Z18: ='OPEX - Pond'!AB22 -> 840.8 | AA18: =SUM(C18:Z18) -> 
B19: ='OPEX - Pond'!B23 -> Facilities Electricity | C19: ='OPEX - Pond'!D23 ->  | D19: ='OPEX - Pond'!E23 ->  | E19: ='OPEX - Pond'!F23 ->  | F19: ='OPEX - Pond'!G23 ->  | G19: ='OPEX - Pond'!H23 ->  | H19: ='OPEX - Pond'!I23 ->  | I19: ='OPEX - Pond'!J23 ->  | J19: ='OPEX - Pond'!K23 ->  | K19: ='OPEX - Pond'!L23 ->  | L19: ='OPEX - Pond'!M23 ->  | M19: ='OPEX - Pond'!N23 ->  | N19: ='OPEX - Pond'!O23 ->  | O19: ='OPEX - Pond'!Q23 ->  | P19: ='OPEX - Pond'!R23 ->  | Q19: ='OPEX - Pond'!S23 ->  | R19: ='OPEX - Pond'!T23 ->  | S19: ='OPEX - Pond'!U23 ->  | T19: ='OPEX - Pond'!V23 ->  | U19: ='OPEX - Pond'!W23 ->  | V19: ='OPEX - Pond'!X23 ->  | W19: ='OPEX - Pond'!Y23 ->  | X19: ='OPEX - Pond'!Z23 ->  | Y19: ='OPEX - Pond'!AA23 ->  | Z19: ='OPEX - Pond'!AB23 -> 
B20: ='OPEX - Pond'!B24 -> System Electricity | C20: ='OPEX - Pond'!D24 ->  | D20: ='OPEX - Pond'!E24 ->  | E20: ='OPEX - Pond'!F24 ->  | F20: ='OPEX - Pond'!G24 ->  | G20: ='OPEX - Pond'!H24 ->  | H20: ='OPEX - Pond'!I24 ->  | I20: ='OPEX - Pond'!J24 ->  | J20: ='OPEX - Pond'!K24 ->  | K20: ='OPEX - Pond'!L24 ->  | L20: ='OPEX - Pond'!M24 ->  | M20: ='OPEX - Pond'!N24 ->  | N20: ='OPEX - Pond'!O24 ->  | O20: ='OPEX - Pond'!Q24 ->  | P20: ='OPEX - Pond'!R24 ->  | Q20: ='OPEX - Pond'!S24 ->  | R20: ='OPEX - Pond'!T24 ->  | S20: ='OPEX - Pond'!U24 ->  | T20: ='OPEX - Pond'!V24 ->  | U20: ='OPEX - Pond'!W24 ->  | V20: ='OPEX - Pond'!X24 ->  | W20: ='OPEX - Pond'!Y24 ->  | X20: ='OPEX - Pond'!Z24 ->  | Y20: ='OPEX - Pond'!AA24 ->  | Z20: ='OPEX - Pond'!AB24 -> 
B21: ='OPEX - Pond'!B25 -> Sumps and waste water treatment | C21: ='OPEX - Pond'!D25 ->  | D21: ='OPEX - Pond'!E25 ->  | E21: ='OPEX - Pond'!F25 ->  | F21: ='OPEX - Pond'!G25 ->  | G21: ='OPEX - Pond'!H25 ->  | H21: ='OPEX - Pond'!I25 ->  | I21: ='OPEX - Pond'!J25 ->  | J21: ='OPEX - Pond'!K25 ->  | K21: ='OPEX - Pond'!L25 ->  | L21: ='OPEX - Pond'!M25 ->  | M21: ='OPEX - Pond'!N25 ->  | N21: ='OPEX - Pond'!O25 ->  | O21: ='OPEX - Pond'!Q25 ->  | P21: ='OPEX - Pond'!R25 ->  | Q21: ='OPEX - Pond'!S25 ->  | R21: ='OPEX - Pond'!T25 ->  | S21: ='OPEX - Pond'!U25 ->  | T21: ='OPEX - Pond'!V25 ->  | U21: ='OPEX - Pond'!W25 ->  | V21: ='OPEX - Pond'!X25 ->  | W21: ='OPEX - Pond'!Y25 ->  | X21: ='OPEX - Pond'!Z25 ->  | Y21: ='OPEX - Pond'!AA25 ->  | Z21: ='OPEX - Pond'!AB25 -> 
B22: ='OPEX - Pond'!B26 -> Legal & licencing | C22: ='OPEX - Pond'!D26 -> 550000 | D22: ='OPEX - Pond'!E26 -> 0 | E22: ='OPEX - Pond'!F26 -> 0 | F22: ='OPEX - Pond'!G26 -> 0 | G22: ='OPEX - Pond'!H26 -> 0 | H22: ='OPEX - Pond'!I26 -> 0 | I22: ='OPEX - Pond'!J26 -> 0 | J22: ='OPEX - Pond'!K26 -> 0 | K22: ='OPEX - Pond'!L26 -> 0 | L22: ='OPEX - Pond'!M26 -> 0 | M22: ='OPEX - Pond'!N26 -> 0 | N22: ='OPEX - Pond'!O26 -> 0 | O22: ='OPEX - Pond'!Q26 -> 0 | P22: ='OPEX - Pond'!R26 -> 0 | Q22: ='OPEX - Pond'!S26 -> 0 | R22: ='OPEX - Pond'!T26 -> 0 | S22: ='OPEX - Pond'!U26 -> 0 | T22: ='OPEX - Pond'!V26 -> 0 | U22: ='OPEX - Pond'!W26 -> 0 | V22: ='OPEX - Pond'!X26 -> 0 | W22: ='OPEX - Pond'!Y26 -> 0 | X22: ='OPEX - Pond'!Z26 -> 0 | Y22: ='OPEX - Pond'!AA26 -> 0 | Z22: ='OPEX - Pond'!AB26 -> 0 | AA22: 550000
B23: ='OPEX - Pond'!B27 -> Health and safety apparel | C23: ='OPEX - Pond'!D27 -> 0 | D23: ='OPEX - Pond'!E27 -> 0 | E23: ='OPEX - Pond'!F27 -> 0 | F23: ='OPEX - Pond'!G27 -> 0 | G23: ='OPEX - Pond'!H27 -> 0 | H23: ='OPEX - Pond'!I27 -> 0 | I23: ='OPEX - Pond'!J27 -> 0 | J23: ='OPEX - Pond'!K27 -> 0 | K23: ='OPEX - Pond'!L27 -> 0 | L23: ='OPEX - Pond'!M27 -> 0 | M23: ='OPEX - Pond'!N27 -> 0 | N23: ='OPEX - Pond'!O27 -> 0 | O23: ='OPEX - Pond'!Q27 -> 0 | P23: ='OPEX - Pond'!R27 -> 0 | Q23: ='OPEX - Pond'!S27 -> 0 | R23: ='OPEX - Pond'!T27 -> 0 | S23: ='OPEX - Pond'!U27 -> 0 | T23: ='OPEX - Pond'!V27 -> 0 | U23: ='OPEX - Pond'!W27 -> 0 | V23: ='OPEX - Pond'!X27 -> 0 | W23: ='OPEX - Pond'!Y27 -> 0 | X23: ='OPEX - Pond'!Z27 -> 0 | Y23: ='OPEX - Pond'!AA27 -> 0 | Z23: ='OPEX - Pond'!AB27 -> 0 | AA23: 0
B24: ='OPEX - Pond'!B28 -> stationary | C24: ='OPEX - Pond'!D28 -> 100 | D24: ='OPEX - Pond'!E28 -> 100 | E24: ='OPEX - Pond'!F28 -> 100 | F24: ='OPEX - Pond'!G28 -> 100 | G24: ='OPEX - Pond'!H28 -> 100 | H24: ='OPEX - Pond'!I28 -> 100 | I24: ='OPEX - Pond'!J28 -> 100 | J24: ='OPEX - Pond'!K28 -> 100 | K24: ='OPEX - Pond'!L28 -> 100 | L24: ='OPEX - Pond'!M28 -> 100 | M24: ='OPEX - Pond'!N28 -> 100 | N24: ='OPEX - Pond'!O28 -> 100 | O24: ='OPEX - Pond'!Q28 -> 105.1 | P24: ='OPEX - Pond'!R28 -> 105.1 | Q24: ='OPEX - Pond'!S28 -> 105.1 | R24: ='OPEX - Pond'!T28 -> 105.1 | S24: ='OPEX - Pond'!U28 -> 105.1 | T24: ='OPEX - Pond'!V28 -> 105.1 | U24: ='OPEX - Pond'!W28 -> 105.1 | V24: ='OPEX - Pond'!X28 -> 105.1 | W24: ='OPEX - Pond'!Y28 -> 105.1 | X24: ='OPEX - Pond'!Z28 -> 105.1 | Y24: ='OPEX - Pond'!AA28 -> 105.1 | Z24: ='OPEX - Pond'!AB28 -> 105.1 | AA24: 2461.2
B25: ='OPEX - Pond'!B29 -> Cleaning materials | C25: ='OPEX - Pond'!D29 -> 1000 | D25: ='OPEX - Pond'!E29 -> 1000 | E25: ='OPEX - Pond'!F29 -> 1000 | F25: ='OPEX - Pond'!G29 -> 1000 | G25: ='OPEX - Pond'!H29 -> 1000 | H25: ='OPEX - Pond'!I29 -> 1000 | I25: ='OPEX - Pond'!J29 -> 1000 | J25: ='OPEX - Pond'!K29 -> 1000 | K25: ='OPEX - Pond'!L29 -> 1000 | L25: ='OPEX - Pond'!M29 -> 1000 | M25: ='OPEX - Pond'!N29 -> 1000 | N25: ='OPEX - Pond'!O29 -> 1000 | O25: ='OPEX - Pond'!Q29 -> 1051 | P25: ='OPEX - Pond'!R29 -> 1051 | Q25: ='OPEX - Pond'!S29 -> 1051 | R25: ='OPEX - Pond'!T29 -> 1051 | S25: ='OPEX - Pond'!U29 -> 1051 | T25: ='OPEX - Pond'!V29 -> 1051 | U25: ='OPEX - Pond'!W29 -> 1051 | V25: ='OPEX - Pond'!X29 -> 1051 | W25: ='OPEX - Pond'!Y29 -> 1051 | X25: ='OPEX - Pond'!Z29 -> 1051 | Y25: ='OPEX - Pond'!AA29 -> 1051 | Z25: ='OPEX - Pond'!AB29 -> 1051 | AA25: 24612
B26: ='OPEX - Pond'!B30 -> Vet Services | C26: ='OPEX - Pond'!D30 -> 51000 | D26: ='OPEX - Pond'!E30 -> 0 | E26: ='OPEX - Pond'!F30 -> 0 | F26: ='OPEX - Pond'!G30 -> 51000 | G26: ='OPEX - Pond'!H30 -> 0 | H26: ='OPEX - Pond'!I30 -> 0 | I26: ='OPEX - Pond'!J30 -> 51000 | J26: ='OPEX - Pond'!K30 -> 0 | K26: ='OPEX - Pond'!L30 -> 0 | L26: ='OPEX - Pond'!M30 -> 51000 | M26: ='OPEX - Pond'!N30 -> 0 | N26: ='OPEX - Pond'!O30 -> 0 | O26: ='OPEX - Pond'!Q30 -> 53601 | P26: ='OPEX - Pond'!R30 -> 0 | Q26: ='OPEX - Pond'!S30 -> 0 | R26: ='OPEX - Pond'!T30 -> 53601 | S26: ='OPEX - Pond'!U30 -> 0 | T26: ='OPEX - Pond'!V30 -> 0 | U26: ='OPEX - Pond'!W30 -> 53601 | V26: ='OPEX - Pond'!X30 -> 0 | W26: ='OPEX - Pond'!Y30 -> 0 | X26: ='OPEX - Pond'!Z30 -> 53601 | Y26: ='OPEX - Pond'!AA30 -> 0 | Z26: ='OPEX - Pond'!AB30 -> 0 | AA26: 418404
B27: ='OPEX - Pond'!B31 -> Bank Charges | C27: ='OPEX - Pond'!D31 -> 60 | D27: ='OPEX - Pond'!E31 -> 60 | E27: ='OPEX - Pond'!F31 -> 60 | F27: ='OPEX - Pond'!G31 -> 60 | G27: ='OPEX - Pond'!H31 -> 60 | H27: ='OPEX - Pond'!I31 -> 60 | I27: ='OPEX - Pond'!J31 -> 60 | J27: ='OPEX - Pond'!K31 -> 60 | K27: ='OPEX - Pond'!L31 -> 60 | L27: ='OPEX - Pond'!M31 -> 60 | M27: ='OPEX - Pond'!N31 -> 60 | N27: ='OPEX - Pond'!O31 -> 60 | O27: ='OPEX - Pond'!Q31 -> 63.06 | P27: ='OPEX - Pond'!R31 -> 63.06 | Q27: ='OPEX - Pond'!S31 -> 63.06 | R27: ='OPEX - Pond'!T31 -> 63.06 | S27: ='OPEX - Pond'!U31 -> 63.06 | T27: ='OPEX - Pond'!V31 -> 63.06 | U27: ='OPEX - Pond'!W31 -> 63.06 | V27: ='OPEX - Pond'!X31 -> 63.06 | W27: ='OPEX - Pond'!Y31 -> 63.06 | X27: ='OPEX - Pond'!Z31 ->  | Y27: ='OPEX - Pond'!AA31 ->  | Z27: ='OPEX - Pond'!AB31 -> 
B28: ='OPEX - Pond'!B32 -> Marketing | C28: ='OPEX - Pond'!D32 ->  | D28: ='OPEX - Pond'!E32 ->  | E28: ='OPEX - Pond'!F32 ->  | F28: ='OPEX - Pond'!G32 ->  | G28: ='OPEX - Pond'!H32 ->  | H28: ='OPEX - Pond'!I32 ->  | I28: ='OPEX - Pond'!J32 ->  | J28: ='OPEX - Pond'!K32 ->  | K28: ='OPEX - Pond'!L32 ->  | L28: ='OPEX - Pond'!M32 ->  | M28: ='OPEX - Pond'!N32 ->  | N28: ='OPEX - Pond'!O32 ->  | O28: ='OPEX - Pond'!Q32 ->  | P28: ='OPEX - Pond'!R32 ->  | Q28: ='OPEX - Pond'!S32 ->  | R28: ='OPEX - Pond'!T32 ->  | S28: ='OPEX - Pond'!U32 ->  | T28: ='OPEX - Pond'!V32 ->  | U28: ='OPEX - Pond'!W32 ->  | V28: ='OPEX - Pond'!X32 ->  | W28: ='OPEX - Pond'!Y32 ->  | X28: ='OPEX - Pond'!Z32 ->  | Y28: ='OPEX - Pond'!AA32 ->  | Z28: ='OPEX - Pond'!AB32 -> 
B29: ='OPEX - Pond'!B33 -> Reserve & Unforeseen Cost | C29: ='OPEX - Pond'!D33 ->  | D29: ='OPEX - Pond'!E33 ->  | E29: ='OPEX - Pond'!F33 ->  | F29: ='OPEX - Pond'!G33 ->  | G29: ='OPEX - Pond'!H33 ->  | H29: ='OPEX - Pond'!I33 ->  | I29: ='OPEX - Pond'!J33 ->  | J29: ='OPEX - Pond'!K33 ->  | K29: ='OPEX - Pond'!L33 ->  | L29: ='OPEX - Pond'!M33 ->  | M29: ='OPEX - Pond'!N33 ->  | N29: ='OPEX - Pond'!O33 ->  | O29: ='OPEX - Pond'!Q33 ->  | P29: ='OPEX - Pond'!R33 ->  | Q29: ='OPEX - Pond'!S33 ->  | R29: ='OPEX - Pond'!T33 ->  | S29: ='OPEX - Pond'!U33 ->  | T29: ='OPEX - Pond'!V33 ->  | U29: ='OPEX - Pond'!W33 ->  | V29: ='OPEX - Pond'!X33 ->  | W29: ='OPEX - Pond'!Y33 ->  | X29: ='OPEX - Pond'!Z33 ->  | Y29: ='OPEX - Pond'!AA33 ->  | Z29: ='OPEX - Pond'!AB33 -> 
B30: ='OPEX - Pond'!B34 -> Test kits for ammonia and nitrite | C30: ='OPEX - Pond'!D34 -> 6000 | D30: ='OPEX - Pond'!E34 -> 0 | E30: ='OPEX - Pond'!F34 -> 0 | F30: ='OPEX - Pond'!G34 -> 0 | G30: ='OPEX - Pond'!H34 -> 0 | H30: ='OPEX - Pond'!I34 -> 0 | I30: ='OPEX - Pond'!J34 -> 0 | J30: ='OPEX - Pond'!K34 -> 0 | K30: ='OPEX - Pond'!L34 -> 0 | L30: ='OPEX - Pond'!M34 -> 0 | M30: ='OPEX - Pond'!N34 -> 0 | N30: ='OPEX - Pond'!O34 -> 0 | O30: ='OPEX - Pond'!Q34 -> 6306 | P30: ='OPEX - Pond'!R34 -> 0 | Q30: ='OPEX - Pond'!S34 -> 0 | R30: ='OPEX - Pond'!T34 -> 0 | S30: ='OPEX - Pond'!U34 -> 0 | T30: ='OPEX - Pond'!V34 -> 0 | U30: ='OPEX - Pond'!W34 -> 0 | V30: ='OPEX - Pond'!X34 -> 0 | W30: ='OPEX - Pond'!Y34 -> 0 | X30: ='OPEX - Pond'!Z34 -> 0 | Y30: ='OPEX - Pond'!AA34 -> 0 | Z30: ='OPEX - Pond'!AB34 -> 0 | AA30: 12306
B31: TOTAL FIXED COST: | C31: =SUM(C15:C30) ->  | D31: =SUM(D15:D30) ->  | AA31: =SUM(AA15:AA30) -> 
B33: TOTAL EXPENSES: | C33: =SUM(C31,C12) ->  | D33: =SUM(D31,D12) ->  | E33: =SUM(E31,E12) ->  | O33: =SUM(O31,O12) ->  | P33: =SUM(P31,P12) ->  | Q33: =SUM(Q31,Q12) ->  | AA33: =SUM(AA31,AA12) -> 
B35: TOTAL WORKING CAPITAL FOR 24MONTHS
B36: Items | C36: Cost
B37: Variable | C37: =SUM(C12:Z12) -> 
B38: Fixed cost | C38: =SUM(C31:Z31) -> 
B39: Total | C39: =SUM(C37:C38) -> 

Sheet IS - Pond
A1: Aquaculture - Marron Crayfish Production financial analysis
B3: Projected Income Statement | D3: Year
C4: YEAR 0 | D4: Year 1 | E4: Year 2 | F4: Year 3 | G4: Year 4 | H4: Year 5 | I4: Year 6 | J4: Year 7 | K4: Year 8 | L4: Year 9 | M4: Year 10 | N4: NO POSITIVE
B5: Revenue
B6: ='OPEX - Pond'!B6 -> Marron (Live, Fresh, frozen) | D6: ='OPEX - Pond'!C6 -> 0 | E6: ='OPEX - Pond'!P6 ->  | F6: ='OPEX - Pond'!AC6 ->  | G6: ='OPEX - Pond'!AP6 ->  | H6: ='OPEX - Pond'!AQ6 ->  | I6: ='OPEX - Pond'!AR6 ->  | J6: ='OPEX - Pond'!AS6 ->  | K6: ='OPEX - Pond'!AT6 ->  | L6: ='OPEX - Pond'!AU6 ->  | M6: ='OPEX - Pond'!AV6 -> 
B7: Total Revenue | D7: =SUM(D6:D6) -> 0
B9: Variable Costs (Cost of Sales)
B10: ='OPEX - Pond'!B10 -> Fingerling | D10: =-'OPEX - Pond'!C10 ->  | E10: =-'OPEX - Pond'!P10 ->  | F10: =-'OPEX - Pond'!AC10 ->  | G10: =-'OPEX - Pond'!AP10 ->  | H10: =-'OPEX - Pond'!AQ10 ->  | I10: =-'OPEX - Pond'!AR10 ->  | J10: =-'OPEX - Pond'!AS10 ->  | K10: =-'OPEX - Pond'!AT10 ->  | L10: =-'OPEX - Pond'!AU10 ->  | M10: =-'OPEX - Pond'!AV10 -> 
B11: ='OPEX - Pond'!B11 -> Fertiliser | D11: =-'OPEX - Pond'!C11 ->  | E11: =-'OPEX - Pond'!P11 ->  | F11: =-'OPEX - Pond'!AC11 ->  | G11: =-'OPEX - Pond'!AP11 ->  | H11: =-'OPEX - Pond'!AQ11 ->  | I11: =-'OPEX - Pond'!AR11 ->  | J11: =-'OPEX - Pond'!AS11 ->  | K11: =-'OPEX - Pond'!AT11 ->  | L11: =-'OPEX - Pond'!AU11 ->  | M11: =-'OPEX - Pond'!AV11 -> 
B12: ='OPEX - Pond'!B12 -> Feed | D12: =-'OPEX - Pond'!C12 ->  | E12: =-'OPEX - Pond'!P12 ->  | F12: =-'OPEX - Pond'!AC12 ->  | G12: =-'OPEX - Pond'!AP12 ->  | H12: =-'OPEX - Pond'!AQ12 ->  | I12: =-'OPEX - Pond'!AR12 ->  | J12: =-'OPEX - Pond'!AS12 ->  | K12: =-'OPEX - Pond'!AT12 ->  | L12: =-'OPEX - Pond'!AU12 ->  | M12: =-'OPEX - Pond'!AV12 -> 
B13: ='OPEX - Pond'!B13 -> Consumables - Water Quality | D13: =-'OPEX - Pond'!C13 -> -8000 | E13: =-'OPEX - Pond'!P13 -> -8408 | F13: =-'OPEX - Pond'!AC13 -> 0 | G13: =-'OPEX - Pond'!AP13 -> -9287.485208 | H13: =-'OPEX - Pond'!AQ13 -> -9761.146954 | I13: =-'OPEX - Pond'!AR13 -> -10258.96545 | J13: =-'OPEX - Pond'!AS13 -> -10782.17269 | K13: =-'OPEX - Pond'!AT13 -> -11332.06349 | L13: =-'OPEX - Pond'!AU13 -> -11909.99873 | M13: =-'OPEX - Pond'!AV13 -> -12517.40867
B14: ='OPEX - Pond'!B14 -> Transport Costs | D14: =-'OPEX - Pond'!C14 -> -3600 | E14: =-'OPEX - Pond'!P14 ->  | F14: =-'OPEX - Pond'!AC14 ->  | G14: =-'OPEX - Pond'!AP14 ->  | H14: =-'OPEX - Pond'!AQ14 ->  | I14: =-'OPEX - Pond'!AR14 ->  | J14: =-'OPEX - Pond'!AS14 ->  | K14: =-'OPEX - Pond'!AT14 ->  | L14: =-'OPEX - Pond'!AU14 ->  | M14: =-'OPEX - Pond'!AV14 -> 
B15: ='OPEX - Pond'!B15 -> Water | D15: =-'OPEX - Pond'!C15 ->  | E15: =-'OPEX - Pond'!P15 ->  | F15: =-'OPEX - Pond'!AC15 ->  | G15: =-'OPEX - Pond'!AP15 ->  | H15: =-'OPEX - Pond'!AQ15 ->  | I15: =-'OPEX - Pond'!AR15 ->  | J15: =-'OPEX - Pond'!AS15 ->  | K15: =-'OPEX - Pond'!AT15 ->  | L15: =-'OPEX - Pond'!AU15 ->  | M15: =-'OPEX - Pond'!AV15 -> 
B16: Total Variable Costs (Cost of Sales) | D16: =SUM(D10:D15) -> 
B18: Gross Profit | D18: =D7+D16 ->  | E18: =E7+E16 ->  | F18: =F7+F16 -> 
B19: Gross Profit % | D19: =D18/D7 ->  | E19: =E18/E7 -> 
B21: Fixed Costs
B22: ='OPEX - Pond'!B19 -> Salaries - Staff | D22: =-('OPEX - Pond'!C19) ->  | E22: =-'OPEX - Pond'!P19 ->  | F22: =-'OPEX - Pond'!AC19 ->  | G22: =-'OPEX - Pond'!AP19 ->  | H22: =-'OPEX - Pond'!AQ19 ->  | I22: =-'OPEX - Pond'!AR19 ->  | J22: =-'OPEX - Pond'!AS19 ->  | K22: =-'OPEX - Pond'!AT19 ->  | L22: =-'OPEX - Pond'!AU19 ->  | M22: =-'OPEX - Pond'!AV19 -> 
B23: ='OPEX - Pond'!B20 -> Insurance | D23: =-('OPEX - Pond'!C20) ->  | E23: =-'OPEX - Pond'!P20 ->  | F23: =-'OPEX - Pond'!AC20 ->  | G23: =-'OPEX - Pond'!AP20 ->  | H23: =-'OPEX - Pond'!AQ20 ->  | I23: =-'OPEX - Pond'!AR20 ->  | J23: =-'OPEX - Pond'!AS20 ->  | K23: =-'OPEX - Pond'!AT20 ->  | L23: =-'OPEX - Pond'!AU20 ->  | M23: =-'OPEX - Pond'!AV20 -> 
B24: ='OPEX - Pond'!B21 -> Telephone Expenses | D24: =-('OPEX - Pond'!C21) -> -12000 | E24: =-'OPEX - Pond'!P21 -> -12612 | F24: =-'OPEX - Pond'!AC21 -> -13255.212 | G24: =-'OPEX - Pond'!AP21 -> -13931.22781 | H24: =-'OPEX - Pond'!AQ21 -> -14641.72043 | I24: =-'OPEX - Pond'!AR21 -> -15388.44817 | J24: =-'OPEX - Pond'!AS21 -> -16173.25903 | K24: =-'OPEX - Pond'!AT21 -> -16998.09524 | L24: =-'OPEX - Pond'!AU21 -> -17864.9981 | M24: =-'OPEX - Pond'!AV21 -> -18776.113
B25: ='OPEX - Pond'!B22 -> Security (specific to facility) | D25: =-('OPEX - Pond'!C22) ->  | E25: =-'OPEX - Pond'!P22 -> -10089.6 | F25: =-'OPEX - Pond'!AC22 -> -10604.1696 | G25: =-'OPEX - Pond'!AP22 -> -11144.98225 | H25: =-'OPEX - Pond'!AQ22 -> -11713.37634 | I25: =-'OPEX - Pond'!AR22 -> -12310.75854 | J25: =-'OPEX - Pond'!AS22 -> -12938.60722 | K25: =-'OPEX - Pond'!AT22 -> -13598.47619 | L25: =-'OPEX - Pond'!AU22 -> -14291.99848 | M25: =-'OPEX - Pond'!AV22 -> -15020.8904
B26: ='OPEX - Pond'!B23 -> Facilities Electricity | D26: =-('OPEX - Pond'!C23) ->  | E26: =-'OPEX - Pond'!P23 ->  | F26: =-'OPEX - Pond'!AC23 ->  | G26: =-'OPEX - Pond'!AP23 ->  | H26: =-'OPEX - Pond'!AQ23 ->  | I26: =-'OPEX - Pond'!AR23 ->  | J26: =-'OPEX - Pond'!AS23 ->  | K26: =-'OPEX - Pond'!AT23 ->  | L26: =-'OPEX - Pond'!AU23 ->  | M26: =-'OPEX - Pond'!AV23 -> 
B27: ='OPEX - Pond'!B24 -> System Electricity | D27: =-('OPEX - Pond'!C24) ->  | E27: =-'OPEX - Pond'!P24 ->  | F27: =-'OPEX - Pond'!AC24 ->  | G27: =-'OPEX - Pond'!AP24 ->  | H27: =-'OPEX - Pond'!AQ24 ->  | I27: =-'OPEX - Pond'!AR24 ->  | J27: =-'OPEX - Pond'!AS24 ->  | K27: =-'OPEX - Pond'!AT24 ->  | L27: =-'OPEX - Pond'!AU24 ->  | M27: =-'OPEX - Pond'!AV24 -> 
B28: ='OPEX - Pond'!B25 -> Sumps and waste water treatment | D28: =-('OPEX - Pond'!C25) ->  | E28: =-'OPEX - Pond'!P25 ->  | F28: =-'OPEX - Pond'!AC25 ->  | G28: =-'OPEX - Pond'!AP25 ->  | H28: =-'OPEX - Pond'!AQ25 ->  | I28: =-'OPEX - Pond'!AR25 ->  | J28: =-'OPEX - Pond'!AS25 ->  | K28: =-'OPEX - Pond'!AT25 ->  | L28: =-'OPEX - Pond'!AU25 ->  | M28: =-'OPEX - Pond'!AV25 -> 
B29: ='OPEX - Pond'!B26 -> Legal & licencing | D29: =-('OPEX - Pond'!C26) -> -550000 | E29: =-'OPEX - Pond'!P26 -> 0 | F29: =-'OPEX - Pond'!AC26 -> 0 | G29: =-'OPEX - Pond'!AP26 -> 0 | H29: =-'OPEX - Pond'!AQ26 -> -671078.8531 | I29: =-'OPEX - Pond'!AR26 -> 0 | J29: =-'OPEX - Pond'!AS26 -> 0 | K29: =-'OPEX - Pond'!AT26 -> 0 | L29: =-'OPEX - Pond'!AU26 -> 0 | M29: =-'OPEX - Pond'!AV26 -> 0
B30: ='OPEX - Pond'!B27 -> Health and safety apparel | D30: =-('OPEX - Pond'!C27) -> 0 | E30: =-'OPEX - Pond'!P27 -> 0 | F30: =-'OPEX - Pond'!AC27 -> 0 | G30: =-'OPEX - Pond'!AP27 -> 0 | H30: =-'OPEX - Pond'!AQ27 -> 0 | I30: =-'OPEX - Pond'!AR27 -> 0 | J30: =-'OPEX - Pond'!AS27 -> 0 | K30: =-'OPEX - Pond'!AT27 -> 0 | L30: =-'OPEX - Pond'!AU27 -> 0 | M30: =-'OPEX - Pond'!AV27 -> 0
B31: ='OPEX - Pond'!B28 -> stationary | D31: =-('OPEX - Pond'!C28) -> -1200 | E31: =-'OPEX - Pond'!P28 -> -1261.2 | F31: =-'OPEX - Pond'!AC28 -> -1325.5212 | G31: =-'OPEX - Pond'!AP28 -> -1393.122781 | H31: =-'OPEX - Pond'!AQ28 -> -1464.172043 | I31: =-'OPEX - Pond'!AR28 -> -1538.844817 | J31: =-'OPEX - Pond'!AS28 -> -1617.325903 | K31: =-'OPEX - Pond'!AT28 -> -1699.809524 | L31: =-'OPEX - Pond'!AU28 -> -1786.49981 | M31: =-'OPEX - Pond'!AV28 -> -1877.6113
B32: ='OPEX - Pond'!B29 -> Cleaning materials | D32: =-('OPEX - Pond'!C29) -> -12000 | E32: =-'OPEX - Pond'!P29 -> -12612 | F32: =-'OPEX - Pond'!AC29 -> -13255.212 | G32: =-'OPEX - Pond'!AP29 -> -13931.22781 | H32: =-'OPEX - Pond'!AQ29 -> -14641.72043 | I32: =-'OPEX - Pond'!AR29 -> -15388.44817 | J32: =-'OPEX - Pond'!AS29 -> -16173.25903 | K32: =-'OPEX - Pond'!AT29 -> -16998.09524 | L32: =-'OPEX - Pond'!AU29 -> -17864.9981 | M32: =-'OPEX - Pond'!AV29 -> -18776.113
B33: ='OPEX - Pond'!B30 -> Vet Services | D33: =-('OPEX - Pond'!C30) -> -204000 | E33: =-'OPEX - Pond'!P30 -> -214404 | F33: =-'OPEX - Pond'!AC30 -> -225338.604 | G33: =-'OPEX - Pond'!AP30 -> -236830.8728 | H33: =-'OPEX - Pond'!AQ30 -> -248909.2473 | I33: =-'OPEX - Pond'!AR30 -> -261603.6189 | J33: =-'OPEX - Pond'!AS30 -> -274945.4035 | K33: =-'OPEX - Pond'!AT30 -> -288967.6191 | L33: =-'OPEX - Pond'!AU30 -> -303704.9676 | M33: =-'OPEX - Pond'!AV30 -> -319193.921
B34: ='OPEX - Pond'!B31 -> Bank Charges | D34: =-('OPEX - Pond'!C31) -> -720 | E34: =-'OPEX - Pond'!P31 ->  | F34: =-'OPEX - Pond'!AC31 ->  | G34: =-'OPEX - Pond'!AP31 ->  | H34: =-'OPEX - Pond'!AQ31 ->  | I34: =-'OPEX - Pond'!AR31 ->  | J34: =-'OPEX - Pond'!AS31 ->  | K34: =-'OPEX - Pond'!AT31 ->  | L34: =-'OPEX - Pond'!AU31 ->  | M34: =-'OPEX - Pond'!AV31 -> 
B35: ='OPEX - Pond'!B32 -> Marketing | D35: =-('OPEX - Pond'!C32) ->  | E35: =-'OPEX - Pond'!P32 ->  | F35: =-'OPEX - Pond'!AC32 ->  | G35: =-'OPEX - Pond'!AP32 ->  | H35: =-'OPEX - Pond'!AQ32 ->  | I35: =-'OPEX - Pond'!AR32 ->  | J35: =-'OPEX - Pond'!AS32 ->  | K35: =-'OPEX - Pond'!AT32 ->  | L35: =-'OPEX - Pond'!AU32 ->  | M35: =-'OPEX - Pond'!AV32 -> 
B36: ='OPEX - Pond'!B33 -> Reserve & Unforeseen Cost | D36: =-('OPEX - Pond'!C33) ->  | E36: =-'OPEX - Pond'!P33 ->  | F36: =-'OPEX - Pond'!AC33 ->  | G36: =-'OPEX - Pond'!AP33 ->  | H36: =-'OPEX - Pond'!AQ33 ->  | I36: =-'OPEX - Pond'!AR33 ->  | J36: =-'OPEX - Pond'!AS33 ->  | K36: =-'OPEX - Pond'!AT33 ->  | L36: =-'OPEX - Pond'!AU33 ->  | M36: =-'OPEX - Pond'!AV33 -> 
B37: ='OPEX - Pond'!B34 -> Test kits for ammonia and nitrite | D37: =-('OPEX - Pond'!C34) -> -6000 | E37: =-'OPEX - Pond'!P34 -> -6306 | F37: =-'OPEX - Pond'!AC34 -> -6627.606 | G37: =-'OPEX - Pond'!AP34 -> -6965.613906 | H37: =-'OPEX - Pond'!AQ34 -> -7320.860215 | I37: =-'OPEX - Pond'!AR34 -> -7694.224086 | J37: =-'OPEX - Pond'!AS34 -> -8086.629515 | K37: =-'OPEX - Pond'!AT34 -> -8499.04762 | L37: =-'OPEX - Pond'!AU34 -> -8932.499048 | M37: =-'OPEX - Pond'!AV34 -> -9388.0565
B38: Total Fixed Costs | D38: =SUM(D22:D37) ->  | E38: =SUM(E22:E37) ->  | F38: =SUM(F22:F37) ->  | L38: =SUM(L22:L37) -> 
B39: TOTAL COSTS | D39: =-(D16+D38) ->  | E39: =-(E16+E38) ->  | F39: =-(F16+F38) -> 
B40: Depreciation | D40: =-'DEP - Pond'!F28 ->  | E40: =-'DEP - Pond'!G28 ->  | F40: =-'DEP - Pond'!H28 ->  | G40: =-'DEP - Pond'!I28 ->  | H40: =-'DEP - Pond'!J28 ->  | I40: =-'DEP - Pond'!K28 ->  | J40: =-'DEP - Pond'!L28 ->  | K40: =-'DEP - Pond'!M28 ->  | L40: =-'DEP - Pond'!N28 ->  | M40: =-'DEP - Pond'!O28 -> 
B42: Profit / (Loss) before Interest & Tax | D42: =D18+D38+D40 -> 
B44: Interest | D44: =IF(Interface!$H$15="DEBT",-'Loan Int & Bal - Pond'!B4, IF(Interface!$H$15="DEBT/EQUITY",-'Loan Int & Bal - Pond'!B4,0)) -> 0 | E44: =IF(Interface!$H$15="DEBT",-'Loan Int & Bal - Pond'!C4, IF(Interface!$H$15="DEBT/EQUITY",-'Loan Int & Bal - Pond'!C4,0)) -> 0 | F44: =IF(Interface!$H$15="DEBT",-'Loan Int & Bal - Pond'!D4, IF(Interface!$H$15="DEBT/EQUITY",-'Loan Int & Bal - Pond'!D4,0)) -> 0 | G44: =IF(Interface!$H$15="DEBT",-'Loan Int & Bal - Pond'!E4, IF(Interface!$H$15="DEBT/EQUITY",-'Loan Int & Bal - Pond'!E4,0)) -> 0 | H44: =IF(Interface!$H$15="DEBT",-'Loan Int & Bal - Pond'!F4, IF(Interface!$H$15="DEBT/EQUITY",-'Loan Int & Bal - Pond'!F4,0)) -> 0 | I44: =IF(Interface!$H$15="DEBT",-'Loan Int & Bal - Pond'!G4, IF(Interface!$H$15="DEBT/EQUITY",-'Loan Int & Bal - Pond'!G4,0)) -> 0 | J44: =IF(Interface!$H$15="DEBT",-'Loan Int & Bal - Pond'!H4, IF(Interface!$H$15="DEBT/EQUITY",-'Loan Int & Bal - Pond'!H4,0)) -> 0 | K44: =IF(Interface!$H$15="DEBT",-'Loan Int & Bal - Pond'!I4, IF(Interface!$H$15="DEBT/EQUITY",-'Loan Int & Bal - Pond'!I4,0)) -> 0 | L44: =IF(Interface!$H$15="DEBT",-'Loan Int & Bal - Pond'!J4, IF(Interface!$H$15="DEBT/EQUITY",-'Loan Int & Bal - Pond'!J4,0)) -> 0 | M44: =IF(Interface!$H$15="DEBT",-'Loan Int & Bal - Pond'!K4, IF(Interface!$H$15="DEBT/EQUITY",-'Loan Int & Bal - Pond'!K4,0)) -> 0
B45: Taxation | D45: =-IF((D42)*28%>0, (D42)*28%, 0) ->  | E45: =-IF((E42)*28%>0, (E42)*28%, 0) ->  | F45: =-IF((F42)*28%>0, (F42)*28%, 0) ->  | G45: =-IF((G42)*28%>0, (G42)*28%, 0) -> 
B47: Profit / (Loss) for the year | C47: -1 | D47: =D42+D45+D44 ->  | E47: =E42+E45+E44 ->  | N47: 1
B48: Profit / (Loss) % | D48: =D47/D7 -> 
B50: Breakeven | C50: -1 | D50: =D7-D39 ->  | E50: =E7-E39 ->  | N50: 1
E56: -1

Sheet BS - Pond
A1: Aquaculture - Marron Crayfish Production financial analysis
B3: Projected Balance Sheet | C3: Year
C4: YEAR 1 | D4: YEAR 2 | E4: YEAR 3 | F4: YEAR 4 | G4: YEAR 5 | H4: YEAR 6 | I4: YEAR 7 | J4: YEAR 8 | K4: YEAR 9 | L4: YEAR 10
B5: Fixed Assets
B6: Net Property, Plant & Equipment | C6: =CAPEX!J39+'IS - Pond'!D40 ->  | D6: =C6+'IS - Pond'!E40 ->  | E6: =D6+'IS - Pond'!F40 ->  | F6: =E6+'IS - Pond'!G40 ->  | G6: =F6+'IS - Pond'!H40 ->  | H6: =G6+'IS - Pond'!I40 ->  | I6: =H6+'IS - Pond'!J40 ->  | J6: =I6+'IS - Pond'!K40 ->  | K6: =J6+'IS - Pond'!L40 ->  | L6: =K6+'IS - Pond'!M40 -> 
B7: Current Assets
B8: Inventory | C8: 0 | D8: 0 | E8: 0 | F8: 0 | G8: 0 | H8: 0 | I8: 0 | J8: 0 | K8: 0 | L8: 0
B9: Debtors | C9: ='Production Assumptions'!C60 -> 0 | D9: ='Production Assumptions'!D60 ->  | E9: ='Production Assumptions'!E60 ->  | F9: ='Production Assumptions'!F60 ->  | G9: ='Production Assumptions'!G60 ->  | H9: ='Production Assumptions'!H60 ->  | I9: ='Production Assumptions'!I60 ->  | J9: ='Production Assumptions'!J60 ->  | K9: ='Production Assumptions'!K60 ->  | L9: ='Production Assumptions'!L60 -> 
B10: Cash | C10: =IF(Interface!H15="Equity",'Production Assumptions'!C59+'IS - Pond'!D38+'IS - Pond'!D16+'Working Capital - Pond'!C39,IF(Interface!H15="Debt/Equity",('Production Assumptions'!C59+'IS - Pond'!D38+'IS - Pond'!D16+'Working Capital - Pond'!C39-'Loan Int & Bal - Pond'!B6),'Production Assumptions'!C59+'IS - Pond'!D38+'IS - Pond'!D16+'Working Capital - Pond'!C39-'Loan Int & Bal - Pond'!B6)) ->  | D10: =IF(Interface!$H$15="Equity",'Production Assumptions'!D59+'IS - Pond'!E38+'IS - Pond'!E16+C10,IF(Interface!$H$15="Debt/Equity",('Production Assumptions'!D59+'IS - Pond'!E38+'IS - Pond'!E16-'Loan Int & Bal - Pond'!C6+C10),'Production Assumptions'!D59+'IS - Pond'!E38+'IS - Pond'!E16+C10-'Loan Int & Bal - Pond'!C6)) ->  | E10: =IF(Interface!$H$15="Equity",'Production Assumptions'!E59+'IS - Pond'!F38+'IS - Pond'!F16+D10,IF(Interface!$H$15="Debt/Equity",('Production Assumptions'!E59+'IS - Pond'!F38+'IS - Pond'!F16-'Loan Int & Bal - Pond'!D6+D10),'Production Assumptions'!E59+'IS - Pond'!F38+'IS - Pond'!F16+D10-'Loan Int & Bal - Pond'!D6)) ->  | F10: =IF(Interface!$H$15="Equity",'Production Assumptions'!F59+'IS - Pond'!G38+'IS - Pond'!G16+E10,IF(Interface!$H$15="Debt/Equity",('Production Assumptions'!F59+'IS - Pond'!G38+'IS - Pond'!G16-'Loan Int & Bal - Pond'!E6+E10),'Production Assumptions'!F59+'IS - Pond'!G38+'IS - Pond'!G16+E10-'Loan Int & Bal - Pond'!E6)) ->  | G10: =IF(Interface!$H$15="Equity",'Production Assumptions'!G59+'IS - Pond'!H38+'IS - Pond'!H16+F10,IF(Interface!$H$15="Debt/Equity",('Production Assumptions'!G59+'IS - Pond'!H38+'IS - Pond'!H16-'Loan Int & Bal - Pond'!F6+F10),'Production Assumptions'!G59+'IS - Pond'!H38+'IS - Pond'!H16+F10-'Loan Int & Bal - Pond'!F6)) ->  | H10: =IF(Interface!$H$15="Equity",'Production Assumptions'!H59+'IS - Pond'!I38+'IS - Pond'!I16+G10,IF(Interface!$H$15="Debt/Equity",('Production Assumptions'!H59+'IS - Pond'!I38+'IS - Pond'!I16-'Loan Int & Bal - Pond'!G6+G10),'Production Assumptions'!H59+'IS - Pond'!I38+'IS - Pond'!I16+G10-'Loan Int & Bal - Pond'!G6)) ->  | I10: =IF(Interface!$H$15="Equity",'Production Assumptions'!I59+'IS - Pond'!J38+'IS - Pond'!J16+H10,IF(Interface!$H$15="Debt/Equity",('Production Assumptions'!I59+'IS - Pond'!J38+'IS - Pond'!J16-'Loan Int & Bal - Pond'!H6+H10),'Production Assumptions'!I59+'IS - Pond'!J38+'IS - Pond'!J16+H10-'Loan Int & Bal - Pond'!H6)) ->  | J10: =IF(Interface!$H$15="Equity",'Production Assumptions'!J59+'IS - Pond'!K38+'IS - Pond'!K16+I10,IF(Interface!$H$15="Debt/Equity",('Production Assumptions'!J59+'IS - Pond'!K38+'IS - Pond'!K16-'Loan Int & Bal - Pond'!I6+I10),'Production Assumptions'!J59+'IS - Pond'!K38+'IS - Pond'!K16+I10-'Loan Int & Bal - Pond'!I6)) ->  | K10: =IF(Interface!$H$15="Equity",'Production Assumptions'!K59+'IS - Pond'!L38+'IS - Pond'!L16+J10,IF(Interface!$H$15="Debt/Equity",('Production Assumptions'!K59+'IS - Pond'!L38+'IS - Pond'!L16-'Loan Int & Bal - Pond'!J6+J10),'Production Assumptions'!K59+'IS - Pond'!L38+'IS - Pond'!L16+J10-'Loan Int & Bal - Pond'!J6)) ->  | L10: =IF(Interface!$H$15="Equity",'Production Assumptions'!L59+'IS - Pond'!M38+'IS - Pond'!M16+K10,IF(Interface!$H$15="Debt/Equity",('Production Assumptions'!L59+'IS - Pond'!M38+'IS - Pond'!M16-'Loan Int & Bal - Pond'!K6+K10),'Production Assumptions'!L59+'IS - Pond'!M38+'IS - Pond'!M16+K10-'Loan Int & Bal - Pond'!K6)) -> 
C11: =SUM(C6:C10) ->  | D11: =SUM(D6:D10) -> 
B12: Equity & Liabilities
B13: Retained Earnings | C13: ='IS - Pond'!D47 ->  | D13: =C13+'IS - Pond'!E47 ->  | E13: =D13+'IS - Pond'!F47 ->  | F13: =E13+'IS - Pond'!G47 ->  | G13: =F13+'IS - Pond'!H47 ->  | H13: =G13+'IS - Pond'!I47 ->  | I13: =H13+'IS - Pond'!J47 ->  | J13: =I13+'IS - Pond'!K47 ->  | K13: =J13+'IS - Pond'!L47 ->  | L13: =K13+'IS - Pond'!M47 -> 
B14: Deferred Income | C14: =IF(Interface!$H$15="EQUITY",CAPEX!$J$39+'Working Capital - Pond'!$C$39,IF(Interface!$H$15="DEBT/EQUITY",(CAPEX!$J$39+'Working Capital - Pond'!$C$39)*(100%-Interface!$I$15),0)) -> 0 | D14: =IF(Interface!$H$15="EQUITY",CAPEX!$J$39+'Working Capital - Pond'!$C$39,IF(Interface!$H$15="DEBT/EQUITY",(CAPEX!$J$39+'Working Capital - Pond'!$C$39)*(100%-Interface!$I$15),0)) -> 0 | E14: =IF(Interface!$H$15="EQUITY",CAPEX!$J$39+'Working Capital - Pond'!$C$39,IF(Interface!$H$15="DEBT/EQUITY",(CAPEX!$J$39+'Working Capital - Pond'!$C$39)*(100%-Interface!$I$15),0)) -> 0 | F14: =IF(Interface!$H$15="EQUITY",CAPEX!$J$39+'Working Capital - Pond'!$C$39,IF(Interface!$H$15="DEBT/EQUITY",(CAPEX!$J$39+'Working Capital - Pond'!$C$39)*(100%-Interface!$I$15),0)) -> 0 | G14: =IF(Interface!$H$15="EQUITY",CAPEX!$J$39+'Working Capital - Pond'!$C$39,IF(Interface!$H$15="DEBT/EQUITY",(CAPEX!$J$39+'Working Capital - Pond'!$C$39)*(100%-Interface!$I$15),0)) -> 0 | H14: =IF(Interface!$H$15="EQUITY",CAPEX!$J$39+'Working Capital - Pond'!$C$39,IF(Interface!$H$15="DEBT/EQUITY",(CAPEX!$J$39+'Working Capital - Pond'!$C$39)*(100%-Interface!$I$15),0)) -> 0 | I14: =IF(Interface!$H$15="EQUITY",CAPEX!$J$39+'Working Capital - Pond'!$C$39,IF(Interface!$H$15="DEBT/EQUITY",(CAPEX!$J$39+'Working Capital - Pond'!$C$39)*(100%-Interface!$I$15),0)) -> 0 | J14: =IF(Interface!$H$15="EQUITY",CAPEX!$J$39+'Working Capital - Pond'!$C$39,IF(Interface!$H$15="DEBT/EQUITY",(CAPEX!$J$39+'Working Capital - Pond'!$C$39)*(100%-Interface!$I$15),0)) -> 0 | K14: =IF(Interface!$H$15="EQUITY",CAPEX!$J$39+'Working Capital - Pond'!$C$39,IF(Interface!$H$15="DEBT/EQUITY",(CAPEX!$J$39+'Working Capital - Pond'!$C$39)*(100%-Interface!$I$15),0)) -> 0 | L14: =IF(Interface!$H$15="EQUITY",CAPEX!$J$39+'Working Capital - Pond'!$C$39,IF(Interface!$H$15="DEBT/EQUITY",(CAPEX!$J$39+'Working Capital - Pond'!$C$39)*(100%-Interface!$I$15),0)) -> 0
B15: Long Term Liability | C15: =IF(Interface!$H$15="DEBT",'Loan Int & Bal - Pond'!B5,IF(Interface!$H$15="DEBT/EQUITY",'Loan Int & Bal - Pond'!B5,0)) -> 0 | D15: =IF(Interface!$H$15="DEBT",'Loan Int & Bal - Pond'!C5,IF(Interface!$H$15="DEBT/EQUITY",'Loan Int & Bal - Pond'!C5,0)) -> 0 | E15: =IF(Interface!$H$15="DEBT",'Loan Int & Bal - Pond'!D5,IF(Interface!$H$15="DEBT/EQUITY",'Loan Int & Bal - Pond'!D5,0)) -> 0 | F15: =IF(Interface!$H$15="DEBT",'Loan Int & Bal - Pond'!E5,IF(Interface!$H$15="DEBT/EQUITY",'Loan Int & Bal - Pond'!E5,0)) -> 0 | G15: =IF(Interface!$H$15="DEBT",'Loan Int & Bal - Pond'!F5,IF(Interface!$H$15="DEBT/EQUITY",'Loan Int & Bal - Pond'!F5,0)) -> 0 | H15: =IF(Interface!$H$15="DEBT",'Loan Int & Bal - Pond'!G5,IF(Interface!$H$15="DEBT/EQUITY",'Loan Int & Bal - Pond'!G5,0)) -> 0 | I15: =IF(Interface!$H$15="DEBT",'Loan Int & Bal - Pond'!H5,IF(Interface!$H$15="DEBT/EQUITY",'Loan Int & Bal - Pond'!H5,0)) -> 0 | J15: =IF(Interface!$H$15="DEBT",'Loan Int & Bal - Pond'!I5,IF(Interface!$H$15="DEBT/EQUITY",'Loan Int & Bal - Pond'!I5,0)) -> 0 | K15: =IF(Interface!$H$15="DEBT",'Loan Int & Bal - Pond'!J5,IF(Interface!$H$15="DEBT/EQUITY",'Loan Int & Bal - Pond'!J5,0)) -> 0 | L15: =IF(Interface!$H$15="DEBT",'Loan Int & Bal - Pond'!K5,IF(Interface!$H$15="DEBT/EQUITY",'Loan Int & Bal - Pond'!K5,0)) -> 0
B16: Provision for Taxation | C16: =-'IS - Pond'!D45 ->  | D16: =-'IS - Pond'!E45+C16 ->  | E16: =-'IS - Pond'!F45+D16 ->  | F16: =-'IS - Pond'!G45+E16 ->  | G16: =-'IS - Pond'!H45+F16 ->  | H16: =-'IS - Pond'!I45+G16 ->  | I16: =-'IS - Pond'!J45+H16 ->  | J16: =-'IS - Pond'!K45+I16 ->  | K16: =-'IS - Pond'!L45+J16 ->  | L16: =-'IS - Pond'!M45+K16 -> 
C17: =SUM(C13:C16) -> 
C18: =C11-C17 -> 
C19: =IF(ABS(C18)<0.00001,"OK","ERROR") ->  | D19: =IF(ABS(D18)<0.00001,"OK","ERROR") -> 

Sheet CF - Pond
A1: Aquaculture - Marron Crayfish Production financial analysis
B3: Projected Cash Flow Statement | D3: Year
D4: Year 1 | E4: Year 2 | F4: Year 3 | G4: Year 4 | H4: Year 5 | I4: Year 6 | J4: Year 7 | K4: Year 8 | L4: Year 9 | M4: Year 10 | N4: NO POSITIVE
B5: Cash flows from operating activities
B6: Profit / (Loss) for the year | D6: ='IS - Pond'!D47 ->  | E6: ='IS - Pond'!E47 ->  | F6: ='IS - Pond'!F47 ->  | G6: ='IS - Pond'!G47 ->  | H6: ='IS - Pond'!H47 ->  | I6: ='IS - Pond'!I47 ->  | J6: ='IS - Pond'!J47 ->  | K6: ='IS - Pond'!K47 ->  | L6: ='IS - Pond'!L47 ->  | M6: ='IS - Pond'!M47 -> 
B7: Taxation | D7: =-'IS - Pond'!D45 ->  | E7: =-'IS - Pond'!E45 ->  | F7: =-'IS - Pond'!F45 ->  | G7: =-'IS - Pond'!G45 ->  | H7: =-'IS - Pond'!H45 ->  | I7: =-'IS - Pond'!I45 ->  | J7: =-'IS - Pond'!J45 ->  | K7: =-'IS - Pond'!K45 ->  | L7: =-'IS - Pond'!L45 ->  | M7: =-'IS - Pond'!M45 -> 
B8: Adjustment for non-cash expenses:
B9: Interest Charged | D9: =IF(Interface!$H$15="DEBT",'Loan Int & Bal - Pond'!B4,0) -> 0 | E9: =IF(Interface!$H$15="DEBT",'Loan Int & Bal - Pond'!C4,0) -> 0 | F9: =IF(Interface!$H$15="DEBT",'Loan Int & Bal - Pond'!D4,0) -> 0 | G9: =IF(Interface!$H$15="DEBT",'Loan Int & Bal - Pond'!E4,0) -> 0 | H9: =IF(Interface!$H$15="DEBT",'Loan Int & Bal - Pond'!F4,0) -> 0 | I9: =IF(Interface!$H$15="DEBT",'Loan Int & Bal - Pond'!G4,0) -> 0 | J9: =IF(Interface!$H$15="DEBT",'Loan Int & Bal - Pond'!H4,0) -> 0 | K9: =IF(Interface!$H$15="DEBT",'Loan Int & Bal - Pond'!I4,0) -> 0 | L9: =IF(Interface!$H$15="DEBT",'Loan Int & Bal - Pond'!J4,0) -> 0 | M9: =IF(Interface!$H$15="DEBT",'Loan Int & Bal - Pond'!K4,0) -> 0
B10: Depreciation | D10: =-'IS - Pond'!D40 ->  | E10: =-'IS - Pond'!E40 ->  | F10: =-'IS - Pond'!F40 ->  | G10: =-'IS - Pond'!G40 ->  | H10: =-'IS - Pond'!H40 ->  | I10: =-'IS - Pond'!I40 ->  | J10: =-'IS - Pond'!J40 ->  | K10: =-'IS - Pond'!K40 ->  | L10: =-'IS - Pond'!L40 ->  | M10: =-'IS - Pond'!M40 -> 
B11: Changes in operating assets & liabilities
B12: Inventory | D12: 0 | E12: 0 | F12: 0 | G12: 0 | H12: 0 | I12: 0 | J12: 0 | K12: 0 | L12: 0 | M12: 0
B13: Receivables (INCREASE)/DECREASE | D13: =-'BS - Pond'!C9 -> 0 | E13: ='Production Assumptions'!C60-'Production Assumptions'!D60 ->  | F13: ='Production Assumptions'!D60-'Production Assumptions'!E60 ->  | G13: ='Production Assumptions'!E60-'Production Assumptions'!F60 ->  | H13: ='Production Assumptions'!F60-'Production Assumptions'!G60 ->  | I13: ='Production Assumptions'!G60-'Production Assumptions'!H60 ->  | J13: ='Production Assumptions'!H60-'Production Assumptions'!I60 ->  | K13: ='Production Assumptions'!I60-'Production Assumptions'!J60 ->  | L13: ='Production Assumptions'!J60-'Production Assumptions'!K60 ->  | M13: ='Production Assumptions'!K60-'Production Assumptions'!L60 -> 
B14: Payables | D14: 0 | E14: 0 | F14: 0 | G14: 0 | H14: 0 | I14: 0 | J14: 0 | K14: 0 | L14: 0 | M14: 0
B15: Cash generated from operations | D15: =SUM(D5:D14) -> 
B16: Interest paid | D16: =IF(Interface!$H$15="DEBT",-'Loan Int & Bal - Pond'!B4,0) -> 0 | E16: =IF(Interface!$H$15="DEBT",-'Loan Int & Bal - Pond'!C4,0) -> 0 | F16: =IF(Interface!$H$15="DEBT",-'Loan Int & Bal - Pond'!D4,0) -> 0 | G16: =IF(Interface!$H$15="DEBT",-'Loan Int & Bal - Pond'!E4,0) -> 0 | H16: =IF(Interface!$H$15="DEBT",-'Loan Int & Bal - Pond'!F4,0) -> 0 | I16: =IF(Interface!$H$15="DEBT",-'Loan Int & Bal - Pond'!G4,0) -> 0 | J16: =IF(Interface!$H$15="DEBT",-'Loan Int & Bal - Pond'!H4,0) -> 0 | K16: =IF(Interface!$H$15="DEBT",-'Loan Int & Bal - Pond'!I4,0) -> 0 | L16: =IF(Interface!$H$15="DEBT",-'Loan Int & Bal - Pond'!J4,0) -> 0 | M16: =IF(Interface!$H$15="DEBT",-'Loan Int & Bal - Pond'!K4,0) -> 0
B17: Taxation paid | D17: 0 | E17: 0 | F17: 0 | G17: 0 | H17: 0 | I17: 0 | J17: 0 | K17: 0 | L17: 0 | M17: 0
B18: Net cash from operating activities | D18: =SUM(D15:D17) ->  | E18: =SUM(E15:E17) -> 
B20: Cash flows from investing activities
B21: Purchases of property, plant & equipment | D21: =-CAPEX!J39 ->  | E21: 0 | F21: 0 | G21: 0 | H21: 0 | I21: 0 | J21: 0 | K21: 0 | L21: 0 | M21: 0
B22: Net cash used in investing activities | D22: =D21 ->  | E22: =E21 -> 0 | F22: 0 | G22: 0 | H22: 0 | I22: 0 | J22: 0 | K22: 0 | L22: 0 | M22: 0
B24: Cash flows from financing activities
B25: Proceeds from shareholders' contributions | D25: 0 | E25: 0 | F25: 0 | G25: 0 | H25: 0 | I25: 0 | J25: 0 | K25: 0 | L25: 0 | M25: 0
B26: Proceeds from equity | D26: =IF(Interface!$H$15="EQUITY",CAPEX!$J$39+'Working Capital - Pond'!$C$39,IF(Interface!$H$15="Debt/Equity",(CAPEX!$J$39+'Working Capital - Pond'!$C$39)*(100%-Interface!$I$15),0)) -> 0
B27: Proceeds from Loans | D27: =IF(Interface!H15="DEBT",(+CAPEX!J39+'Working Capital - Pond'!C39),IF(Interface!H15="DEBT/EQUITY",(+CAPEX!J39+'Working Capital - Pond'!C39)*Interface!$I$15,0)) -> 0 | E27: 0 | F27: 0 | G27: 0 | H27: 0 | I27: 0 | J27: 0 | K27: 0 | L27: 0 | M27: 0
B28: Repayment of Loans | D28: =IF(Interface!$H$15="DEBT",-'Loan Int & Bal - Pond'!B6+'Loan Int & Bal - Pond'!B4,IF(Interface!$H$15="DEBT/EQUITY",-'Loan Int & Bal - Pond'!B6+'Loan Int & Bal - Pond'!B4,0)) -> 0 | E28: =IF(Interface!$H$15="DEBT",-'Loan Int & Bal - Pond'!C6+'Loan Int & Bal - Pond'!C4,IF(Interface!$H$15="DEBT/EQUITY",-'Loan Int & Bal - Pond'!C6+'Loan Int & Bal - Pond'!C4,0)) -> 0 | F28: =IF(Interface!$H$15="DEBT",-'Loan Int & Bal - Pond'!D6+'Loan Int & Bal - Pond'!D4,IF(Interface!$H$15="DEBT/EQUITY",-'Loan Int & Bal - Pond'!D6+'Loan Int & Bal - Pond'!D4,0)) -> 0 | G28: =IF(Interface!$H$15="DEBT",-'Loan Int & Bal - Pond'!E6+'Loan Int & Bal - Pond'!E4,IF(Interface!$H$15="DEBT/EQUITY",-'Loan Int & Bal - Pond'!E6+'Loan Int & Bal - Pond'!E4,0)) -> 0 | H28: =IF(Interface!$H$15="DEBT",-'Loan Int & Bal - Pond'!F6+'Loan Int & Bal - Pond'!F4,IF(Interface!$H$15="DEBT/EQUITY",-'Loan Int & Bal - Pond'!F6+'Loan Int & Bal - Pond'!F4,0)) -> 0 | I28: =IF(Interface!$H$15="DEBT",-'Loan Int & Bal - Pond'!G6+'Loan Int & Bal - Pond'!G4,IF(Interface!$H$15="DEBT/EQUITY",-'Loan Int & Bal - Pond'!G6+'Loan Int & Bal - Pond'!G4,0)) -> 0 | J28: =IF(Interface!$H$15="DEBT",-'Loan Int & Bal - Pond'!H6+'Loan Int & Bal - Pond'!H4,IF(Interface!$H$15="DEBT/EQUITY",-'Loan Int & Bal - Pond'!H6+'Loan Int & Bal - Pond'!H4,0)) -> 0 | K28: =IF(Interface!$H$15="DEBT",-'Loan Int & Bal - Pond'!I6+'Loan Int & Bal - Pond'!I4,IF(Interface!$H$15="DEBT/EQUITY",-'Loan Int & Bal - Pond'!I6+'Loan Int & Bal - Pond'!I4,0)) -> 0 | L28: =IF(Interface!$H$15="DEBT",-'Loan Int & Bal - Pond'!J6+'Loan Int & Bal - Pond'!J4,IF(Interface!$H$15="DEBT/EQUITY",-'Loan Int & Bal - Pond'!J6+'Loan Int & Bal - Pond'!J4,0)) -> 0 | M28: =IF(Interface!$H$15="DEBT",-'Loan Int & Bal - Pond'!K6+'Loan Int & Bal - Pond'!K4,IF(Interface!$H$15="DEBT/EQUITY",-'Loan Int & Bal - Pond'!K6+'Loan Int & Bal - Pond'!K4,0)) -> 0
B29: Net cash from financing activities | D29: =SUM(D25:D28) -> 0 | E29: =SUM(E25:E28) -> 0 | F29: 0 | G29: 0 | H29: 0 | I29: 0 | J29: 0 | K29: 0 | L29: 0 | M29: 0
B31: Increase / (Decrease) in cash equivalents | D31: =D29+D22+D18 ->  | E31: =E29+E22+E18 -> 
B33: Cash & cash equivalents at beginning of year | D33: 0 | E33: =D35 ->  | F33: =E35 -> 
B35: Cash & cash equivalents at end of year | C35: -1 | D35: =SUM(D31:D34) ->  | N35: 1
B36: DIFF | D36: =D35-'BS - Pond'!C10 ->  | E36: =E35-'BS - Pond'!D10 ->  | F36: =F35-'BS - Pond'!E10 ->  | G36: =G35-'BS - Pond'!F10 ->  | H36: =H35-'BS - Pond'!G10 ->  | I36: =I35-'BS - Pond'!H10 ->  | J36: =J35-'BS - Pond'!I10 ->  | K36: =K35-'BS - Pond'!J10 ->  | L36: =L35-'BS - Pond'!K10 ->  | M36: =M35-'BS - Pond'!L10 -> 
D37: =IF(ABS(D36)<0.00001,"OK","ERROR") ->  | E37: =IF(ABS(E36)<0.00001,"OK","ERROR") -> 

Sheet IRR - Pond
A1: Aquaculture - Marron Crayfish Production financial analysis
C4: IRR CALCULATION
C5: Period | D5: Nett cash Flow for period
C6: Initial Investment | D6: =-('BS - Pond'!C14+'Loan - Pond'!B10) -> 0
C7: 1 | D7: ='CF - Pond'!D35 -> 
C8: 2 | D8: ='CF - Pond'!E35 -> 
C9: 3 | D9: ='CF - Pond'!F35 -> 
C10: 4 | D10: ='CF - Pond'!G35 -> 
C11: 5 | D11: ='CF - Pond'!H35 -> 
C12: 6 | D12: ='CF - Pond'!I35 -> 
C13: 7 | D13: ='CF - Pond'!J35 -> 
C14: 8 | D14: ='CF - Pond'!K35 -> 
C15: 9 | D15: ='CF - Pond'!L35 -> 
C16: 10 | D16: ='CF - Pond'!M35 -> 
C18: TOTAL NETT INFLOW | D18: =SUM(D6:D16) -> 
C20: IRR | D20: =IF(D18>0, IRR(D6:D16), 0) -> 

Sheet NPV & PI - Pond
A1: Aquaculture - Marron Crayfish Production financial analysis
C4: NPV & PI Index
C5: Period | D5: Nett cash Flow for period | E5: Discounted Cash Flow
C6: Initial Investment | D6: ='IRR - Pond'!D6 -> 0
C7: 1 | D7: ='IRR - Pond'!D7 ->  | E7: =D7/((1+$E$3)^C7) -> 
C8: 2 | D8: ='IRR - Pond'!D8 ->  | E8: =D8/((1+$E$3)^C8) -> 
C9: 3 | D9: ='IRR - Pond'!D9 -> 
C10: 4 | D10: ='IRR - Pond'!D10 -> 
C11: 5 | D11: ='IRR - Pond'!D11 -> 
C12: 6 | D12: ='IRR - Pond'!D12 -> 
C13: 7 | D13: ='IRR - Pond'!D13 -> 
C14: 8 | D14: ='IRR - Pond'!D14 -> 
C15: 9 | D15: ='IRR - Pond'!D15 -> 
C16: 10 | D16: ='IRR - Pond'!D16 -> 
C18: NETT PRESENT VALUE | D18: =SUM(E7:E16) -> 
C20: Profitability Index | D20: =NPV(E3,D7,D8,D9,D10,D11,D12,D13,D14,D15,D16)/-D6 -> 

Sheet DEP - Pond
A1: Aquaculture - Marron Crayfish Production financial analysis
B3: Item | C3: Useful Lifetime in Years | D3: Rate | E3: Price | F3: Year
F4: 1 | G4: =F4+1 -> 2 | H4: =G4+1 -> 3 | I4: 4 | J4: 5 | K4: 6 | L4: 7 | M4: 8 | N4: 9 | O4: 10
B5: Infrastructure
B6: =CAPEX!C6 -> StoreRooms (m²) | C6: 50 | D6: =100%/C6 -> 0.02 | E6: =CAPEX!J6 -> 122462.5 | F6: =E6*D6 -> 2449.25 | G6: =IF(G4<=$C$6,F6,0) -> 2449.25 | H6: 2449.25 | I6: 2449.25 | J6: 2449.25 | K6: 2449.25 | L6: 2449.25 | M6: 2449.25 | N6: 2449.25 | O6: 2449.25
B7: =CAPEX!C7 -> Offices (m²) | C7: 50 | D7: =100%/C7 -> 0.02 | E7: =CAPEX!J7 ->  | F7: =E7*D7 ->  | G7: =IF(G4<=$C$7,F7,0) -> 
B8: =CAPEX!C8 -> Cold storage (m²) | C8: 10 | D8: 0.1 | E8: =CAPEX!J8 -> 1091250 | F8: =E8*D8 -> 109125 | G8: =IF(G4<=$C$8,F8,0) -> 109125 | H8: =IF(H4<=$C$8,G8,0) -> 109125 | I8: 109125 | J8: 109125 | K8: 109125 | L8: 109125 | M8: 109125 | N8: 109125 | O8: 109125
B9: =CAPEX!C9 -> Feed store (m²) | C9: 50 | D9: 0.02 | E9: =CAPEX!J9 -> 363750 | F9: =E9*D9 -> 7275 | G9: =IF(G4<=$C$9,F9,0) -> 7275 | H9: 7275 | I9: 7275 | J9: 7275 | K9: 7275 | L9: 7275 | M9: 7275 | N9: 7275 | O9: 7275
B10: =CAPEX!C10 -> Storage Dam
B11: Equipment
B12: =CAPEX!C15 -> Grow-out containment number (m²) | C12: 10 | D12: =100%/C12 -> 0.1 | E12: =CAPEX!J15 ->  | F12: =E12*D12 ->  | G12: =IF(G4<=$C$12,F12,0) -> 
B13: =CAPEX!C19 -> Water quality testing equipment | C13: 7 | D13: =100%/C13 -> 0.1428571429 | E13: =CAPEX!J19 -> 32957.49 | F13: =E13*D13 -> 4708.212857 | G13: =IF(G4<=$C$13,F13,0) -> 4708.212857 | H13: 4708.212857 | I13: 4708.212857 | J13: 4708.212857 | K13: 4708.212857 | L13: 4708.212857 | M13: 0 | N13: 0 | O13: 0
B14: =CAPEX!C20 -> Electrial infrastructure (m) | C14: 1 | D14: 1 | E14: =CAPEX!J20 ->  | F14: =E14*D14 ->  | G14: =IF(G4<=$C$14,F14,0) -> 0 | H14: 0 | I14: 0 | J14: 0 | K14: 0 | L14: 0 | M14: 0 | N14: 0 | O14: 0
B15: =CAPEX!C21 -> Remote pumping & piping | C15: 4 | D15: 0.25 | E15: =CAPEX!J21 ->  | F15: =E15*D15 ->  | G15: =IF(G4<=$C$15,F15,0) ->  | J15: 0 | K15: 0 | L15: 0 | M15: 0 | N15: 0 | O15: 0
B16: =CAPEX!C25 -> Collection/settlement sump | C16: 12 | D16: 0.08333333333 | E16: =CAPEX!J25 ->  | G16: =IF(G4<=$C$16,F16,0) -> 
B17: =CAPEX!C26 -> Constructive reed bed | C17: 6 | D17: 0.1666666667 | E17: =CAPEX!J26 ->  | G17: =IF(G4<=$C$17,F17,0) ->  | L17: 0 | M17: 0 | N17: 0 | O17: 0
B18: Moveable Assets
B19: =CAPEX!C30 -> Bird netting (R/m²) | C19: 4 | D19: =100%/C19 -> 0.25 | E19: =CAPEX!J30 ->  | G19: =IF(G4<=$C$19,F19,0) ->  | J19: 0 | K19: 0 | L19: 0 | M19: 0 | N19: 0 | O19: 0
B20: =CAPEX!C31 -> Baffle Fence (R/m²) | C20: 4 | D20: =100%/C20 -> 0.25 | E20: =CAPEX!J31 ->  | G20: =IF(G4<=$C$20,F20,0) ->  | J20: 0 | K20: 0 | L20: 0 | M20: 0 | N20: 0 | O20: 0
B21: =CAPEX!C32 -> Purging Tank (300 vol.) | C21: 6 | D21: 0.1666666667 | E21: =CAPEX!J32 ->  | G21: =IF(G4<=$C$21,F21,0) ->  | L21: 0 | M21: 0 | N21: 0 | O21: 0
B22: =CAPEX!C33 -> Freezer | C22: 25 | D22: 0.04 | E22: =CAPEX!J33 -> 0 | F22: 0 | G22: =IF(G4<=$C$22,F22,0) -> 0 | H22: 0 | I22: 0 | J22: 0 | K22: 0 | L22: 0 | M22: 0 | N22: 0 | O22: 0
B23: =CAPEX!C34 -> Harvesting net | C23: 4 | D23: 0.25 | E23: =CAPEX!J34 ->  | G23: =IF(G4<=$C$23,F23,0) ->  | J23: 0 | K23: 0 | L23: 0 | M23: 0 | N23: 0 | O23: 0
B24: =CAPEX!C35 -> Office equipment | C24: 4 | D24: 0.25 | E24: =CAPEX!J35 ->  | G24: =IF(G4<=$C$24,F24,0) ->  | J24: 0 | K24: 0 | L24: 0 | M24: 0 | N24: 0 | O24: 0
B25: =CAPEX!C36 -> Short/long handle Hand net | C25: 4 | D25: 0.25 | E25: =CAPEX!J36 ->  | G25: =IF(G4<=$C$25,F25,0) ->  | J25: 0 | K25: 0 | L25: 0 | M25: 0 | N25: 0 | O25: 0
B26: =CAPEX!C37 -> Air blower (4,1kw) (1 per 10 ponds, 1 spare) | C26: 15 | D26: 0.06666666667 | E26: =CAPEX!J37 ->  | G26: =IF(G5<=$C$26,F26,0) -> 
B27: =CAPEX!C38 -> Vehicle | C27: 3 | D27: 0.3333333333 | E27: =CAPEX!J38 -> 800000 | F27: =E27*D27 -> 266666.6667 | G27: =IF(G4<=$C$27,F27,0) -> 266666.6667 | H27: 266666.6667 | I27: 0 | J27: 0 | K27: 0 | L27: 0 | M27: 0 | N27: 0 | O27: 0
F28: =SUM(F6:F27) ->  | G28: =SUM(G6:G27) -> 

Sheet Loan - Pond (hidden)
A1: Aquaculture - Marron Crayfish Production financial analysis
A3: Year 1 loan
A4: Balance: | B4: =B10 -> 0
A5: Interest rate: | B5: =B11/12 -> 0
A6: Periods: | B6: 12
A7: Monthly Payment: | B7: =PMT(B5,B6,-B4) -> 0
A9: Loan Amortization schedule
A10: Loan Amount | B10: =IF(Interface!H15="DEBT",CAPEX!J39+'Working Capital - Pond'!C39, IF(Interface!H15="DEBT/EQUITY",(CAPEX!J39+'Working Capital - Pond'!C39)*Interface!I15,0)) -> 0
A11: Interest rate | B11: =Interface!I26 -> 0
A12: Months | B12: =B13*12 -> 
A13: YEARS | B13: =Interface!J26 -> <Please select a payback period>
A14: Payments | B14: =ROUND(PMT($B$11/12,$B$12,-$B$10, 0),0) ->  | C14: =B14*12 -> 
A16: Payment Number | B16: Beginning Balance | C16: Payment | D16: Principal | E16: interest | F16: Cumulative Principal | G16: Cumulative Interest | H16: Ending Balance
A17: 1 | B17: =$B$10 -> 0 | C17: =$B$14 ->  | D17: =$C17-$E17 ->  | E17: =IF($B17*$B$5>0,$B17*$B$5,0) -> 0 | H17: =$B17-$D17 -> 
A18: 2 | B18: =H17 ->  | C18: =$B$14 ->  | D18: =$C18-$E18 ->  | H18: =$B18-$D18 -> 
A19: 3 | B19: =H18 -> 
A20: 4
A21: 5 | E21: =IF($B21*$B$5>0,$B21*$B$5,0) -> 
A22: 6 | E22: =IF($B22*$B$5>0,$B22*$B$5,0) -> 
A23: 7
A24: 8
A25: 9
A26: 10
A27: 11
A28: 12
A29: 13
A30: 14
A31: 15
A32: 16
A33: 17
A34: 18
A35: 19
A36: 20
A37: 21
A38: 22
A39: 23
A40: 24
A41: 25
A42: 26
A43: 27
A44: 28
A45: 29
A46: 30
A47: 31
A48: 32
A49: 33
A50: 34
A51: 35
A52: 36
A53: 37
A54: 38
A55: 39
A56: 40
A57: 41
A58: 42
A59: 43
A60: 44
A61: 45
A62: 46
A63: 47
A64: 48
A65: 49
A66: 50
A67: 51
A68: 52
A69: 53
A70: 54
A71: 55
A72: 56
A73: 57
A74: 58
A75: 59
A76: 60
A77: 61
A78: 62
A79: 63
A80: 64
A81: 65
A82: 66 | C82: =$B$14 ->  | D82: =$C82-$E82 ->  | H82: =$B82-$D82 -> 
A83: 67 | B83: =H82 -> 
A84: 68
A85: 69
A86: 70 | E86: =IF($B86*$B$5>0,$B86*$B$5,0) -> 
A87: 71
A88: 72
A89: 73
A90: 74
A91: 75
A92: 76
A93: 77
A94: 78
A95: 79
A96: 80
A97: 81
A98: 82
A99: 83
A100: 84
A101: 85
A102: 86
A103: 87
A104: 88
A105: 89
A106: 90
A107: 91
A108: 92
A109: 93
A110: 94
A111: 95
A112: 96
A113: 97
A114: 98
A115: 99
A116: 100
A117: 101
A118: 102
A119: 103
A120: 104
A121: 105
A122: 106
A123: 107
A124: 108
A125: 109
A126: 110
A127: 111
A128: 112
A129: 113
A130: 114
A131: 115
A132: 116
A133: 117
A134: 118
A135: 119
A136: 120
A137: 121
A138: 122
A139: 123
A140: 124
A141: 125
A142: 126
A143: 127
A144: 128
A145: 129
A146: 130 | C146: =$B$14 ->  | D146: =$C146-$E146 ->  | H146: =$B146-$D146 -> 
A147: 131 | B147: =H146 -> 
A148: 132
A149: 133
A150: 134 | E150: =IF($B150*$B$5>0,$B150*$B$5,0) -> 
A151: 135
A152: 136
A153: 137
A154: 138
A155: 139
A156: 140
A157: 141
A158: 142
A159: 143
A160: 144
A161: 145
A162: 146
A163: 147
A164: 148
A165: 149
A166: 150
A167: 151
A168: 152
A169: 153
A170: 154
A171: 155
A172: 156
A173: 157
A174: 158
A175: 159
A176: 160
A177: 161
A178: 162
A179: 163
A180: 164
A181: 165
A182: 166
A183: 167
A184: 168
A185: 169
A186: 170
A187: 171
A188: 172
A189: 173
A190: 174
A191: 175
A192: 176
A193: 177
A194: 178
A195: 179
A196: 180
A197: 181 | H197: =IF($B197-$D197>0,$B197-$D197,0) -> 
A198: 182 | B198: =IF(H197>0,H197,0) ->  | H198: =IF($B198-$D198>0,$B198-$D198,0) -> 
A199: 183
A200: 184
A201: 185
A202: 186
A203: 187
... 53 more rows

Sheet Loan Int & Bal - Pond (hidden)
A1: Aquaculture - Marron Crayfish Production financial analysis
B3: Year 1 | C3: Year 2 | D3: Year 3 | E3: Year 4 | F3: Year 5 | G3: Year 6 | H3: Year 7 | I3: Year 8 | J3: Year 9 | K3: Year 10 | L3: Year 11 | M3: Year 12 | N3: Year 13 | O3: Year 14 | P3: Year 15 | Q3: Year 16 | R3: Year 17 | S3: Year 18 | T3: Year 19 | U3: Year 20
A4: Annual Interest | B4: =SUM('Loan - Pond'!E17:E28) ->  | C4: =SUM('Loan - Pond'!E29:E40) ->  | D4: =SUM('Loan - Pond'!E41:E52) ->  | E4: =SUM('Loan - Pond'!E53:E64) ->  | F4: =SUM('Loan - Pond'!E65:E76) ->  | G4: =SUM('Loan - Pond'!E77:E88) ->  | H4: =SUM('Loan - Pond'!E89:E100) ->  | I4: =SUM('Loan - Pond'!E101:E112) ->  | J4: =SUM('Loan - Pond'!E113:E124) ->  | K4: =SUM('Loan - Pond'!E125:E136) ->  | L4: =SUM('Loan - Pond'!E137:E148) ->  | M4: =SUM('Loan - Pond'!E149:E160) ->  | N4: =SUM('Loan - Pond'!E161:E172) ->  | O4: =SUM('Loan - Pond'!E173:E184) ->  | P4: =SUM('Loan - Pond'!E185:E196) ->  | Q4: =SUM('Loan - Pond'!E197:E208) ->  | R4: =SUM('Loan - Pond'!E209:E220) ->  | S4: =SUM('Loan - Pond'!E221:E232) ->  | T4: =SUM('Loan - Pond'!E233:E244) ->  | U4: =SUM('Loan - Pond'!E245:E256) -> 
A5: Annual Balance | B5: ='Loan - Pond'!H28 ->  | C5: ='Loan - Pond'!H40 ->  | D5: ='Loan - Pond'!H52 ->  | E5: ='Loan - Pond'!H64 ->  | F5: ='Loan - Pond'!H76 ->  | G5: ='Loan - Pond'!H88 ->  | H5: ='Loan - Pond'!H100 ->  | I5: ='Loan - Pond'!H112 ->  | J5: ='Loan - Pond'!H124 ->  | K5: ='Loan - Pond'!H136 ->  | L5: ='Loan - Pond'!H148 ->  | M5: ='Loan - Pond'!H160 ->  | N5: ='Loan - Pond'!H172 ->  | O5: ='Loan - Pond'!H184 ->  | P5: ='Loan - Pond'!H196 ->  | Q5: ='Loan - Pond'!H208 ->  | R5: ='Loan - Pond'!H220 ->  | S5: ='Loan - Pond'!H232 ->  | T5: ='Loan - Pond'!H244 ->  | U5: ='Loan - Pond'!H256 -> 
A6: Repayments | B6: ='Loan - Pond'!$B$14*12 ->  | C6: ='Loan - Pond'!$B$14*12 ->  | D6: ='Loan - Pond'!$B$14*12 ->  | E6: ='Loan - Pond'!$B$14*12 ->  | F6: ='Loan - Pond'!$B$14*12 ->  | G6: ='Loan - Pond'!$B$14*12 ->  | H6: ='Loan - Pond'!$B$14*12 ->  | I6: ='Loan - Pond'!$B$14*12 ->  | J6: ='Loan - Pond'!$B$14*12 ->  | K6: ='Loan - Pond'!$B$14*12 ->  | L6: ='Loan - Pond'!$B$14*12 ->  | M6: ='Loan - Pond'!$B$14*12 ->  | N6: ='Loan - Pond'!$B$14*12 ->  | O6: ='Loan - Pond'!$B$14*12 ->  | P6: ='Loan - Pond'!$B$14*12 ->  | Q6: ='Loan - Pond'!$B$14*12 ->  | R6: ='Loan - Pond'!$B$14*12 ->  | S6: ='Loan - Pond'!$B$14*12 ->  | T6: ='Loan - Pond'!$B$14*12 ->  | U6: ='Loan - Pond'!$B$14*12 -> 

Sheet BREAK-EVEN GRAPH (hidden)
F2: =Interface!$J$8&" - "&Interface!$J$7 -> Tonnage per production cycle - <Please Select Tonnage>
B3: BREAK EVEN POINT
B4: Minimum Tonnage required to breakeven | C4: ='OPEX - Pond'!C37/(Interface!I7*1000) -> 
B5: Break-even point (Rands) | C5: =C4*(Interface!I7*1000) -> 

Sheet RISK (hidden)
B2: RISK FACTORS
B5: PRIME INTEREST | C5: 0.1025
B6: CURRENT PRODUCTION FACTOR | C6: 1
I7: No skills in Aquaculture
I8: Work experience (1-2 years)
B9: EXISTING SITE? | D9: =Interface!F15 -> <Do you already have a Farm?> | I9: Work experience (3-5 years)
B10: Interest Rate Effect | C10: =IF(D9="YES",1%,0%) -> 0 | I10: Work experience (over 5 years)
B11: Higher Production Factor | C11: =IF(D9="YES",0.1,0) -> 0 | I11: Formal education (certificate, diploma, degrees)
B12: CAPEX - NO LAND
B14: SKILLED WORKERS? | D14: =Interface!G18 -> <Please Select a Skills Level>
B15: Interest Rate Effect | C15: =IF(D14=Validation!F14,0%,IF(D14=Validation!F15,0.25%,IF(D14=Validation!F16,0.5%,IF(D14=Validation!F17,0.75%,IF(D14=Validation!F18,1%,0%))))) -> 0
B16: Higher Production Factor | C16: =IF(D14=B32, 0.05, IF(D14=B33, 0.1, IF(D14=B34, 0.15, IF(D14=B35, 0.2, 0)))) -> 0
B17: HIGHER EMPLOYEE COST
B19: ESTABLISHED FACILITY? | D19: =Interface!E15 -> <Select Operational Status>
B20: Interest Rate | C20: =IF(D19="EXISTING",1%,0%) -> 0
B22: INVESTOR? | D22: =Interface!G15 -> <Do you already have a investor?>
B23: Interest Rate | C23: =IF(D22="YES",1%,0%) -> 0
B25: NETT INTEREST RATE | C25: =C5-C10-C20-C23-C15 -> 0.1025
B26: NETT ESCALATED PRODUCTION FACTOR | C26: =C6+C11+C16 -> 1
B31: No skills in Aquaculture
B32: Work experience (1-2 years)
B33: Work experience (3-5 years)
B34: Work experience (over 5 years)
B35: Formal education (certificate, diploma, degrees)
